SERVICE_CODE,ORGANISATION_UNIT,EXPENDITURE_CATEGORY,EXPENDITURE_DESCRIPTION,EXPENDITURE_CODE,NARRATIVE,DATE,TRANSATION_CODE,NET_AMOUNT,SUPPLIER_CODE,SUPPLIER_NAME,FROM_DATE,TO_DATE,FINANCIAL_PERIOD_YEAR
,LEE VALLEY CAMPSITE,EMPLOYEES,APPOINTMENT EXPENSES,1301,P122505-SERVICE-Duty Manager Advert Costs,12/07/2023 00:00,275607,712,SA0133,SOWERBY ADVERTISING AND COMMUNICATIONS,26/06/2023 00:00,30/07/2023 00:00,P04-2024
P&V,MYDDELTON HOUSE GARDENS,EMPLOYEES,APPOINTMENT EXPENSES,1301,P122580-SERVICE-KITCHEN GARDENER ADVERT COSTS,19/07/2023 00:00,275804,715,SA0133,SOWERBY ADVERTISING AND COMMUNICATIONS,26/06/2023 00:00,30/07/2023 00:00,P04-2024
R&B,CORPORATE TRAINING,EMPLOYEES,TRAINING EXPENSES,1305,P121425-SERVICE-Conflict & Personal Safety Training 20/6/23,04/07/2023 00:00,275221,850,IK0209,IKON TRAINING LTD,26/06/2023 00:00,30/07/2023 00:00,P04-2024
R&B,CORPORATE TRAINING,EMPLOYEES,TRAINING EXPENSES,1305,P120948-SERVICE-Carbon Literacy Training 29/06/23,11/07/2023 00:00,275530,1568.19,AP0492,APSE,26/06/2023 00:00,30/07/2023 00:00,P04-2024
R&B,CORPORATE TRAINING,EMPLOYEES,TRAINING EXPENSES,1305,P122571-SERVICE-Manual Handling Training 27/06/2023,17/07/2023 00:00,275652,990,RI0053,RIGHT DIRECTIONS (MANAGEMENT) LTD,26/06/2023 00:00,30/07/2023 00:00,P04-2024
R&B,CORPORATE TRAINING,EMPLOYEES,TRAINING EXPENSES,1305,P122526-SERVICE-David Bates FAW 27-29 Sept 2023,17/07/2023 00:00,275665,419,BR0069,BRITISH RED CROSS,26/06/2023 00:00,30/07/2023 00:00,P04-2024
R&B,CORPORATE TRAINING,EMPLOYEES,TRAINING EXPENSES,1305,P122591-SERVICE-Manual Handling Awareness On-Line,17/07/2023 00:00,275784,52,HI0455,HIGH SPEED TRAINING LIMITED,26/06/2023 00:00,30/07/2023 00:00,P04-2024
P&V,LEE VALLEY FARM HOLYFIELDHALL,EMPLOYEES,TRAINING EXPENSES,1305,P122582-SERVICE-Consulting on Establishment & Management of G,17/07/2023 00:00,275778,79.75,GS0459,G S W & S W SQUIER,26/06/2023 00:00,30/07/2023 00:00,P04-2024
,LEE VALLEY CAMPSITE,EMPLOYEES,TRAINING EXPENSES,1305,P122695-SERVICE-Training Staff SC,24/07/2023 00:00,276024,560.94,ST0700,1 STOP SPAS LTD,26/06/2023 00:00,30/07/2023 00:00,P04-2024
,LEE VALLEY CARAVAN PARK,EMPLOYEES,TRAINING EXPENSES,1305,P122695-SERVICE-Training Staff DW,24/07/2023 00:00,276024,2243.73,ST0700,1 STOP SPAS LTD,26/06/2023 00:00,30/07/2023 00:00,P04-2024
P&V,SOUTH AREA RANGERS,EMPLOYEES,TRAINING EXPENSES,1305,P122671-SERVICE-Accommodation - Resident Week,25/07/2023 00:00,276008,550,BR0662,BRIDGWATER & TAUNTON COLLEGE,26/06/2023 00:00,30/07/2023 00:00,P04-2024
P&V,SOUTH AREA RANGERS,EMPLOYEES,TRAINING EXPENSES,1305,P122199-SERVICE-Brushcutter Training - One Day,26/07/2023 00:00,276047,400,SA0137,SAFFRON WALDEN AGRICULTURAL TRAINING GROUP,26/06/2023 00:00,30/07/2023 00:00,P04-2024
P&V,SOUTH AREA RANGERS,EMPLOYEES,TRAINING EXPENSES,1305,P122199-SERVICE-Brushcutter Training / Lantra Certification,26/07/2023 00:00,276047,180,SA0137,SAFFRON WALDEN AGRICULTURAL TRAINING GROUP,26/06/2023 00:00,30/07/2023 00:00,P04-2024
R&B,NON DISTRIBUTED COSTS,EMPLOYEES,SUPERANNUATION ADDED YEARS,1310,Residual Liabilities,18/07/2023 00:00,275805,5388.88,LO0031,LONDON PENSIONS FUND AUTHORITY,26/06/2023 00:00,30/07/2023 00:00,P04-2024
R&B,NON DISTRIBUTED COSTS,EMPLOYEES,SUPERANNUATION ADDED YEARS,1310,RESIDUAL LIABILITIES,24/07/2023 00:00,275973,5276.2,LO0031,LONDON PENSIONS FUND AUTHORITY,26/06/2023 00:00,30/07/2023 00:00,P04-2024
P&V,FISHERIES MANAGEMENT,EMPLOYEES,CRB CHECKS,1330,DBS Check-M Collins,05/07/2023 00:00,275458,38,DD0119,DUE DILIGENCE CHECKING LIMITED,26/06/2023 00:00,30/07/2023 00:00,P04-2024
P&V,FISHERIES MANAGEMENT,EMPLOYEES,CRB CHECKS,1330,ADMIN FEE,05/07/2023 00:00,275458,18,DD0119,DUE DILIGENCE CHECKING LIMITED,26/06/2023 00:00,30/07/2023 00:00,P04-2024
R&B,HUMAN RESOURCES,EMPLOYEES,DRIVING LICENCE CHECKS,1335,V YATES DRIVING LICENCE CHECK,11/07/2023 00:00,275539,6.25,FI0288,FIRST ADVANTAGE EUROPE LTD,26/06/2023 00:00,30/07/2023 00:00,P04-2024
CEO,PR/COMMUNICATIONS,EMPLOYEES,DRIVING LICENCE CHECKS,1335,C PAINTER DRIVING LICENCE CHECK,11/07/2023 00:00,275539,6.25,FI0288,FIRST ADVANTAGE EUROPE LTD,26/06/2023 00:00,30/07/2023 00:00,P04-2024
CEO,PROPERTY,EMPLOYEES,DRIVING LICENCE CHECKS,1335,P LEY DRIVING LICENCE CHECK,11/07/2023 00:00,275539,6.25,FI0288,FIRST ADVANTAGE EUROPE LTD,26/06/2023 00:00,30/07/2023 00:00,P04-2024
R&B,FINANCE,EMPLOYEES,DRIVING LICENCE CHECKS,1335,J SUSSEX DRIVING LICENCE CHECK,11/07/2023 00:00,275539,6.25,FI0288,FIRST ADVANTAGE EUROPE LTD,26/06/2023 00:00,30/07/2023 00:00,P04-2024
R&B,FINANCE,EMPLOYEES,DRIVING LICENCE CHECKS,1335,T GUINAN DRIVING LICENCE CHECK,11/07/2023 00:00,275539,6.25,FI0288,FIRST ADVANTAGE EUROPE LTD,26/06/2023 00:00,30/07/2023 00:00,P04-2024
R&B,INFORMATION TECHNOLOGY,EMPLOYEES,DRIVING LICENCE CHECKS,1335,T HUTLEY DRIVING LICENCE CHECK,11/07/2023 00:00,275539,6.25,FI0288,FIRST ADVANTAGE EUROPE LTD,26/06/2023 00:00,30/07/2023 00:00,P04-2024
CEO,LEGAL SERVICES,EMPLOYEES,DRIVING LICENCE CHECKS,1335,J SMITH DRIVING LICENCE CHECK,11/07/2023 00:00,275539,6.25,FI0288,FIRST ADVANTAGE EUROPE LTD,26/06/2023 00:00,30/07/2023 00:00,P04-2024
,LEE VALLEY MARINA SPRINGFIELD,EMPLOYEES,DRIVING LICENCE CHECKS,1335,L SCOTT DRIVING LICENCE CHECK,11/07/2023 00:00,275539,6.25,FI0288,FIRST ADVANTAGE EUROPE LTD,26/06/2023 00:00,30/07/2023 00:00,P04-2024
P&V,YOUTH AND SCHOOLS,EMPLOYEES,DRIVING LICENCE CHECKS,1335,N CROFT DRIVING LICENCE CHECK,11/07/2023 00:00,275539,6.25,FI0288,FIRST ADVANTAGE EUROPE LTD,26/06/2023 00:00,30/07/2023 00:00,P04-2024
P&V,YOUTH AND SCHOOLS,EMPLOYEES,DRIVING LICENCE CHECKS,1335,K WHEELER DRIVING LICENCE CHECK,11/07/2023 00:00,275539,6.25,FI0288,FIRST ADVANTAGE EUROPE LTD,26/06/2023 00:00,30/07/2023 00:00,P04-2024
P&V,BIODIVERSITY ACTION PLAN,EMPLOYEES,DRIVING LICENCE CHECKS,1335,C PATRICK DRIVING LICENCE CHECK,11/07/2023 00:00,275539,6.25,FI0288,FIRST ADVANTAGE EUROPE LTD,26/06/2023 00:00,30/07/2023 00:00,P04-2024
P&V,BIODIVERSITY ACTION PLAN,EMPLOYEES,DRIVING LICENCE CHECKS,1335,D RICHARDSON DRIVING LICENCE CHECK,11/07/2023 00:00,275539,6.25,FI0288,FIRST ADVANTAGE EUROPE LTD,26/06/2023 00:00,30/07/2023 00:00,P04-2024
P&V,OPERATIONAL MANAGEMENT (L&E),EMPLOYEES,DRIVING LICENCE CHECKS,1335,J CARNEY DRIVING LICENCE CHECK,11/07/2023 00:00,275539,6.25,FI0288,FIRST ADVANTAGE EUROPE LTD,26/06/2023 00:00,30/07/2023 00:00,P04-2024
P&V,SPORT AND LEISURE,EMPLOYEES,DRIVING LICENCE CHECKS,1335,J BAKER DRIVING LICENCE CHECK,11/07/2023 00:00,275539,6.25,FI0288,FIRST ADVANTAGE EUROPE LTD,26/06/2023 00:00,30/07/2023 00:00,P04-2024
P&V,SPORT AND LEISURE,EMPLOYEES,DRIVING LICENCE CHECKS,1335,V DONALDSON DRIVING LICENCE CHECK,11/07/2023 00:00,275539,6.25,FI0288,FIRST ADVANTAGE EUROPE LTD,26/06/2023 00:00,30/07/2023 00:00,P04-2024
P&V,EVENTS MANAGEMENT (PR),EMPLOYEES,DRIVING LICENCE CHECKS,1335,M EWINGS DRIVING LICENCE CHECK,11/07/2023 00:00,275539,6.25,FI0288,FIRST ADVANTAGE EUROPE LTD,26/06/2023 00:00,30/07/2023 00:00,P04-2024
R&B,CORPORATE TRAINING,EMPLOYEES,APPRENTICE LEVY,1390,PAYE,17/07/2023 00:00,275592,954,HM0368,HMRC,26/06/2023 00:00,30/07/2023 00:00,P04-2024
CEO,LVLC SERVICE CHARGE,PREMISES RELATED EXPENDITURE,SCHEDULED GROUND MAINTENANCE,2111,Jun-23,25/07/2023 00:00,275370,3023.46,GL0214,GLENDALE GROUNDS MANAGEMENT LIMITED,26/06/2023 00:00,30/07/2023 00:00,P04-2024
CEO,LVLC SERVICE CHARGE,PREMISES RELATED EXPENDITURE,SCHEDULED GROUND MAINTENANCE,2111,Jun-23,25/07/2023 00:00,275370,110.27,GL0214,GLENDALE GROUNDS MANAGEMENT LIMITED,26/06/2023 00:00,30/07/2023 00:00,P04-2024
CEO,LVLC SERVICE CHARGE,PREMISES RELATED EXPENDITURE,SCHEDULED GROUND MAINTENANCE,2111,INCENTIVE Q1,25/07/2023 00:00,275407,352.7,GL0214,GLENDALE GROUNDS MANAGEMENT LIMITED,26/06/2023 00:00,30/07/2023 00:00,P04-2024
P&V,MYDDELTON HOUSE,PREMISES RELATED EXPENDITURE,CONTRACT CLEANING,2120,P121875-SERVICE-Myddelton House Cleaning,05/07/2023 00:00,275359,1649.34,BR0632,BRITANNIA SERVICES GROUP LTD,26/06/2023 00:00,30/07/2023 00:00,P04-2024
P&V,MYDDELTON HOUSE,PREMISES RELATED EXPENDITURE,CONTRACT CLEANING,2120,P121875-SERVICE-Myddelton House Cleaning,30/07/2023 00:00,276226,1584.66,BR0632,BRITANNIA SERVICES GROUP LTD,26/06/2023 00:00,30/07/2023 00:00,P04-2024
,LEE VALLEY WATERWORKS CENTRE,PREMISES RELATED EXPENDITURE,CONTRACT CLEANING,2120,P122450-SERVICE-Cleaning WaterWorks Centre,05/07/2023 00:00,275358,776.16,BR0632,BRITANNIA SERVICES GROUP LTD,26/06/2023 00:00,30/07/2023 00:00,P04-2024
,LEE VALLEY CAMPSITE,PREMISES RELATED EXPENDITURE,CONTRACT CLEANING,2120,P121644-SERVICE-Site Cleaning May 23,11/07/2023 00:00,274602,4620,LI0305,LIMPIAR CLEANING,26/06/2023 00:00,30/07/2023 00:00,P04-2024
,LEE VALLEY CAMPSITE,PREMISES RELATED EXPENDITURE,CONTRACT CLEANING,2120,P122512-SERVICE-Site Ceaning JUNE 23,11/07/2023 00:00,275540,3546,LI0305,LIMPIAR CLEANING,26/06/2023 00:00,30/07/2023 00:00,P04-2024
,LEE VALLEY CAMPSITE,PREMISES RELATED EXPENDITURE,CONTRACT CLEANING,2120,P121607-SERVICE-26/07/23 - 25/08/23,19/07/2023 00:00,275609,93.56,IN0012,INITIAL WASHROOM HYGIENE,26/06/2023 00:00,30/07/2023 00:00,P04-2024
,LEE VALLEY CARAVAN PARK,PREMISES RELATED EXPENDITURE,CONTRACT CLEANING,2120,P122618-SERVICE-Contract Cleaning,18/07/2023 00:00,275542,4509,LI0305,LIMPIAR CLEANING,26/06/2023 00:00,30/07/2023 00:00,P04-2024
,LEE VALLEY CARAVAN PARK,PREMISES RELATED EXPENDITURE,CONTRACT CLEANING,2120,P122682-SERVICE-Monthly Hygiene service,25/07/2023 00:00,275962,98.87,IN0012,INITIAL WASHROOM HYGIENE,26/06/2023 00:00,30/07/2023 00:00,P04-2024
P&V,WILDLIFE DISCOVERY CENTRE,PREMISES RELATED EXPENDITURE,CONTRACT CLEANING,2120,P122249-SERVICE-Cleaning - Ranger Office / Wildlife Discovery,05/07/2023 00:00,275357,388.08,BR0632,BRITANNIA SERVICES GROUP LTD,26/06/2023 00:00,30/07/2023 00:00,P04-2024
P&V,GUNPOWDER PARK,PREMISES RELATED EXPENDITURE,CONTRACT CLEANING,2120,Jun-23,25/07/2023 00:00,275370,552.26,GL0214,GLENDALE GROUNDS MANAGEMENT LIMITED,26/06/2023 00:00,30/07/2023 00:00,P04-2024
P&V,RIVER LEE COUNTRY PARK,PREMISES RELATED EXPENDITURE,CONTRACT CLEANING,2120,Jun-23,25/07/2023 00:00,275370,1104.51,GL0214,GLENDALE GROUNDS MANAGEMENT LIMITED,26/06/2023 00:00,30/07/2023 00:00,P04-2024
,LV LEISURE CENTRE CAMPSITE,PREMISES RELATED EXPENDITURE,CONTRACT CLEANING,2120,P122594-SERVICE-santairy bins empited,17/07/2023 00:00,275616,162.3,PE0015,PHS GROUP PLC,26/06/2023 00:00,30/07/2023 00:00,P04-2024
P&V,MYDDLETON HSE HERITAGE CENTRE,PREMISES RELATED EXPENDITURE,CLEANING CONTRACT,2121,P121876-SERVICE-Tea Room Cleaning,05/07/2023 00:00,275360,808.5,BR0632,BRITANNIA SERVICES GROUP LTD,26/06/2023 00:00,30/07/2023 00:00,P04-2024
,LEE VALLEY CAMPSITE,PREMISES RELATED EXPENDITURE,LINEN SERVICE,2122,P121642-SERVICE-June 23,04/07/2023 00:00,275318,217.66,JO0168,JOHNSONS STALBRIDGE LINEN SERVICES,26/06/2023 00:00,30/07/2023 00:00,P04-2024
,LEE VALLEY CAMPSITE,PREMISES RELATED EXPENDITURE,LINEN SERVICE,2122,P121642-SERVICE-July 23,04/07/2023 00:00,275318,300,JO0168,JOHNSONS STALBRIDGE LINEN SERVICES,26/06/2023 00:00,30/07/2023 00:00,P04-2024
,LEE VALLEY CAMPSITE,PREMISES RELATED EXPENDITURE,LINEN SERVICE,2122,P121642-SERVICE-increase order to cover June invoice,04/07/2023 00:00,275318,158.63,JO0168,JOHNSONS STALBRIDGE LINEN SERVICES,26/06/2023 00:00,30/07/2023 00:00,P04-2024
,LEE VALLEY CARAVAN PARK,PREMISES RELATED EXPENDITURE,LINEN SERVICE,2122,P122446-SERVICE-Linen service,04/07/2023 00:00,275319,1235.86,JO0168,JOHNSONS STALBRIDGE LINEN SERVICES,26/06/2023 00:00,30/07/2023 00:00,P04-2024
,LEE VALLEY CARAVAN PARK,PREMISES RELATED EXPENDITURE,LINEN SERVICE,2122,P122769-SERVICE-Linen Service,30/07/2023 00:00,276194,1082.1,JO0168,JOHNSONS STALBRIDGE LINEN SERVICES,26/06/2023 00:00,30/07/2023 00:00,P04-2024
,LEE VALLEY MARINA STANSTEAD,PREMISES RELATED EXPENDITURE,GM MAIN CONTRACT SCHEDULED,2141,Jun-23,25/07/2023 00:00,275370,645.18,GL0214,GLENDALE GROUNDS MANAGEMENT LIMITED,26/06/2023 00:00,30/07/2023 00:00,P04-2024
,LEE VALLEY MARINA STANSTEAD,PREMISES RELATED EXPENDITURE,GM MAIN CONTRACT SCHEDULED,2141,INCENTIVE Q1,25/07/2023 00:00,275407,325.28,GL0214,GLENDALE GROUNDS MANAGEMENT LIMITED,26/06/2023 00:00,30/07/2023 00:00,P04-2024
,LEE VALLEY WATERWORKS CENTRE,PREMISES RELATED EXPENDITURE,GM MAIN CONTRACT SCHEDULED,2141,Jun-23,25/07/2023 00:00,275370,265.74,GL0214,GLENDALE GROUNDS MANAGEMENT LIMITED,26/06/2023 00:00,30/07/2023 00:00,P04-2024
,LEE VALLEY WATERWORKS CENTRE,PREMISES RELATED EXPENDITURE,GM MAIN CONTRACT SCHEDULED,2141,Jun-23,25/07/2023 00:00,275370,606.12,GL0214,GLENDALE GROUNDS MANAGEMENT LIMITED,26/06/2023 00:00,30/07/2023 00:00,P04-2024
,LEE VALLEY WATERWORKS CENTRE,PREMISES RELATED EXPENDITURE,GM MAIN CONTRACT SCHEDULED,2141,INCENTIVE Q1,25/07/2023 00:00,275407,407.35,GL0214,GLENDALE GROUNDS MANAGEMENT LIMITED,26/06/2023 00:00,30/07/2023 00:00,P04-2024
P&V,LEE VALLEY FARM HOLYFIELDHALL,PREMISES RELATED EXPENDITURE,GM MAIN CONTRACT SCHEDULED,2141,Jun-23,25/07/2023 00:00,275370,149.68,GL0214,GLENDALE GROUNDS MANAGEMENT LIMITED,26/06/2023 00:00,30/07/2023 00:00,P04-2024
P&V,LEE VALLEY FARM HOLYFIELDHALL,PREMISES RELATED EXPENDITURE,GM MAIN CONTRACT SCHEDULED,2141,INCENTIVE Q1,25/07/2023 00:00,275407,71.57,GL0214,GLENDALE GROUNDS MANAGEMENT LIMITED,26/06/2023 00:00,30/07/2023 00:00,P04-2024
P&V,EAST INDIA DOCK AND BOW CREEK,PREMISES RELATED EXPENDITURE,GM MAIN CONTRACT SCHEDULED,2141,Jun-23,25/07/2023 00:00,275370,949.09,GL0214,GLENDALE GROUNDS MANAGEMENT LIMITED,26/06/2023 00:00,30/07/2023 00:00,P04-2024
P&V,EAST INDIA DOCK AND BOW CREEK,PREMISES RELATED EXPENDITURE,GM MAIN CONTRACT SCHEDULED,2141,Jun-23,25/07/2023 00:00,275370,849.88,GL0214,GLENDALE GROUNDS MANAGEMENT LIMITED,26/06/2023 00:00,30/07/2023 00:00,P04-2024
P&V,EAST INDIA DOCK AND BOW CREEK,PREMISES RELATED EXPENDITURE,GM MAIN CONTRACT SCHEDULED,2141,INCENTIVE Q1,25/07/2023 00:00,275407,855.5,GL0214,GLENDALE GROUNDS MANAGEMENT LIMITED,26/06/2023 00:00,30/07/2023 00:00,P04-2024
P&V,NORTH AREA RANGERS,PREMISES RELATED EXPENDITURE,GM MAIN CONTRACT SCHEDULED,2141,Jun-23,25/07/2023 00:00,275370,5667.65,GL0214,GLENDALE GROUNDS MANAGEMENT LIMITED,26/06/2023 00:00,30/07/2023 00:00,P04-2024
P&V,NORTH AREA RANGERS,PREMISES RELATED EXPENDITURE,GM MAIN CONTRACT SCHEDULED,2141,INCENTIVE Q1,25/07/2023 00:00,275407,1652.83,GL0214,GLENDALE GROUNDS MANAGEMENT LIMITED,26/06/2023 00:00,30/07/2023 00:00,P04-2024
P&V,SOUTH AREA RANGERS,PREMISES RELATED EXPENDITURE,GM MAIN CONTRACT SCHEDULED,2141,Jun-23,25/07/2023 00:00,275370,379.64,GL0214,GLENDALE GROUNDS MANAGEMENT LIMITED,26/06/2023 00:00,30/07/2023 00:00,P04-2024
P&V,SOUTH AREA RANGERS,PREMISES RELATED EXPENDITURE,GM MAIN CONTRACT SCHEDULED,2141,Jun-23,25/07/2023 00:00,275370,6555.49,GL0214,GLENDALE GROUNDS MANAGEMENT LIMITED,26/06/2023 00:00,30/07/2023 00:00,P04-2024
P&V,SOUTH AREA RANGERS,PREMISES RELATED EXPENDITURE,GM MAIN CONTRACT SCHEDULED,2141,INCENTIVE Q1,25/07/2023 00:00,275407,2735.3,GL0214,GLENDALE GROUNDS MANAGEMENT LIMITED,26/06/2023 00:00,30/07/2023 00:00,P04-2024
P&V,ABBEY GARDENS,PREMISES RELATED EXPENDITURE,GM MAIN CONTRACT SCHEDULED,2141,Jun-23,25/07/2023 00:00,275370,2895.18,GL0214,GLENDALE GROUNDS MANAGEMENT LIMITED,26/06/2023 00:00,30/07/2023 00:00,P04-2024
P&V,ABBEY GARDENS,PREMISES RELATED EXPENDITURE,GM MAIN CONTRACT SCHEDULED,2141,INCENTIVE Q1,25/07/2023 00:00,275407,664.43,GL0214,GLENDALE GROUNDS MANAGEMENT LIMITED,26/06/2023 00:00,30/07/2023 00:00,P04-2024
P&V,GUNPOWDER PARK,PREMISES RELATED EXPENDITURE,GM MAIN CONTRACT SCHEDULED,2141,Jun-23,25/07/2023 00:00,275370,2850.51,GL0214,GLENDALE GROUNDS MANAGEMENT LIMITED,26/06/2023 00:00,30/07/2023 00:00,P04-2024
P&V,GUNPOWDER PARK,PREMISES RELATED EXPENDITURE,GM MAIN CONTRACT SCHEDULED,2141,INCENTIVE Q1,25/07/2023 00:00,275407,1326.41,GL0214,GLENDALE GROUNDS MANAGEMENT LIMITED,26/06/2023 00:00,30/07/2023 00:00,P04-2024
P&V,RIVER LEE COUNTRY PARK,PREMISES RELATED EXPENDITURE,GM MAIN CONTRACT SCHEDULED,2141,Jun-23,25/07/2023 00:00,275370,189.82,GL0214,GLENDALE GROUNDS MANAGEMENT LIMITED,26/06/2023 00:00,30/07/2023 00:00,P04-2024
P&V,RIVER LEE COUNTRY PARK,PREMISES RELATED EXPENDITURE,GM MAIN CONTRACT SCHEDULED,2141,Jun-23,25/07/2023 00:00,275370,16663.85,GL0214,GLENDALE GROUNDS MANAGEMENT LIMITED,26/06/2023 00:00,30/07/2023 00:00,P04-2024
P&V,RIVER LEE COUNTRY PARK,PREMISES RELATED EXPENDITURE,GM MAIN CONTRACT SCHEDULED,2141,INCENTIVE Q1,25/07/2023 00:00,275407,7691.83,GL0214,GLENDALE GROUNDS MANAGEMENT LIMITED,26/06/2023 00:00,30/07/2023 00:00,P04-2024
,LEE VALLEY VELOPARK,PREMISES RELATED EXPENDITURE,GM MAIN CONTRACT SCHEDULED,2141,Jun-23,25/07/2023 00:00,275370,7243.95,GL0214,GLENDALE GROUNDS MANAGEMENT LIMITED,26/06/2023 00:00,30/07/2023 00:00,P04-2024
,LEE VALLEY VELOPARK,PREMISES RELATED EXPENDITURE,GM MAIN CONTRACT SCHEDULED,2141,INCENTIVE Q1,25/07/2023 00:00,275407,524.63,GL0214,GLENDALE GROUNDS MANAGEMENT LIMITED,26/06/2023 00:00,30/07/2023 00:00,P04-2024
,LV HOCKEY AND TENNIS CENTRE,PREMISES RELATED EXPENDITURE,GM MAIN CONTRACT SCHEDULED,2141,Jun-23,25/07/2023 00:00,275370,4442.52,GL0214,GLENDALE GROUNDS MANAGEMENT LIMITED,26/06/2023 00:00,30/07/2023 00:00,P04-2024
,LV HOCKEY AND TENNIS CENTRE,PREMISES RELATED EXPENDITURE,GM MAIN CONTRACT SCHEDULED,2141,INCENTIVE Q1,25/07/2023 00:00,275407,220.83,GL0214,GLENDALE GROUNDS MANAGEMENT LIMITED,26/06/2023 00:00,30/07/2023 00:00,P04-2024
P&V,THREE MILLS,PREMISES RELATED EXPENDITURE,GM MAIN CONTRACT SCHEDULED,2141,Jun-23,25/07/2023 00:00,275370,1623.64,GL0214,GLENDALE GROUNDS MANAGEMENT LIMITED,26/06/2023 00:00,30/07/2023 00:00,P04-2024
P&V,THREE MILLS,PREMISES RELATED EXPENDITURE,GM MAIN CONTRACT SCHEDULED,2141,INCENTIVE Q1,25/07/2023 00:00,275407,565.2,GL0214,GLENDALE GROUNDS MANAGEMENT LIMITED,26/06/2023 00:00,30/07/2023 00:00,P04-2024
,LEE VALLEY RIDING CENTRE,PREMISES RELATED EXPENDITURE,GM MAIN CONTRACT SCHEDULED,2141,Jun-23,25/07/2023 00:00,275370,563.06,GL0214,GLENDALE GROUNDS MANAGEMENT LIMITED,26/06/2023 00:00,30/07/2023 00:00,P04-2024
,LEE VALLEY RIDING CENTRE,PREMISES RELATED EXPENDITURE,GM MAIN CONTRACT SCHEDULED,2141,INCENTIVE Q1,25/07/2023 00:00,275407,187.14,GL0214,GLENDALE GROUNDS MANAGEMENT LIMITED,26/06/2023 00:00,30/07/2023 00:00,P04-2024
,LEE VALLEY ICE CENTRE,PREMISES RELATED EXPENDITURE,GM MAIN CONTRACT SCHEDULED,2141,Jun-23,25/07/2023 00:00,275370,907.11,GL0214,GLENDALE GROUNDS MANAGEMENT LIMITED,26/06/2023 00:00,30/07/2023 00:00,P04-2024
P&V,FORMER LV LIDO SITE,PREMISES RELATED EXPENDITURE,GM MAIN CONTRACT SCHEDULED,2141,Jun-23,25/07/2023 00:00,275370,1112.21,GL0214,GLENDALE GROUNDS MANAGEMENT LIMITED,26/06/2023 00:00,30/07/2023 00:00,P04-2024
P&V,FORMER LV LIDO SITE,PREMISES RELATED EXPENDITURE,GM MAIN CONTRACT SCHEDULED,2141,INCENTIVE Q1,25/07/2023 00:00,275407,389.95,GL0214,GLENDALE GROUNDS MANAGEMENT LIMITED,26/06/2023 00:00,30/07/2023 00:00,P04-2024
,LEE VALLEY ATHLETICS CENTRE,PREMISES RELATED EXPENDITURE,GM MAIN CONTRACT SCHEDULED,2141,Jun-23,25/07/2023 00:00,275370,672.8,GL0214,GLENDALE GROUNDS MANAGEMENT LIMITED,26/06/2023 00:00,30/07/2023 00:00,P04-2024
,LEE VALLEY ATHLETICS CENTRE,PREMISES RELATED EXPENDITURE,GM MAIN CONTRACT SCHEDULED,2141,INCENTIVE Q1,25/07/2023 00:00,275407,406.75,GL0214,GLENDALE GROUNDS MANAGEMENT LIMITED,26/06/2023 00:00,30/07/2023 00:00,P04-2024
,LEE VALLEY WHITE WATER CENTRE,PREMISES RELATED EXPENDITURE,GM MAIN CONTRACT SCHEDULED,2141,Jun-23,25/07/2023 00:00,275370,3497.84,GL0214,GLENDALE GROUNDS MANAGEMENT LIMITED,26/06/2023 00:00,30/07/2023 00:00,P04-2024
,LEE VALLEY WHITE WATER CENTRE,PREMISES RELATED EXPENDITURE,GM MAIN CONTRACT SCHEDULED,2141,INCENTIVE Q1,25/07/2023 00:00,275407,1373,GL0214,GLENDALE GROUNDS MANAGEMENT LIMITED,26/06/2023 00:00,30/07/2023 00:00,P04-2024
P&V,SOUTH AREA RANGERS,PREMISES RELATED EXPENDITURE,GM MAIN CONTRACT UNSCHEDULED,2142,Jun-23,25/07/2023 00:00,275370,247.94,GL0214,GLENDALE GROUNDS MANAGEMENT LIMITED,26/06/2023 00:00,30/07/2023 00:00,P04-2024
,LEE VALLEY WATERWORKS CENTRE,PREMISES RELATED EXPENDITURE,GM HORTICULTURE SCHEDULED,2143,Jun-23,25/07/2023 00:00,275370,169.95,GL0214,GLENDALE GROUNDS MANAGEMENT LIMITED,26/06/2023 00:00,30/07/2023 00:00,P04-2024
P&V,NORTH AREA RANGERS,PREMISES RELATED EXPENDITURE,GM HORTICULTURE SCHEDULED,2143,Jun-23,25/07/2023 00:00,275370,250.51,GL0214,GLENDALE GROUNDS MANAGEMENT LIMITED,26/06/2023 00:00,30/07/2023 00:00,P04-2024
P&V,SOUTH AREA RANGERS,PREMISES RELATED EXPENDITURE,GM HORTICULTURE SCHEDULED,2143,Jun-23,25/07/2023 00:00,275370,144.87,GL0214,GLENDALE GROUNDS MANAGEMENT LIMITED,26/06/2023 00:00,30/07/2023 00:00,P04-2024
P&V,ABBEY GARDENS,PREMISES RELATED EXPENDITURE,GM HORTICULTURE SCHEDULED,2143,Jun-23,25/07/2023 00:00,275370,1974.21,GL0214,GLENDALE GROUNDS MANAGEMENT LIMITED,26/06/2023 00:00,30/07/2023 00:00,P04-2024
P&V,GUNPOWDER PARK,PREMISES RELATED EXPENDITURE,GM HORTICULTURE SCHEDULED,2143,Jun-23,25/07/2023 00:00,275370,259.15,GL0214,GLENDALE GROUNDS MANAGEMENT LIMITED,26/06/2023 00:00,30/07/2023 00:00,P04-2024
P&V,RIVER LEE COUNTRY PARK,PREMISES RELATED EXPENDITURE,GM HORTICULTURE SCHEDULED,2143,Jun-23,25/07/2023 00:00,275370,134.48,GL0214,GLENDALE GROUNDS MANAGEMENT LIMITED,26/06/2023 00:00,30/07/2023 00:00,P04-2024
,LEE VALLEY VELOPARK,PREMISES RELATED EXPENDITURE,GM HORTICULTURE SCHEDULED,2143,Jun-23,25/07/2023 00:00,275370,1152.74,GL0214,GLENDALE GROUNDS MANAGEMENT LIMITED,26/06/2023 00:00,30/07/2023 00:00,P04-2024
,LV HOCKEY AND TENNIS CENTRE,PREMISES RELATED EXPENDITURE,GM HORTICULTURE SCHEDULED,2143,Jun-23,25/07/2023 00:00,275370,1660.02,GL0214,GLENDALE GROUNDS MANAGEMENT LIMITED,26/06/2023 00:00,30/07/2023 00:00,P04-2024
P&V,THREE MILLS,PREMISES RELATED EXPENDITURE,GM HORTICULTURE SCHEDULED,2143,Jun-23,25/07/2023 00:00,275370,53.88,GL0214,GLENDALE GROUNDS MANAGEMENT LIMITED,26/06/2023 00:00,30/07/2023 00:00,P04-2024
,LEE VALLEY RIDING CENTRE,PREMISES RELATED EXPENDITURE,GM HORTICULTURE SCHEDULED,2143,Jun-23,25/07/2023 00:00,275370,13.47,GL0214,GLENDALE GROUNDS MANAGEMENT LIMITED,26/06/2023 00:00,30/07/2023 00:00,P04-2024
P&V,FORMER LV LIDO SITE,PREMISES RELATED EXPENDITURE,GM HORTICULTURE SCHEDULED,2143,Jun-23,25/07/2023 00:00,275370,12.84,GL0214,GLENDALE GROUNDS MANAGEMENT LIMITED,26/06/2023 00:00,30/07/2023 00:00,P04-2024
,LEE VALLEY WHITE WATER CENTRE,PREMISES RELATED EXPENDITURE,GM HORTICULTURE SCHEDULED,2143,Jun-23,25/07/2023 00:00,275370,29.42,GL0214,GLENDALE GROUNDS MANAGEMENT LIMITED,26/06/2023 00:00,30/07/2023 00:00,P04-2024
P&V,NORTH AREA RANGERS,PREMISES RELATED EXPENDITURE,GM ARBORICULTURE UNSCHEDULED,2146,P122342-SERVICE-Emergency Tree Works - Dobbs Weir Road,11/07/2023 00:00,275547,420,VE0004,PRINCIPAL TREES LTD,26/06/2023 00:00,30/07/2023 00:00,P04-2024
P&V,SOUTH AREA RANGERS,PREMISES RELATED EXPENDITURE,GM ARBORICULTURE UNSCHEDULED,2146,P122376-SERVICE-Tree Works Waterworks Field,04/07/2023 00:00,275201,250,PA0222,PARKIN & PARKER TREE SPECIALISTS,26/06/2023 00:00,30/07/2023 00:00,P04-2024
P&V,SOUTH AREA RANGERS,PREMISES RELATED EXPENDITURE,GM ARBORICULTURE UNSCHEDULED,2146,P122378-SERVICE-Tree Works at Tottenham Marsh,04/07/2023 00:00,275202,250,PA0222,PARKIN & PARKER TREE SPECIALISTS,26/06/2023 00:00,30/07/2023 00:00,P04-2024
P&V,SOUTH AREA RANGERS,PREMISES RELATED EXPENDITURE,GM ARBORICULTURE UNSCHEDULED,2146,P122377-SERVICE-Tree Works Walthamstow Marsh Springfield Mari,17/07/2023 00:00,275460,475,PA0222,PARKIN & PARKER TREE SPECIALISTS,26/06/2023 00:00,30/07/2023 00:00,P04-2024
P&V,GUNPOWDER PARK,PREMISES RELATED EXPENDITURE,GM ARBORICULTURE UNSCHEDULED,2146,P122230-SERVICE-Tree Works at Gunpowder Park,04/07/2023 00:00,275327,295,PA0222,PARKIN & PARKER TREE SPECIALISTS,26/06/2023 00:00,30/07/2023 00:00,P04-2024
P&V,GUNPOWDER PARK,PREMISES RELATED EXPENDITURE,GM ARBORICULTURE UNSCHEDULED,2146,"P122438-SERVICE-Tree Works at Knights Pits, Gunpowder Park",17/07/2023 00:00,275459,350,PA0222,PARKIN & PARKER TREE SPECIALISTS,26/06/2023 00:00,30/07/2023 00:00,P04-2024
P&V,GUNPOWDER PARK,PREMISES RELATED EXPENDITURE,GM ARBORICULTURE UNSCHEDULED,2146,P122484-SERVICE-Tree Works at Gunpowder Park,11/07/2023 00:00,275567,350,PA0222,PARKIN & PARKER TREE SPECIALISTS,26/06/2023 00:00,30/07/2023 00:00,P04-2024
P&V,GUNPOWDER PARK,PREMISES RELATED EXPENDITURE,GM ARBORICULTURE UNSCHEDULED,2146,P122484-SERVICE-Tree Works at Sewardstone Marsh,11/07/2023 00:00,275567,420,PA0222,PARKIN & PARKER TREE SPECIALISTS,26/06/2023 00:00,30/07/2023 00:00,P04-2024
P&V,GUNPOWDER PARK,PREMISES RELATED EXPENDITURE,GM ARBORICULTURE UNSCHEDULED,2146,P122740-SERVICE-Collapsed Willows at Gunpowder Park,30/07/2023 00:00,276223,495,PA0222,PARKIN & PARKER TREE SPECIALISTS,26/06/2023 00:00,30/07/2023 00:00,P04-2024
P&V,SOUTH AREA RANGERS,PREMISES RELATED EXPENDITURE,GM NON MAIN CONT UNSCHEDULED,2147,P122410-SERVICE-Board Walk Repair at Walthamstow Marsh,11/07/2023 00:00,275462,700,JO0019,R G JOYCE,26/06/2023 00:00,30/07/2023 00:00,P04-2024
P&V,SOUTH AREA RANGERS,PREMISES RELATED EXPENDITURE,GM NON MAIN CONT UNSCHEDULED,2147,P122409-SERVICE-Repair Raised Walkway at Waterworks Nature Re,25/07/2023 00:00,275851,990,JO0019,R G JOYCE,26/06/2023 00:00,30/07/2023 00:00,P04-2024
P&V,RIVER LEE COUNTRY PARK,PREMISES RELATED EXPENDITURE,GM NON MAIN CONT UNSCHEDULED,2147,P122579-SERVICE-Line Markings at Fishers Green,25/07/2023 00:00,276007,2280,LI0251,LINEWAYS LTD,26/06/2023 00:00,30/07/2023 00:00,P04-2024
P&V,GUNPOWDER PARK,PREMISES RELATED EXPENDITURE,HABITAT MANAGEMENT WORKS,2149,P121802-SERVICE-Invasive Species Spraying at Rammey Marsh,30/07/2023 00:00,276242,286,GO0044,S.H.GOSS & CO LTD,26/06/2023 00:00,30/07/2023 00:00,P04-2024
P&V,NORTH AREA RANGERS,PREMISES RELATED EXPENDITURE,MEADOW CUTS,2150,P122065-SERVICE-Meadow Cuts - Various Sites in North,11/07/2023 00:00,275198,8000,BU0090,BUSH WHEELER SERVICES LTD,26/06/2023 00:00,30/07/2023 00:00,P04-2024
,LEE VALLEY MARINA SPRINGFIELD,PREMISES RELATED EXPENDITURE,GENERAL WASTE,2211,P122177-SERVICE-12 yard skip,11/07/2023 00:00,274741,334.75,OD0010,O'DONOVAN (WASTE DISPOSAL) LTD,26/06/2023 00:00,30/07/2023 00:00,P04-2024
,LEE VALLEY MARINA SPRINGFIELD,PREMISES RELATED EXPENDITURE,GENERAL WASTE,2211,P122177-SERVICE-12 yard skip,11/07/2023 00:00,274753,95,OD0010,O'DONOVAN (WASTE DISPOSAL) LTD,26/06/2023 00:00,30/07/2023 00:00,P04-2024
,LEE VALLEY MARINA SPRINGFIELD,PREMISES RELATED EXPENDITURE,GENERAL WASTE,2211,P121653-SERVICE-General waste & Recyling April to Sept 2023,05/07/2023 00:00,275390,1526.58,CL0037,VEOLIA ES (UK) LTD,26/06/2023 00:00,30/07/2023 00:00,P04-2024
,LEE VALLEY MARINA SPRINGFIELD,PREMISES RELATED EXPENDITURE,GENERAL WASTE,2211,P122177-SERVICE-12 yard skip,11/07/2023 00:00,275581,-95,OD0010,O'DONOVAN (WASTE DISPOSAL) LTD,26/06/2023 00:00,30/07/2023 00:00,P04-2024
,LEE VALLEY MARINA STANSTEAD,PREMISES RELATED EXPENDITURE,GENERAL WASTE,2211,P121961-SERVICE-annual bin pick ups for RH & SM,11/07/2023 00:00,275391,948.09,CL0037,VEOLIA ES (UK) LTD,26/06/2023 00:00,30/07/2023 00:00,P04-2024
,LEE VALLEY MARINA STANSTEAD,PREMISES RELATED EXPENDITURE,GENERAL WASTE,2211,P121961-SERVICE-annual bin pick ups for RH & SM,11/07/2023 00:00,275392,207.27,CL0037,VEOLIA ES (UK) LTD,26/06/2023 00:00,30/07/2023 00:00,P04-2024
,LEE VALLEY CARAVAN PARK,PREMISES RELATED EXPENDITURE,GENERAL WASTE,2211,P122617-SERVICE-Waste disposal,18/07/2023 00:00,275394,2621.21,CL0037,VEOLIA ES (UK) LTD,26/06/2023 00:00,30/07/2023 00:00,P04-2024
P&V,SOUTH AREA RANGERS,PREMISES RELATED EXPENDITURE,GENERAL WASTE,2211,P121714-SERVICE-Skip at WaterWorks Centre,05/07/2023 00:00,275352,323.4,GB0239,GBN SERVICES LTD,26/06/2023 00:00,30/07/2023 00:00,P04-2024
P&V,RIVER LEE COUNTRY PARK,PREMISES RELATED EXPENDITURE,GENERAL WASTE,2211,P121689-SERVICE-12yd General Rubbish Skip at Holyfield Hall F,11/07/2023 00:00,275422,646.8,GB0239,GBN SERVICES LTD,26/06/2023 00:00,30/07/2023 00:00,P04-2024
P&V,RIVER LEE COUNTRY PARK,PREMISES RELATED EXPENDITURE,GENERAL WASTE,2211,P121689-SERVICE-12yd General Rubbish Skip at Holyfield Hall F,30/07/2023 00:00,276053,323.4,GB0239,GBN SERVICES LTD,26/06/2023 00:00,30/07/2023 00:00,P04-2024
,LV LEISURE CENTRE CAMPSITE,PREMISES RELATED EXPENDITURE,GENERAL WASTE,2211,P122499-SERVICE-Compactor and skip empty,11/07/2023 00:00,275393,861.08,CL0037,VEOLIA ES (UK) LTD,26/06/2023 00:00,30/07/2023 00:00,P04-2024
,LV LEISURE CENTRE CAMPSITE,PREMISES RELATED EXPENDITURE,GENERAL WASTE,2211,P122503-SERVICE-Site cleaning,11/07/2023 00:00,275541,3276,LI0305,LIMPIAR CLEANING,26/06/2023 00:00,30/07/2023 00:00,P04-2024
,LV LEISURE CENTRE CAMPSITE,PREMISES RELATED EXPENDITURE,GENERAL WASTE,2211,P122504-SERVICE-Recycling bin empty,11/07/2023 00:00,275548,348.62,BY0049,BYWATERS (LEYTON) LTD,26/06/2023 00:00,30/07/2023 00:00,P04-2024
P&V,GUNPOWDER PARK,PREMISES RELATED EXPENDITURE,FLYTIPPING/WHITE GOOD DISPOSAL,2213,P122485-SERVICE-RemoveFly Tip at Rammey Marsh Car Park,25/07/2023 00:00,275647,220,JO0019,R G JOYCE,26/06/2023 00:00,30/07/2023 00:00,P04-2024
P&V,GUNPOWDER PARK,PREMISES RELATED EXPENDITURE,FLYTIPPING/WHITE GOOD DISPOSAL,2213,P122533-SERVICE-Remove Saw Dust Flytip - Swan & Pike Pool Car,17/07/2023 00:00,275668,200,JO0019,R G JOYCE,26/06/2023 00:00,30/07/2023 00:00,P04-2024
P&V,MYDDELTON HOUSE,PREMISES RELATED EXPENDITURE,RECYCLING,2214,P121873-SERVICE-Recycling,12/07/2023 00:00,275622,219.5,CA0341,F & R CAWLEY LTD,26/06/2023 00:00,30/07/2023 00:00,P04-2024
P&V,MYDDELTON HOUSE,PREMISES RELATED EXPENDITURE,BUILDING SERVICE AGREEMENTS,2220,P121870-SERVICE-Sanitary Services,04/07/2023 00:00,275214,200.24,PE0015,PHS GROUP PLC,26/06/2023 00:00,30/07/2023 00:00,P04-2024
P&V,MYDDELTON HOUSE,PREMISES RELATED EXPENDITURE,BUILDING SERVICE AGREEMENTS,2220,P121870-SERVICE-Sanitary Services,04/07/2023 00:00,275229,9.09,PE0015,PHS GROUP PLC,26/06/2023 00:00,30/07/2023 00:00,P04-2024
P&V,MYDDELTON HOUSE,PREMISES RELATED EXPENDITURE,BUILDING SERVICE AGREEMENTS,2220,P121870-SERVICE-Sanitary Services,04/07/2023 00:00,275230,24.15,PE0015,PHS GROUP PLC,26/06/2023 00:00,30/07/2023 00:00,P04-2024
P&V,MYDDELTON HOUSE,PREMISES RELATED EXPENDITURE,BUILDING SERVICE AGREEMENTS,2220,P121870-SERVICE-Sanitary Services,26/07/2023 00:00,276005,89.64,PE0015,PHS GROUP PLC,26/06/2023 00:00,30/07/2023 00:00,P04-2024
P&V,MYDDELTON HOUSE,PREMISES RELATED EXPENDITURE,BUILDING SERVICE AGREEMENTS,2220,P121870-SERVICE-Sanitary Services,30/07/2023 00:00,276217,202.29,PE0015,PHS GROUP PLC,26/06/2023 00:00,30/07/2023 00:00,P04-2024
P&V,MYDDELTON HOUSE,PREMISES RELATED EXPENDITURE,BUILDING SERVICE AGREEMENTS,2220,P121870-SERVICE-Sanitary Services,30/07/2023 00:00,276236,9.09,PE0015,PHS GROUP PLC,26/06/2023 00:00,30/07/2023 00:00,P04-2024
P&V,MYDDELTON HOUSE,PREMISES RELATED EXPENDITURE,BUILDING SERVICE AGREEMENTS,2220,P121870-SERVICE-Sanitary Services,30/07/2023 00:00,276237,24.15,PE0015,PHS GROUP PLC,26/06/2023 00:00,30/07/2023 00:00,P04-2024
,LEE VALLEY MARINA SPRINGFIELD,PREMISES RELATED EXPENDITURE,BUILDING SERVICE AGREEMENTS,2220,"P121662-SERVICE-Sanitary Disposal,Dust Mats,Eco Shield",05/07/2023 00:00,275029,216.54,PE0015,PHS GROUP PLC,26/06/2023 00:00,30/07/2023 00:00,P04-2024
,LEE VALLEY MARINA SPRINGFIELD,PREMISES RELATED EXPENDITURE,BUILDING SERVICE AGREEMENTS,2220,P121657-SERVICE-To Supply pest & Vermin control,12/07/2023 00:00,275644,450,VE0006,VERMINATE CITY & RURAL PEST CONTROL LTD,26/06/2023 00:00,30/07/2023 00:00,P04-2024
,LEE VALLEY MARINA SPRINGFIELD,PREMISES RELATED EXPENDITURE,BUILDING SERVICE AGREEMENTS,2220,"P121662-SERVICE-Sanitary Disposal,Dust Mats,Eco Shield",26/07/2023 00:00,276004,216.54,PE0015,PHS GROUP PLC,26/06/2023 00:00,30/07/2023 00:00,P04-2024
,LEE VALLEY MARINA STANSTEAD,PREMISES RELATED EXPENDITURE,BUILDING SERVICE AGREEMENTS,2220,P121996-SERVICE-roller shutter service,30/07/2023 00:00,276038,572,AI0262,AIS ( ADVANCED INTEGRATED SECURITY),26/06/2023 00:00,30/07/2023 00:00,P04-2024
,LEE VALLEY WATERWORKS CENTRE,PREMISES RELATED EXPENDITURE,BUILDING SERVICE AGREEMENTS,2220,P122417-SERVICE-Waterworks Dec 2022 PPM,05/07/2023 00:00,275398,341.92,CO0199,EQUANS FM LIMITED (frmlyENGIE FM LIMITED),26/06/2023 00:00,30/07/2023 00:00,P04-2024
,LEE VALLEY WATERWORKS CENTRE,PREMISES RELATED EXPENDITURE,BUILDING SERVICE AGREEMENTS,2220,P122411-SERVICE-Waterworks Jan 2023 PPM,05/07/2023 00:00,275399,531.86,CO0199,EQUANS FM LIMITED (frmlyENGIE FM LIMITED),26/06/2023 00:00,30/07/2023 00:00,P04-2024
,LEE VALLEY WATERWORKS CENTRE,PREMISES RELATED EXPENDITURE,BUILDING SERVICE AGREEMENTS,2220,P122412-SERVICE-Waterworks Feb 2023 PPM,05/07/2023 00:00,275400,208.95,CO0199,EQUANS FM LIMITED (frmlyENGIE FM LIMITED),26/06/2023 00:00,30/07/2023 00:00,P04-2024
,LEE VALLEY WATERWORKS CENTRE,PREMISES RELATED EXPENDITURE,BUILDING SERVICE AGREEMENTS,2220,P122413-SERVICE-Waterworks Mar 2023 PPM,05/07/2023 00:00,275401,322.92,CO0199,EQUANS FM LIMITED (frmlyENGIE FM LIMITED),26/06/2023 00:00,30/07/2023 00:00,P04-2024
,LEE VALLEY WATERWORKS CENTRE,PREMISES RELATED EXPENDITURE,BUILDING SERVICE AGREEMENTS,2220,P122414-SERVICE-Waterworks Apr 2023 PPM,05/07/2023 00:00,275402,493.88,CO0199,EQUANS FM LIMITED (frmlyENGIE FM LIMITED),26/06/2023 00:00,30/07/2023 00:00,P04-2024
,LEE VALLEY WATERWORKS CENTRE,PREMISES RELATED EXPENDITURE,BUILDING SERVICE AGREEMENTS,2220,P122415-SERVICE-Waterworks May 2023 PPM,05/07/2023 00:00,275403,75.98,CO0199,EQUANS FM LIMITED (frmlyENGIE FM LIMITED),26/06/2023 00:00,30/07/2023 00:00,P04-2024
,LEE VALLEY WATERWORKS CENTRE,PREMISES RELATED EXPENDITURE,BUILDING SERVICE AGREEMENTS,2220,P122420-SERVICE-Fire alarm March - Waterworks,05/07/2023 00:00,275404,244.21,CO0199,EQUANS FM LIMITED (frmlyENGIE FM LIMITED),26/06/2023 00:00,30/07/2023 00:00,P04-2024
,LEE VALLEY WATERWORKS CENTRE,PREMISES RELATED EXPENDITURE,BUILDING SERVICE AGREEMENTS,2220,P122418-SERVICE-Fire Extinguishers - Waterworks Centre,05/07/2023 00:00,275405,237.67,CO0199,EQUANS FM LIMITED (frmlyENGIE FM LIMITED),26/06/2023 00:00,30/07/2023 00:00,P04-2024
,LEE VALLEY WATERWORKS CENTRE,PREMISES RELATED EXPENDITURE,BUILDING SERVICE AGREEMENTS,2220,P122419-SERVICE-Water Samples - Waterworks Centre,05/07/2023 00:00,275406,167.28,CO0199,EQUANS FM LIMITED (frmlyENGIE FM LIMITED),26/06/2023 00:00,30/07/2023 00:00,P04-2024
,LEE VALLEY WATERWORKS CENTRE,PREMISES RELATED EXPENDITURE,BUILDING SERVICE AGREEMENTS,2220,P122572-SERVICE-Fire Alarm PPM Waterworks - Jun 2023,17/07/2023 00:00,275608,244.21,CO0199,EQUANS FM LIMITED (frmlyENGIE FM LIMITED),26/06/2023 00:00,30/07/2023 00:00,P04-2024
,LEE VALLEY WATERWORKS CENTRE,PREMISES RELATED EXPENDITURE,BUILDING SERVICE AGREEMENTS,2220,P122544-SERVICE-Waterworks Jun 2023 PPM,12/07/2023 00:00,275648,341.92,CO0199,EQUANS FM LIMITED (frmlyENGIE FM LIMITED),26/06/2023 00:00,30/07/2023 00:00,P04-2024
,LEE VALLEY CAMPSITE,PREMISES RELATED EXPENDITURE,BUILDING SERVICE AGREEMENTS,2220,P122443-SERVICE-Annual service Compressor/Pump,04/07/2023 00:00,275324,313.39,AI0500,AIR ENERGY LIMITED,26/06/2023 00:00,30/07/2023 00:00,P04-2024
,LEE VALLEY CAMPSITE,PREMISES RELATED EXPENDITURE,BUILDING SERVICE AGREEMENTS,2220,P121646-SERVICE-June 23,17/07/2023 00:00,275641,30,VE0006,VERMINATE CITY & RURAL PEST CONTROL LTD,26/06/2023 00:00,30/07/2023 00:00,P04-2024
,LEE VALLEY CAMPSITE,PREMISES RELATED EXPENDITURE,BUILDING SERVICE AGREEMENTS,2220,P121646-SERVICE-July 23,17/07/2023 00:00,275641,40,VE0006,VERMINATE CITY & RURAL PEST CONTROL LTD,26/06/2023 00:00,30/07/2023 00:00,P04-2024
,LEE VALLEY CARAVAN PARK,PREMISES RELATED EXPENDITURE,BUILDING SERVICE AGREEMENTS,2220,P122622-SERVICE-Pest control,18/07/2023 00:00,275639,70,VE0006,VERMINATE CITY & RURAL PEST CONTROL LTD,26/06/2023 00:00,30/07/2023 00:00,P04-2024
P&V,NORTH AREA RANGERS,PREMISES RELATED EXPENDITURE,BUILDING SERVICE AGREEMENTS,2220,P121023-SERVICE-Sanitary Disposal - Old Mill & Meadows Toilet,25/07/2023 00:00,276006,3.74,PE0015,PHS GROUP PLC,26/06/2023 00:00,30/07/2023 00:00,P04-2024
P&V,GUNPOWDER PARK,PREMISES RELATED EXPENDITURE,BUILDING SERVICE AGREEMENTS,2220,P119459-SERVICE-Building Servcie Agreement - Gunpowder Park,17/07/2023 00:00,275661,118.07,CO0199,EQUANS FM LIMITED (frmlyENGIE FM LIMITED),26/06/2023 00:00,30/07/2023 00:00,P04-2024
P&V,GUNPOWDER PARK,PREMISES RELATED EXPENDITURE,BUILDING SERVICE AGREEMENTS,2220,P121073-SERVICE-Sanitary Disposal - Gunpowder Park - Public T,17/07/2023 00:00,275667,14.3,PE0015,PHS GROUP PLC,26/06/2023 00:00,30/07/2023 00:00,P04-2024
P&V,RIVER LEE COUNTRY PARK,PREMISES RELATED EXPENDITURE,BUILDING SERVICE AGREEMENTS,2220,P121071-SERVICE-Sanitary Disposal - Ranger Base Office Holyfi,04/07/2023 00:00,275227,2.94,PE0015,PHS GROUP PLC,26/06/2023 00:00,30/07/2023 00:00,P04-2024
P&V,RIVER LEE COUNTRY PARK,PREMISES RELATED EXPENDITURE,BUILDING SERVICE AGREEMENTS,2220,P121071-SERVICE-Sanitary Disposal - Ranger Base Office Holyfi,04/07/2023 00:00,275228,6.47,PE0015,PHS GROUP PLC,26/06/2023 00:00,30/07/2023 00:00,P04-2024
P&V,RIVER LEE COUNTRY PARK,PREMISES RELATED EXPENDITURE,BUILDING SERVICE AGREEMENTS,2220,P121074-SERVICE-Sanitary Disposal - Fishers Green Toilets,17/07/2023 00:00,275666,10.72,PE0015,PHS GROUP PLC,26/06/2023 00:00,30/07/2023 00:00,P04-2024
P&V,RIVER LEE COUNTRY PARK,PREMISES RELATED EXPENDITURE,BUILDING SERVICE AGREEMENTS,2220,P121071-SERVICE-Sanitary Disposal - Ranger Base Office Holyfi,30/07/2023 00:00,276235,6.47,PE0015,PHS GROUP PLC,26/06/2023 00:00,30/07/2023 00:00,P04-2024
,LV LEISURE CENTRE CAMPSITE,PREMISES RELATED EXPENDITURE,BUILDING SERVICE AGREEMENTS,2220,P122631-SERVICE-paint cement slabs,25/07/2023 00:00,274783,181.94,BQ0164,TRADE UK ACCOUNT,26/06/2023 00:00,30/07/2023 00:00,P04-2024
,LV LEISURE CENTRE CAMPSITE,PREMISES RELATED EXPENDITURE,BUILDING SERVICE AGREEMENTS,2220,"P122226-SERVICE-transmitter, delivery charge, call out",26/07/2023 00:00,275208,730.95,RV0035,RVTV SECURITY GROUP LTD,26/06/2023 00:00,30/07/2023 00:00,P04-2024
,LV LEISURE CENTRE CAMPSITE,PREMISES RELATED EXPENDITURE,BUILDING SERVICE AGREEMENTS,2220,P122630-SERVICE-full descale,25/07/2023 00:00,275211,490,CO0550,CONVERT WATER LTD,26/06/2023 00:00,30/07/2023 00:00,P04-2024
,LV LEISURE CENTRE CAMPSITE,PREMISES RELATED EXPENDITURE,BUILDING SERVICE AGREEMENTS,2220,P121117-SERVICE-Full de-scale,25/07/2023 00:00,275211,400,CO0550,CONVERT WATER LTD,26/06/2023 00:00,30/07/2023 00:00,P04-2024
,LV LEISURE CENTRE CAMPSITE,PREMISES RELATED EXPENDITURE,BUILDING SERVICE AGREEMENTS,2220,P122500-SERVICE-refrigerant check,11/07/2023 00:00,275408,130,PR0363,PRETTY COOL CUSTOMERS LTD,26/06/2023 00:00,30/07/2023 00:00,P04-2024
,LV LEISURE CENTRE CAMPSITE,PREMISES RELATED EXPENDITURE,BUILDING SERVICE AGREEMENTS,2220,P122602-SERVICE-pest control,18/07/2023 00:00,275643,70,VE0006,VERMINATE CITY & RURAL PEST CONTROL LTD,26/06/2023 00:00,30/07/2023 00:00,P04-2024
P&V,MYDDELTON HOUSE,PREMISES RELATED EXPENDITURE,BUILDING REPAIRS & MAINTENANCE,2222,P122520-SERVICE-Work on Disabled WC,11/07/2023 00:00,275553,107.11,GI0137,R & P GIBBS LIMITED,26/06/2023 00:00,30/07/2023 00:00,P04-2024
CEO,RESIDENTIAL ACCOMMODATION,PREMISES RELATED EXPENDITURE,BUILDING REPAIRS & MAINTENANCE,2222,P121557-SERVICE-Maintenance,05/07/2023 00:00,275386,179.55,CA0165,CASTLES,26/06/2023 00:00,30/07/2023 00:00,P04-2024
CEO,RESIDENTIAL ACCOMMODATION,PREMISES RELATED EXPENDITURE,BUILDING REPAIRS & MAINTENANCE,2222,P121557-SERVICE-Maintenance,05/07/2023 00:00,275387,270,CA0165,CASTLES,26/06/2023 00:00,30/07/2023 00:00,P04-2024
CEO,RESIDENTIAL ACCOMMODATION,PREMISES RELATED EXPENDITURE,BUILDING REPAIRS & MAINTENANCE,2222,P121886-SERVICE-Pest Control Connaught Close,19/07/2023 00:00,275646,70,VE0006,VERMINATE CITY & RURAL PEST CONTROL LTD,26/06/2023 00:00,30/07/2023 00:00,P04-2024
CEO,RESIDENTIAL ACCOMMODATION,PREMISES RELATED EXPENDITURE,BUILDING REPAIRS & MAINTENANCE,2222,P121557-SERVICE-Maintenance,30/07/2023 00:00,276059,250,CA0165,CASTLES,26/06/2023 00:00,30/07/2023 00:00,P04-2024
CEO,COMMERCIAL ACCOMMODATION,PREMISES RELATED EXPENDITURE,BUILDING REPAIRS & MAINTENANCE,2222,P121927-SERVICE-Heating Works - LVAC East Wing,19/07/2023 00:00,275020,585.41,GI0137,R & P GIBBS LIMITED,26/06/2023 00:00,30/07/2023 00:00,P04-2024
CEO,COMMERCIAL ACCOMMODATION,PREMISES RELATED EXPENDITURE,BUILDING REPAIRS & MAINTENANCE,2222,P121780-SERVICE-Concrete blocks Wharf Road,05/07/2023 00:00,275339,62,NA0171,NAIVETTE SERVICES LTD,26/06/2023 00:00,30/07/2023 00:00,P04-2024
CEO,COMMERCIAL ACCOMMODATION,PREMISES RELATED EXPENDITURE,BUILDING REPAIRS & MAINTENANCE,2222,P121780-SERVICE-Concrete blocks Wharf Road,30/07/2023 00:00,276272,62,NA0171,NAIVETTE SERVICES LTD,26/06/2023 00:00,30/07/2023 00:00,P04-2024
,LEE VALLEY MARINA SPRINGFIELD,PREMISES RELATED EXPENDITURE,BUILDING REPAIRS & MAINTENANCE,2222,P122020-SERVICE-To re install induction loop,05/07/2023 00:00,275200,450,DE0013,DENNIS SECURITY CENTRE,26/06/2023 00:00,30/07/2023 00:00,P04-2024
,LEE VALLEY MARINA SPRINGFIELD,PREMISES RELATED EXPENDITURE,BUILDING REPAIRS & MAINTENANCE,2222,Springfield-dig trench for electric cabl,05/07/2023 00:00,275354,-1900,MO0041,CAPSER,26/06/2023 00:00,30/07/2023 00:00,P04-2024
,LEE VALLEY MARINA SPRINGFIELD,PREMISES RELATED EXPENDITURE,BUILDING REPAIRS & MAINTENANCE,2222,Springfield-dig trench for electric cabl,05/07/2023 00:00,275354,500,MO0041,CAPSER,26/06/2023 00:00,30/07/2023 00:00,P04-2024
,LEE VALLEY MARINA SPRINGFIELD,PREMISES RELATED EXPENDITURE,BUILDING REPAIRS & MAINTENANCE,2222,Springfield-dig trench for electric cabl,05/07/2023 00:00,275354,1400,MO0041,CAPSER,26/06/2023 00:00,30/07/2023 00:00,P04-2024
,LEE VALLEY MARINA SPRINGFIELD,PREMISES RELATED EXPENDITURE,BUILDING REPAIRS & MAINTENANCE,2222,P121902-SERVICE-To dig trench for electric cable as specified,05/07/2023 00:00,275354,1900,MO0041,CAPSER,26/06/2023 00:00,30/07/2023 00:00,P04-2024
,LEE VALLEY MARINA SPRINGFIELD,PREMISES RELATED EXPENDITURE,BUILDING REPAIRS & MAINTENANCE,2222,"P122543-SERVICE-Call out's, key cutting, new locks &",19/07/2023 00:00,275676,250,DE0013,DENNIS SECURITY CENTRE,26/06/2023 00:00,30/07/2023 00:00,P04-2024
,LEE VALLEY MARINA SPRINGFIELD,PREMISES RELATED EXPENDITURE,BUILDING REPAIRS & MAINTENANCE,2222,"P122543-SERVICE-Call out's, key cutting, new locks &",19/07/2023 00:00,275677,52.25,DE0013,DENNIS SECURITY CENTRE,26/06/2023 00:00,30/07/2023 00:00,P04-2024
,LEE VALLEY MARINA STANSTEAD,PREMISES RELATED EXPENDITURE,BUILDING REPAIRS & MAINTENANCE,2222,P122576-SERVICE-2 x powder extinguishers,25/07/2023 00:00,275797,116.83,TJ0009,T.J.FIRE & SECURITY,26/06/2023 00:00,30/07/2023 00:00,P04-2024
,LEE VALLEY MARINA STANSTEAD,PREMISES RELATED EXPENDITURE,BUILDING REPAIRS & MAINTENANCE,2222,P122329-SERVICE-pump out service,25/07/2023 00:00,275852,532.25,LE0059,LEE SANITATION LTD,26/06/2023 00:00,30/07/2023 00:00,P04-2024
,LEE VALLEY WATERWORKS CENTRE,PREMISES RELATED EXPENDITURE,BUILDING REPAIRS & MAINTENANCE,2222,P121757-SERVICE-Replace Urinal Flush at Waterworks Centre,04/07/2023 00:00,275047,288.03,CO0199,EQUANS FM LIMITED (frmlyENGIE FM LIMITED),26/06/2023 00:00,30/07/2023 00:00,P04-2024
P&V,LEE VALLEY FARM HOLYFIELDHALL,PREMISES RELATED EXPENDITURE,BUILDING REPAIRS & MAINTENANCE,2222,P122474-SERVICE-Disconnect Milk Machine & Sewage Pump,11/07/2023 00:00,275150,62,BR0018,BRADSHAW ELECTRICAL LIMITED,26/06/2023 00:00,30/07/2023 00:00,P04-2024
P&V,LEE VALLEY FARM HOLYFIELDHALL,PREMISES RELATED EXPENDITURE,BUILDING REPAIRS & MAINTENANCE,2222,P122675-SERVICE-Maintenance Renewal,25/07/2023 00:00,275868,485,PS0429,PSL AUTOMATION,26/06/2023 00:00,30/07/2023 00:00,P04-2024
,LEE VALLEY CAMPSITE,PREMISES RELATED EXPENDITURE,BUILDING REPAIRS & MAINTENANCE,2222,P122511-SERVICE-Electrical Remedial works,17/07/2023 00:00,275631,1885,BR0018,BRADSHAW ELECTRICAL LIMITED,26/06/2023 00:00,30/07/2023 00:00,P04-2024
,LEE VALLEY CAMPSITE,PREMISES RELATED EXPENDITURE,BUILDING REPAIRS & MAINTENANCE,2222,P122612-SERVICE-Ash tree branches removal,25/07/2023 00:00,275871,450,PA0222,PARKIN & PARKER TREE SPECIALISTS,26/06/2023 00:00,30/07/2023 00:00,P04-2024
P&V,MYDDLETON HSE HERITAGE CENTRE,PREMISES RELATED EXPENDITURE,BUILDING REPAIRS & MAINTENANCE,2222,P122792-SERVICE-Replace Light Fittings in External Toilets &,30/07/2023 00:00,276280,725,BR0018,BRADSHAW ELECTRICAL LIMITED,26/06/2023 00:00,30/07/2023 00:00,P04-2024
P&V,NORTH AREA RANGERS,PREMISES RELATED EXPENDITURE,BUILDING REPAIRS & MAINTENANCE,2222,P122256-SERVICE-Barn Lighting at Holyfield,30/07/2023 00:00,276058,1480,RE0094,REACT 2 IT (BUILDING & REFURBISHMENT) LTD,26/06/2023 00:00,30/07/2023 00:00,P04-2024
P&V,SOUTH AREA RANGERS,PREMISES RELATED EXPENDITURE,BUILDING REPAIRS & MAINTENANCE,2222,P122228-SERVICE-Actuator to Valve for Bed 15 - Waterworks,25/07/2023 00:00,275993,599.83,CO0199,EQUANS FM LIMITED (frmlyENGIE FM LIMITED),26/06/2023 00:00,30/07/2023 00:00,P04-2024
P&V,WILDLIFE DISCOVERY CENTRE,PREMISES RELATED EXPENDITURE,BUILDING REPAIRS & MAINTENANCE,2222,P121988-SERVICE-Lift Repairs at Wildlife Discovery Centre,12/07/2023 00:00,275610,1180,RE0094,REACT 2 IT (BUILDING & REFURBISHMENT) LTD,26/06/2023 00:00,30/07/2023 00:00,P04-2024
P&V,WILDLIFE DISCOVERY CENTRE,PREMISES RELATED EXPENDITURE,BUILDING REPAIRS & MAINTENANCE,2222,P122160-SERVICE-Lift Call Out at Wildlife Discovery Centre,17/07/2023 00:00,275673,100,GA0448,GARTEC,26/06/2023 00:00,30/07/2023 00:00,P04-2024
P&V,GUNPOWDER PARK,PREMISES RELATED EXPENDITURE,BUILDING REPAIRS & MAINTENANCE,2222,P122001-SERVICE-Water Sampling at Gunpowder Park,11/07/2023 00:00,275545,205.85,CO0199,EQUANS FM LIMITED (frmlyENGIE FM LIMITED),26/06/2023 00:00,30/07/2023 00:00,P04-2024
P&V,RIVER LEE COUNTRY PARK,PREMISES RELATED EXPENDITURE,BUILDING REPAIRS & MAINTENANCE,2222,P122215-SERVICE-1x Caution Biological Hazard Signs,11/07/2023 00:00,274820,10.82,SE0018,BRADY CORPORATION LIMITED/SETON,26/06/2023 00:00,30/07/2023 00:00,P04-2024
P&V,RIVER LEE COUNTRY PARK,PREMISES RELATED EXPENDITURE,BUILDING REPAIRS & MAINTENANCE,2222,P122215-SERVICE-1x AED Automated External Defibrillator Signs,11/07/2023 00:00,274820,10.76,SE0018,BRADY CORPORATION LIMITED/SETON,26/06/2023 00:00,30/07/2023 00:00,P04-2024
P&V,RIVER LEE COUNTRY PARK,PREMISES RELATED EXPENDITURE,BUILDING REPAIRS & MAINTENANCE,2222,P122215-SERVICE-4x Flammable / No Smoking / No Naked Light,11/07/2023 00:00,274820,146.72,SE0018,BRADY CORPORATION LIMITED/SETON,26/06/2023 00:00,30/07/2023 00:00,P04-2024
P&V,RIVER LEE COUNTRY PARK,PREMISES RELATED EXPENDITURE,BUILDING REPAIRS & MAINTENANCE,2222,P122215-SERVICE-1x Caution Chemical Store Signs,11/07/2023 00:00,274820,5.04,SE0018,BRADY CORPORATION LIMITED/SETON,26/06/2023 00:00,30/07/2023 00:00,P04-2024
,LV LEISURE CENTRE CAMPSITE,PREMISES RELATED EXPENDITURE,BUILDING REPAIRS & MAINTENANCE,2222,P114822-SERVICE-Static 1 door llock,11/07/2023 00:00,275207,127,BA0269,BARNET LOCK CENTRE,26/06/2023 00:00,30/07/2023 00:00,P04-2024
,LV LEISURE CENTRE CAMPSITE,PREMISES RELATED EXPENDITURE,BUILDING REPAIRS & MAINTENANCE,2222,P122730-SERVICE-security cctv,26/07/2023 00:00,275208,107,RV0035,RVTV SECURITY GROUP LTD,26/06/2023 00:00,30/07/2023 00:00,P04-2024
,LV LEISURE CENTRE CAMPSITE,PREMISES RELATED EXPENDITURE,BUILDING REPAIRS & MAINTENANCE,2222,P122601-SERVICE-blocked drains,17/07/2023 00:00,275788,250,CO0550,CONVERT WATER LTD,26/06/2023 00:00,30/07/2023 00:00,P04-2024
,LV LEISURE CENTRE CAMPSITE,PREMISES RELATED EXPENDITURE,BUILDING REPAIRS & MAINTENANCE,2222,P122551-SERVICE-blocked drains and urinals,25/07/2023 00:00,275792,190,SO0400,SOUTHERN GREEN SERVICES LIMITED,26/06/2023 00:00,30/07/2023 00:00,P04-2024
,LV LEISURE CENTRE CAMPSITE,PREMISES RELATED EXPENDITURE,BUILDING REPAIRS & MAINTENANCE,2222,P122550-SERVICE-flooded ladies washroom,25/07/2023 00:00,275793,395,SO0400,SOUTHERN GREEN SERVICES LIMITED,26/06/2023 00:00,30/07/2023 00:00,P04-2024
,LV LEISURE CENTRE CAMPSITE,PREMISES RELATED EXPENDITURE,BUILDING REPAIRS & MAINTENANCE,2222,P122549-SERVICE-Leaking field tap,25/07/2023 00:00,275794,130,SO0400,SOUTHERN GREEN SERVICES LIMITED,26/06/2023 00:00,30/07/2023 00:00,P04-2024
,LV LEISURE CENTRE CAMPSITE,PREMISES RELATED EXPENDITURE,BUILDING REPAIRS & MAINTENANCE,2222,P122548-SERVICE-Alterations for H&S,25/07/2023 00:00,275795,55,SO0400,SOUTHERN GREEN SERVICES LIMITED,26/06/2023 00:00,30/07/2023 00:00,P04-2024
,LV LEISURE CENTRE CAMPSITE,PREMISES RELATED EXPENDITURE,BUILDING REPAIRS & MAINTENANCE,2222,P122547-SERVICE-Alterations to pipework and repair leak.,25/07/2023 00:00,275796,820,SO0400,SOUTHERN GREEN SERVICES LIMITED,26/06/2023 00:00,30/07/2023 00:00,P04-2024
,LV LEISURE CENTRE CAMPSITE,PREMISES RELATED EXPENDITURE,BUILDING REPAIRS & MAINTENANCE,2222,P122761-SERVICE-field socket tests,30/07/2023 00:00,275982,2800,BR0018,BRADSHAW ELECTRICAL LIMITED,26/06/2023 00:00,30/07/2023 00:00,P04-2024
,LV LEISURE CENTRE CAMPSITE,PREMISES RELATED EXPENDITURE,BUILDING REPAIRS & MAINTENANCE,2222,P122762-SERVICE-emergency lighting testing,30/07/2023 00:00,275984,1725,BR0018,BRADSHAW ELECTRICAL LIMITED,26/06/2023 00:00,30/07/2023 00:00,P04-2024
,LV LEISURE CENTRE CAMPSITE,PREMISES RELATED EXPENDITURE,BUILDING REPAIRS & MAINTENANCE,2222,P122763-SERVICE-cctv power laundry room,30/07/2023 00:00,275985,175,BR0018,BRADSHAW ELECTRICAL LIMITED,26/06/2023 00:00,30/07/2023 00:00,P04-2024
CEO,LVLC SERVICE CHARGE,PREMISES RELATED EXPENDITURE,BUILDING REPAIRS & MAINTENANCE,2222,P122326-SERVICE-Repair of Height Barrier Due to Damage,05/07/2023 00:00,275356,986,PS0429,PSL AUTOMATION,26/06/2023 00:00,30/07/2023 00:00,P04-2024
CEO,LVLC SERVICE CHARGE,PREMISES RELATED EXPENDITURE,BUILDING REPAIRS & MAINTENANCE,2222,P121734-SERVICE-Picketts Lock Fly Tip Removal,05/07/2023 00:00,275368,974.64,GL0214,GLENDALE GROUNDS MANAGEMENT LIMITED,26/06/2023 00:00,30/07/2023 00:00,P04-2024
CEO,LVLC SERVICE CHARGE,PREMISES RELATED EXPENDITURE,BUILDING REPAIRS & MAINTENANCE,2222,P122394-SERVICE-Car Parking signs,12/07/2023 00:00,275654,565,SI0434,SIGNS & IMAGING ( SOUTHEAST) LIMITED,26/06/2023 00:00,30/07/2023 00:00,P04-2024
P&V,RIVER LEE COUNTRY PARK,SUPPLIES AND SERVICES,PARK SIGNS AND BOARDS,2236,P122486-SERVICE-Repair Height Barrier Broxbourne Riverside /C,25/07/2023 00:00,275842,290,BA0658,BASE FABRICATIONS LTD,26/06/2023 00:00,30/07/2023 00:00,P04-2024
CEO,RESIDENTIAL ACCOMMODATION,EXPENDITURE FROM REPAIRS FUND,EXPENDITURE FROM REPAIRS FUND,2240,Aquaside-rear lobby worke,05/07/2023 00:00,275049,995,KE0023,KENDALL & SONS LIMITED,26/06/2023 00:00,30/07/2023 00:00,P04-2024
CEO,RESIDENTIAL ACCOMMODATION,EXPENDITURE FROM REPAIRS FUND,EXPENDITURE FROM REPAIRS FUND,2240,P122069-SERVICE-Aquaside Rear Lobby Works,05/07/2023 00:00,275049,5077,KE0023,KENDALL & SONS LIMITED,26/06/2023 00:00,30/07/2023 00:00,P04-2024
CEO,RESIDENTIAL ACCOMMODATION,EXPENDITURE FROM REPAIRS FUND,EXPENDITURE FROM REPAIRS FUND,2240,Aquaside-rear lobby worke,05/07/2023 00:00,275049,4082,KE0023,KENDALL & SONS LIMITED,26/06/2023 00:00,30/07/2023 00:00,P04-2024
CEO,RESIDENTIAL ACCOMMODATION,EXPENDITURE FROM REPAIRS FUND,EXPENDITURE FROM REPAIRS FUND,2240,Aquaside-rear lobby worke,05/07/2023 00:00,275049,-5077,KE0023,KENDALL & SONS LIMITED,26/06/2023 00:00,30/07/2023 00:00,P04-2024
CEO,COMMERCIAL ACCOMMODATION,PREMISES RELATED EXPENDITURE,EAST HALE ALLOTMENTS,2261,P122046-SERVICE-Grass Cutting,05/07/2023 00:00,275369,405,GL0214,GLENDALE GROUNDS MANAGEMENT LIMITED,26/06/2023 00:00,30/07/2023 00:00,P04-2024
CEO,COMMERCIAL ACCOMMODATION,PREMISES RELATED EXPENDITURE,EAST HALE ALLOTMENTS,2261,P121887-SERVICE-Allotment Bins,05/07/2023 00:00,275388,287.04,CL0037,VEOLIA ES (UK) LTD,26/06/2023 00:00,30/07/2023 00:00,P04-2024
CEO,COMMERCIAL ACCOMMODATION,PREMISES RELATED EXPENDITURE,EAST HALE ALLOTMENTS,2261,P121887-SERVICE-Allotment Bins,05/07/2023 00:00,275389,30.24,CL0037,VEOLIA ES (UK) LTD,26/06/2023 00:00,30/07/2023 00:00,P04-2024
P&V,MYDDELTON HOUSE,PREMISES RELATED EXPENDITURE,ENERGY COSTS (ELECTRICITY),2332,MD Hse- electric supply-June23,17/07/2023 00:00,275763,2708.52,KE0007,KENT COUNTY COUNCIL (KCS),26/06/2023 00:00,30/07/2023 00:00,P04-2024
CEO,RESIDENTIAL ACCOMMODATION,PREMISES RELATED EXPENDITURE,ENERGY COSTS (ELECTRICITY),2332,E-ON NEXT ENERGY LTD,19/07/2023 00:00,274755,29.89,EO0398,E-ON NEXT ENERGY LTD,26/06/2023 00:00,30/07/2023 00:00,P04-2024
CEO,RESIDENTIAL ACCOMMODATION,PREMISES RELATED EXPENDITURE,ENERGY COSTS (ELECTRICITY),2332,LV Forge-Electric,19/07/2023 00:00,275563,30,EO0398,E-ON NEXT ENERGY LTD,26/06/2023 00:00,30/07/2023 00:00,P04-2024
CEO,RESIDENTIAL ACCOMMODATION,PREMISES RELATED EXPENDITURE,ENERGY COSTS (ELECTRICITY),2332,E-ON NEXT ENERGY LTD,19/07/2023 00:00,275579,24.12,EO0419,E-ON NEXT ENERGY LTD,26/06/2023 00:00,30/07/2023 00:00,P04-2024
CEO,RESIDENTIAL ACCOMMODATION,PREMISES RELATED EXPENDITURE,ENERGY COSTS (ELECTRICITY),2332,E-ON NEXT ENERGY LTD,19/07/2023 00:00,275580,75.66,EO0420,E-ON NEXT ENERGY LTD,26/06/2023 00:00,30/07/2023 00:00,P04-2024
CEO,RESIDENTIAL ACCOMMODATION,PREMISES RELATED EXPENDITURE,ENERGY COSTS (ELECTRICITY),2332,LV Forge-landlord supply-April23,30/07/2023 00:00,275960,23.76,EO0419,E-ON NEXT ENERGY LTD,26/06/2023 00:00,30/07/2023 00:00,P04-2024
CEO,COMMERCIAL ACCOMMODATION,PREMISES RELATED EXPENDITURE,ENERGY COSTS (ELECTRICITY),2332,E-ON NEXT ENERGY LTD,19/07/2023 00:00,275844,15,EO0418,E-ON NEXT ENERGY LTD,26/06/2023 00:00,30/07/2023 00:00,P04-2024
,LEE VALLEY MARINA SPRINGFIELD,PREMISES RELATED EXPENDITURE,ENERGY COSTS (ELECTRICITY),2332,Springfield-electric supply-June 23,19/07/2023 00:00,275759,2920.11,KE0007,KENT COUNTY COUNCIL (KCS),26/06/2023 00:00,30/07/2023 00:00,P04-2024
,LEE VALLEY WATERWORKS CENTRE,PREMISES RELATED EXPENDITURE,ENERGY COSTS (ELECTRICITY),2332,Waterworks-electric supply-June23,18/07/2023 00:00,275831,508.26,NP0123,NPOWER LIMITED,26/06/2023 00:00,30/07/2023 00:00,P04-2024
P&V,LEE VALLEY FARM HOLYFIELDHALL,PREMISES RELATED EXPENDITURE,ENERGY COSTS (ELECTRICITY),2332,07/12/22 - 09/03/23,04/07/2023 00:00,272054,144.81,BR0030,BRITISH GAS TRADING LTD,26/06/2023 00:00,30/07/2023 00:00,P04-2024
P&V,LEE VALLEY FARM HOLYFIELDHALL,PREMISES RELATED EXPENDITURE,ENERGY COSTS (ELECTRICITY),2332,07/12/22 - 09/03/23,04/07/2023 00:00,272054,-267,BR0030,BRITISH GAS TRADING LTD,26/06/2023 00:00,30/07/2023 00:00,P04-2024
P&V,LEE VALLEY FARM HOLYFIELDHALL,PREMISES RELATED EXPENDITURE,ENERGY COSTS (ELECTRICITY),2332,Holyfield-Alternative Fuel Pay,05/07/2023 00:00,275133,-150,KE0007,KENT COUNTY COUNCIL (KCS),26/06/2023 00:00,30/07/2023 00:00,P04-2024
P&V,LEE VALLEY FARM HOLYFIELDHALL,PREMISES RELATED EXPENDITURE,ENERGY COSTS (ELECTRICITY),2332,AFP-MPAN 1013034091499,05/07/2023 00:00,275366,-150,KE0007,KENT COUNTY COUNCIL (KCS),26/06/2023 00:00,30/07/2023 00:00,P04-2024
,LEE VALLEY CAMPSITE,PREMISES RELATED EXPENDITURE,ENERGY COSTS (ELECTRICITY),2332,Sewardstone-electric supply-June23,17/07/2023 00:00,275757,1886.57,KE0007,KENT COUNTY COUNCIL (KCS),26/06/2023 00:00,30/07/2023 00:00,P04-2024
,LEE VALLEY CAMPSITE,PREMISES RELATED EXPENDITURE,ENERGY COSTS (ELECTRICITY),2332,Sewardstone-electric supply-June23,17/07/2023 00:00,275760,2659.94,KE0007,KENT COUNTY COUNCIL (KCS),26/06/2023 00:00,30/07/2023 00:00,P04-2024
,LEE VALLEY CARAVAN PARK,PREMISES RELATED EXPENDITURE,ENERGY COSTS (ELECTRICITY),2332,DW-electric supply-June 23,17/07/2023 00:00,275758,9345.28,KE0007,KENT COUNTY COUNCIL (KCS),26/06/2023 00:00,30/07/2023 00:00,P04-2024
P&V,GUNPOWDER PARK,PREMISES RELATED EXPENDITURE,ENERGY COSTS (ELECTRICITY),2332,Field Station-electric supply-June23,17/07/2023 00:00,275764,564.87,KE0007,KENT COUNTY COUNCIL (KCS),26/06/2023 00:00,30/07/2023 00:00,P04-2024
P&V,QUEEN ELIZABETH OLYMPIC PARK,PREMISES RELATED EXPENDITURE,ENERGY COSTS (ELECTRICITY),2332,Velo-E20-MPAN 5201-June21,17/07/2023 00:00,275761,0.99,KE0007,KENT COUNTY COUNCIL (KCS),26/06/2023 00:00,30/07/2023 00:00,P04-2024
P&V,QUEEN ELIZABETH OLYMPIC PARK,PREMISES RELATED EXPENDITURE,ENERGY COSTS (ELECTRICITY),2332,Velo-E20-MPAN 5201-June21,17/07/2023 00:00,275761,78.67,KE0007,KENT COUNTY COUNCIL (KCS),26/06/2023 00:00,30/07/2023 00:00,P04-2024
P&V,QUEEN ELIZABETH OLYMPIC PARK,PREMISES RELATED EXPENDITURE,ENERGY COSTS (ELECTRICITY),2332,Velo-MPAN 1204-June 23,17/07/2023 00:00,275762,128.26,KE0007,KENT COUNTY COUNCIL (KCS),26/06/2023 00:00,30/07/2023 00:00,P04-2024
P&V,QUEEN ELIZABETH OLYMPIC PARK,PREMISES RELATED EXPENDITURE,ENERGY COSTS (ELECTRICITY),2332,Velopark-MPAN 1202-June23,17/07/2023 00:00,275787,95.71,KE0007,KENT COUNTY COUNCIL (KCS),26/06/2023 00:00,30/07/2023 00:00,P04-2024
P&V,CAR PARK INCOME,PREMISES RELATED EXPENDITURE,ENERGY COSTS (ELECTRICITY),2332,Cornmill Meadow-electric supply-June23,18/07/2023 00:00,275832,41.76,NP0123,NPOWER LIMITED,26/06/2023 00:00,30/07/2023 00:00,P04-2024
P&V,CAR PARK INCOME,PREMISES RELATED EXPENDITURE,ENERGY COSTS (ELECTRICITY),2332,Clayton Hill-electric supply-June23,18/07/2023 00:00,275833,32.21,NP0123,NPOWER LIMITED,26/06/2023 00:00,30/07/2023 00:00,P04-2024
P&V,FORMER LV LIDO SITE,PREMISES RELATED EXPENDITURE,ENERGY COSTS (ELECTRICITY),2332,LV Leisure Pool-May23,30/07/2023 00:00,276162,66.59,KE0007,KENT COUNTY COUNCIL (KCS),26/06/2023 00:00,30/07/2023 00:00,P04-2024
P&V,FORMER LV LIDO SITE,PREMISES RELATED EXPENDITURE,ENERGY COSTS (ELECTRICITY),2332,LV Leisure Pool-April23,30/07/2023 00:00,276163,65.01,KE0007,KENT COUNTY COUNCIL (KCS),26/06/2023 00:00,30/07/2023 00:00,P04-2024
P&V,FORMER LV LIDO SITE,PREMISES RELATED EXPENDITURE,ENERGY COSTS (ELECTRICITY),2332,LV Leisure Pool-March23,30/07/2023 00:00,276164,66.78,KE0007,KENT COUNTY COUNCIL (KCS),26/06/2023 00:00,30/07/2023 00:00,P04-2024
P&V,FORMER LV LIDO SITE,PREMISES RELATED EXPENDITURE,ENERGY COSTS (ELECTRICITY),2332,LV Leisure Pool-Feb23,30/07/2023 00:00,276165,60.02,KE0007,KENT COUNTY COUNCIL (KCS),26/06/2023 00:00,30/07/2023 00:00,P04-2024
P&V,FORMER LV LIDO SITE,PREMISES RELATED EXPENDITURE,ENERGY COSTS (ELECTRICITY),2332,LV Leisure Pool-Jan23,30/07/2023 00:00,276166,66.67,KE0007,KENT COUNTY COUNCIL (KCS),26/06/2023 00:00,30/07/2023 00:00,P04-2024
P&V,FORMER LV LIDO SITE,PREMISES RELATED EXPENDITURE,ENERGY COSTS (ELECTRICITY),2332,LV Leisure Pool-Dec22,30/07/2023 00:00,276167,66.39,KE0007,KENT COUNTY COUNCIL (KCS),26/06/2023 00:00,30/07/2023 00:00,P04-2024
P&V,FORMER LV LIDO SITE,PREMISES RELATED EXPENDITURE,ENERGY COSTS (ELECTRICITY),2332,LV Leisure Pool-Nov22,30/07/2023 00:00,276168,67.43,KE0007,KENT COUNTY COUNCIL (KCS),26/06/2023 00:00,30/07/2023 00:00,P04-2024
P&V,FORMER LV LIDO SITE,PREMISES RELATED EXPENDITURE,ENERGY COSTS (ELECTRICITY),2332,LV Leisure Pool-Oct22,30/07/2023 00:00,276169,69.23,KE0007,KENT COUNTY COUNCIL (KCS),26/06/2023 00:00,30/07/2023 00:00,P04-2024
P&V,FORMER LV LIDO SITE,PREMISES RELATED EXPENDITURE,ENERGY COSTS (ELECTRICITY),2332,LV Leisure Pool-Sept22,30/07/2023 00:00,276170,32.44,KE0007,KENT COUNTY COUNCIL (KCS),26/06/2023 00:00,30/07/2023 00:00,P04-2024
P&V,FORMER LV LIDO SITE,PREMISES RELATED EXPENDITURE,ENERGY COSTS (ELECTRICITY),2332,LV Leisure Pool-Aug22,30/07/2023 00:00,276171,32.11,KE0007,KENT COUNTY COUNCIL (KCS),26/06/2023 00:00,30/07/2023 00:00,P04-2024
P&V,FORMER LV LIDO SITE,PREMISES RELATED EXPENDITURE,ENERGY COSTS (ELECTRICITY),2332,LV Leisure Pool-July22,30/07/2023 00:00,276172,34,KE0007,KENT COUNTY COUNCIL (KCS),26/06/2023 00:00,30/07/2023 00:00,P04-2024
P&V,FORMER LV LIDO SITE,PREMISES RELATED EXPENDITURE,ENERGY COSTS (ELECTRICITY),2332,LV Leisure Pool-June22,30/07/2023 00:00,276173,31.75,KE0007,KENT COUNTY COUNCIL (KCS),26/06/2023 00:00,30/07/2023 00:00,P04-2024
P&V,FORMER LV LIDO SITE,PREMISES RELATED EXPENDITURE,ENERGY COSTS (ELECTRICITY),2332,LV Leisure Pool-May22,30/07/2023 00:00,276174,33.29,KE0007,KENT COUNTY COUNCIL (KCS),26/06/2023 00:00,30/07/2023 00:00,P04-2024
P&V,FORMER LV LIDO SITE,PREMISES RELATED EXPENDITURE,ENERGY COSTS (ELECTRICITY),2332,LV Leisure Pool-April22,30/07/2023 00:00,276175,37.6,KE0007,KENT COUNTY COUNCIL (KCS),26/06/2023 00:00,30/07/2023 00:00,P04-2024
P&V,FORMER LV LIDO SITE,PREMISES RELATED EXPENDITURE,ENERGY COSTS (ELECTRICITY),2332,LV Leisure Pool-March22,30/07/2023 00:00,276176,34.49,KE0007,KENT COUNTY COUNCIL (KCS),26/06/2023 00:00,30/07/2023 00:00,P04-2024
P&V,FORMER LV LIDO SITE,PREMISES RELATED EXPENDITURE,ENERGY COSTS (ELECTRICITY),2332,LV Leisure Pool-Feb22,30/07/2023 00:00,276177,29.79,KE0007,KENT COUNTY COUNCIL (KCS),26/06/2023 00:00,30/07/2023 00:00,P04-2024
P&V,FORMER LV LIDO SITE,PREMISES RELATED EXPENDITURE,ENERGY COSTS (ELECTRICITY),2332,LV Lesiure Pool-see Comp ref 254816,30/07/2023 00:00,276204,-809.23,KE0007,KENT COUNTY COUNCIL (KCS),26/06/2023 00:00,30/07/2023 00:00,P04-2024
P&V,FORMER LV LIDO SITE,PREMISES RELATED EXPENDITURE,ENERGY COSTS (ELECTRICITY),2332,LV Leisure Pool-Sept21,30/07/2023 00:00,276205,33.43,KE0007,KENT COUNTY COUNCIL (KCS),26/06/2023 00:00,30/07/2023 00:00,P04-2024
P&V,FORMER LV LIDO SITE,PREMISES RELATED EXPENDITURE,ENERGY COSTS (ELECTRICITY),2332,LV Leisure Pool-See Comp ref 261637,30/07/2023 00:00,276206,-854.06,KE0007,KENT COUNTY COUNCIL (KCS),26/06/2023 00:00,30/07/2023 00:00,P04-2024
P&V,FORMER LV LIDO SITE,PREMISES RELATED EXPENDITURE,ENERGY COSTS (ELECTRICITY),2332,LV Leisure Pool-Oct21,30/07/2023 00:00,276207,36.02,KE0007,KENT COUNTY COUNCIL (KCS),26/06/2023 00:00,30/07/2023 00:00,P04-2024
P&V,FORMER LV LIDO SITE,PREMISES RELATED EXPENDITURE,ENERGY COSTS (ELECTRICITY),2332,LV Leisure Pool-See Comp ref 261638,30/07/2023 00:00,276208,-451.64,KE0007,KENT COUNTY COUNCIL (KCS),26/06/2023 00:00,30/07/2023 00:00,P04-2024
P&V,FORMER LV LIDO SITE,PREMISES RELATED EXPENDITURE,ENERGY COSTS (ELECTRICITY),2332,LV Leisure Pool-Nov21,30/07/2023 00:00,276209,44.21,KE0007,KENT COUNTY COUNCIL (KCS),26/06/2023 00:00,30/07/2023 00:00,P04-2024
P&V,FORMER LV LIDO SITE,PREMISES RELATED EXPENDITURE,ENERGY COSTS (ELECTRICITY),2332,LV Leisure Pool-See Comp ref 261639,30/07/2023 00:00,276210,-936.63,KE0007,KENT COUNTY COUNCIL (KCS),26/06/2023 00:00,30/07/2023 00:00,P04-2024
P&V,FORMER LV LIDO SITE,PREMISES RELATED EXPENDITURE,ENERGY COSTS (ELECTRICITY),2332,LV Leisure Poll-Dec21,30/07/2023 00:00,276211,32.45,KE0007,KENT COUNTY COUNCIL (KCS),26/06/2023 00:00,30/07/2023 00:00,P04-2024
P&V,FORMER LV LIDO SITE,PREMISES RELATED EXPENDITURE,ENERGY COSTS (ELECTRICITY),2332,LV Leisure Pool-See Comp ref 261640,30/07/2023 00:00,276212,-997.18,KE0007,KENT COUNTY COUNCIL (KCS),26/06/2023 00:00,30/07/2023 00:00,P04-2024
P&V,FORMER LV LIDO SITE,PREMISES RELATED EXPENDITURE,ENERGY COSTS (ELECTRICITY),2332,LV Leisure Pool-Jan22,30/07/2023 00:00,276213,33.37,KE0007,KENT COUNTY COUNCIL (KCS),26/06/2023 00:00,30/07/2023 00:00,P04-2024
,LV LEISURE CENTRE CAMPSITE,PREMISES RELATED EXPENDITURE,ENERGY COSTS (ELECTRICITY),2332,Edmonton-electric supply June23,24/07/2023 00:00,275834,6810.31,NP0123,NPOWER LIMITED,26/06/2023 00:00,30/07/2023 00:00,P04-2024
CEO,RESIDENTIAL ACCOMMODATION,PREMISES RELATED EXPENDITURE,ENERGY COSTS (GAS),2333,Gas meter-6450916 18May-17June23,05/07/2023 00:00,275126,10.13,BR0654,BRITISH GAS TRADING LTD,26/06/2023 00:00,30/07/2023 00:00,P04-2024
CEO,RESIDENTIAL ACCOMMODATION,PREMISES RELATED EXPENDITURE,ENERGY COSTS (GAS),2333,BRITISH GAS TRADING LTD,30/07/2023 00:00,276012,9.8,BR0654,BRITISH GAS TRADING LTD,26/06/2023 00:00,30/07/2023 00:00,P04-2024
,LEE VALLEY MARINA SPRINGFIELD,PREMISES RELATED EXPENDITURE,ENERGY COSTS (GAS),2333,May-23,12/07/2023 00:00,275587,572.42,KE0007,KENT COUNTY COUNCIL (KCS),26/06/2023 00:00,30/07/2023 00:00,P04-2024
,LEE VALLEY MARINA SPRINGFIELD,PREMISES RELATED EXPENDITURE,ENERGY COSTS (GAS),2333,Springfield-gas supply-June23,19/07/2023 00:00,275830,306.75,KE0007,KENT COUNTY COUNCIL (KCS),26/06/2023 00:00,30/07/2023 00:00,P04-2024
,LEE VALLEY MARINA STANSTEAD,PREMISES RELATED EXPENDITURE,ENERGY COSTS (GAS),2333,Stanstead-Gas supple-June 23,24/07/2023 00:00,275825,175.65,KE0007,KENT COUNTY COUNCIL (KCS),26/06/2023 00:00,30/07/2023 00:00,P04-2024
,LEE VALLEY MARINA STANSTEAD,PREMISES RELATED EXPENDITURE,ENERGY COSTS (GAS),2333,Stanstead-gas supply-June23,24/07/2023 00:00,275828,121.15,KE0007,KENT COUNTY COUNCIL (KCS),26/06/2023 00:00,30/07/2023 00:00,P04-2024
,LEE VALLEY WATERWORKS CENTRE,PREMISES RELATED EXPENDITURE,ENERGY COSTS (GAS),2333,May-23,12/07/2023 00:00,274814,791.92,KE0007,KENT COUNTY COUNCIL (KCS),26/06/2023 00:00,30/07/2023 00:00,P04-2024
,LEE VALLEY WATERWORKS CENTRE,PREMISES RELATED EXPENDITURE,ENERGY COSTS (GAS),2333,Waterworks-gas supple-June23,18/07/2023 00:00,275826,609.3,KE0007,KENT COUNTY COUNCIL (KCS),26/06/2023 00:00,30/07/2023 00:00,P04-2024
,LEE VALLEY CAMPSITE,PREMISES RELATED EXPENDITURE,ENERGY COSTS (GAS),2333,Sewardstone-gas supply-June23,24/07/2023 00:00,275829,543.43,KE0007,KENT COUNTY COUNCIL (KCS),26/06/2023 00:00,30/07/2023 00:00,P04-2024
,LEE VALLEY CARAVAN PARK,PREMISES RELATED EXPENDITURE,ENERGY COSTS (GAS),2333,P122240-SERVICE-Gas delivery,04/07/2023 00:00,274961,-432.43,AV0327,AVANTI GAS LIMITED,26/06/2023 00:00,30/07/2023 00:00,P04-2024
,LEE VALLEY CARAVAN PARK,PREMISES RELATED EXPENDITURE,ENERGY COSTS (GAS),2333,P121701-SERVICE-Standing charge,04/07/2023 00:00,274990,-60,AV0327,AVANTI GAS LIMITED,26/06/2023 00:00,30/07/2023 00:00,P04-2024
P&V,GUNPOWDER PARK,PREMISES RELATED EXPENDITURE,ENERGY COSTS (GAS),2333,Field station-gas supply-June23,18/07/2023 00:00,275838,39.07,KE0007,KENT COUNTY COUNCIL (KCS),26/06/2023 00:00,30/07/2023 00:00,P04-2024
,LV LEISURE CENTRE CAMPSITE,PREMISES RELATED EXPENDITURE,ENERGY COSTS (GAS),2333,Edmonton-gas supply-June23,24/07/2023 00:00,275827,979.82,KE0007,KENT COUNTY COUNCIL (KCS),26/06/2023 00:00,30/07/2023 00:00,P04-2024
P&V,MYDDELTON HOUSE,PREMISES RELATED EXPENDITURE,ENERGY COSTS (BIOMASS FUEL),2334,P122596-SERVICE-Wood Pellets,17/07/2023 00:00,275769,1384.6,BA0631,BALCAS TIMBER LTD/BALCAS ENERGY,26/06/2023 00:00,30/07/2023 00:00,P04-2024
CEO,RESIDENTIAL ACCOMMODATION,PREMISES RELATED EXPENDITURE,PROPERTY MANAGEMT/LETTING FEES,2447,P122647-SERVICE-1 Connaught Close Landlord Fees,25/07/2023 00:00,275155,1980,CA0165,CASTLES,26/06/2023 00:00,30/07/2023 00:00,P04-2024
CEO,RESIDENTIAL ACCOMMODATION,PREMISES RELATED EXPENDITURE,PROPERTY MANAGEMT/LETTING FEES,2447,P122648-SERVICE-1 Connaught Close Landlord Warranty,25/07/2023 00:00,275156,336.6,CA0165,CASTLES,26/06/2023 00:00,30/07/2023 00:00,P04-2024
CEO,RESIDENTIAL ACCOMMODATION,PREMISES RELATED EXPENDITURE,PROPERTY MANAGEMT/LETTING FEES,2447,P122755-SERVICE-Roselea Landlord Warranty,30/07/2023 00:00,276061,223.55,CA0165,CASTLES,26/06/2023 00:00,30/07/2023 00:00,P04-2024
CEO,RESIDENTIAL ACCOMMODATION,PREMISES RELATED EXPENDITURE,PROPERTY MANAGEMT/LETTING FEES,2447,P122756-SERVICE-9 Picketts Lock Lane Landlord Warranty,30/07/2023 00:00,276062,132.6,CA0165,CASTLES,26/06/2023 00:00,30/07/2023 00:00,P04-2024
CEO,RESIDENTIAL ACCOMMODATION,PREMISES RELATED EXPENDITURE,PROPERTY MANAGEMT/LETTING FEES,2447,P122757-SERVICE-9 Picketts Lock Lane Landlord Fees,30/07/2023 00:00,276063,780,CA0165,CASTLES,26/06/2023 00:00,30/07/2023 00:00,P04-2024
P&V,MYDDELTON HOUSE,PREMISES RELATED EXPENDITURE,WATER,2555,MD Hse- water usage June 23,17/07/2023 00:00,275671,1671.55,CA0625,CASTLE WATER LIMITED,26/06/2023 00:00,30/07/2023 00:00,P04-2024
,LEE VALLEY MARINA SPRINGFIELD,PREMISES RELATED EXPENDITURE,WATER,2555,Springfield-Adjustment- May 2023,05/07/2023 00:00,275128,132.06,CA0625,CASTLE WATER LIMITED,26/06/2023 00:00,30/07/2023 00:00,P04-2024
,LEE VALLEY MARINA SPRINGFIELD,PREMISES RELATED EXPENDITURE,WATER,2555,Springfield-Adjustment- May 2023,05/07/2023 00:00,275128,229.01,CA0625,CASTLE WATER LIMITED,26/06/2023 00:00,30/07/2023 00:00,P04-2024
,LEE VALLEY MARINA SPRINGFIELD,PREMISES RELATED EXPENDITURE,WATER,2555,CASTLE WATER LIMITED,11/07/2023 00:00,275584,1645.8,CA0625,CASTLE WATER LIMITED,26/06/2023 00:00,30/07/2023 00:00,P04-2024
,LEE VALLEY MARINA SPRINGFIELD,PREMISES RELATED EXPENDITURE,WATER,2555,CASTLE WATER LIMITED,11/07/2023 00:00,275584,1032.46,CA0625,CASTLE WATER LIMITED,26/06/2023 00:00,30/07/2023 00:00,P04-2024
,LEE VALLEY MARINA SPRINGFIELD,PREMISES RELATED EXPENDITURE,WATER,2555,CASTLE WATER LIMITED,24/07/2023 00:00,276013,229.02,CA0625,CASTLE WATER LIMITED,26/06/2023 00:00,30/07/2023 00:00,P04-2024
,LEE VALLEY MARINA SPRINGFIELD,PREMISES RELATED EXPENDITURE,WATER,2555,CASTLE WATER LIMITED,24/07/2023 00:00,276013,132.05,CA0625,CASTLE WATER LIMITED,26/06/2023 00:00,30/07/2023 00:00,P04-2024
,LEE VALLEY MARINA STANSTEAD,PREMISES RELATED EXPENDITURE,WATER,2555,01/04/23 - 31/05/23,04/07/2023 00:00,275212,-838.23,CA0625,CASTLE WATER LIMITED,26/06/2023 00:00,30/07/2023 00:00,P04-2024
,LEE VALLEY MARINA STANSTEAD,PREMISES RELATED EXPENDITURE,WATER,2555,01/04/23 - 31/05/23,04/07/2023 00:00,275212,-806.87,CA0625,CASTLE WATER LIMITED,26/06/2023 00:00,30/07/2023 00:00,P04-2024
,LEE VALLEY MARINA STANSTEAD,PREMISES RELATED EXPENDITURE,WATER,2555,Stanstead-Water supply-June 23,11/07/2023 00:00,275443,178.91,CA0625,CASTLE WATER LIMITED,26/06/2023 00:00,30/07/2023 00:00,P04-2024
,LEE VALLEY MARINA STANSTEAD,PREMISES RELATED EXPENDITURE,WATER,2555,Stanstead-Water supply-June 23,11/07/2023 00:00,275443,183.64,CA0625,CASTLE WATER LIMITED,26/06/2023 00:00,30/07/2023 00:00,P04-2024
,LEE VALLEY WATERWORKS CENTRE,PREMISES RELATED EXPENDITURE,WATER,2555,Waterworks-Water supply June 2023,11/07/2023 00:00,275441,111.92,CA0625,CASTLE WATER LIMITED,26/06/2023 00:00,30/07/2023 00:00,P04-2024
,LEE VALLEY CAMPSITE,PREMISES RELATED EXPENDITURE,WATER,2555,Sewardstone-Water supply-June 2023,11/07/2023 00:00,275442,2302.15,CA0625,CASTLE WATER LIMITED,26/06/2023 00:00,30/07/2023 00:00,P04-2024
,LEE VALLEY CAMPSITE,PREMISES RELATED EXPENDITURE,WATER,2555,Sewardstone-Adjustment Invoice May23,24/07/2023 00:00,275990,18.36,CA0625,CASTLE WATER LIMITED,26/06/2023 00:00,30/07/2023 00:00,P04-2024
,LEE VALLEY CARAVAN PARK,PREMISES RELATED EXPENDITURE,WATER,2555,DW-Water supply- June 2023,17/07/2023 00:00,275524,3580.78,CA0625,CASTLE WATER LIMITED,26/06/2023 00:00,30/07/2023 00:00,P04-2024
,LEE VALLEY CARAVAN PARK,PREMISES RELATED EXPENDITURE,WATER,2555,DW-Water supply- June 2023,17/07/2023 00:00,275524,2148.2,CA0625,CASTLE WATER LIMITED,26/06/2023 00:00,30/07/2023 00:00,P04-2024
,LEE VALLEY CARAVAN PARK,PREMISES RELATED EXPENDITURE,WATER,2555,DW- Adjustment Invoice- May-June 23,24/07/2023 00:00,275989,42.69,CA0625,CASTLE WATER LIMITED,26/06/2023 00:00,30/07/2023 00:00,P04-2024
,LEE VALLEY CARAVAN PARK,PREMISES RELATED EXPENDITURE,WATER,2555,DW- Adjustment Invoice- May-June 23,24/07/2023 00:00,275989,24.63,CA0625,CASTLE WATER LIMITED,26/06/2023 00:00,30/07/2023 00:00,P04-2024
,LV LEISURE CENTRE CAMPSITE,PREMISES RELATED EXPENDITURE,WATER,2555,Edmonton- water supply-June 23,24/07/2023 00:00,275968,622.82,CA0625,CASTLE WATER LIMITED,26/06/2023 00:00,30/07/2023 00:00,P04-2024
,LV LEISURE CENTRE CAMPSITE,PREMISES RELATED EXPENDITURE,WATER,2555,Edmonton- water supply-June 23,24/07/2023 00:00,275968,500.72,CA0625,CASTLE WATER LIMITED,26/06/2023 00:00,30/07/2023 00:00,P04-2024
,LV LEISURE CENTRE CAMPSITE,PREMISES RELATED EXPENDITURE,WATER,2555,Edmonton-waer supply-June 23,24/07/2023 00:00,275969,42.44,CA0625,CASTLE WATER LIMITED,26/06/2023 00:00,30/07/2023 00:00,P04-2024
,LV LEISURE CENTRE CAMPSITE,PREMISES RELATED EXPENDITURE,WATER,2555,Edmonton-waer supply-June 23,24/07/2023 00:00,275969,36.43,CA0625,CASTLE WATER LIMITED,26/06/2023 00:00,30/07/2023 00:00,P04-2024
,LV LEISURE CENTRE CAMPSITE,PREMISES RELATED EXPENDITURE,WATER,2555,CASTLE WATER LIMITED,24/07/2023 00:00,276011,-39.17,CA0625,CASTLE WATER LIMITED,26/06/2023 00:00,30/07/2023 00:00,P04-2024
,LV LEISURE CENTRE CAMPSITE,PREMISES RELATED EXPENDITURE,WATER,2555,CASTLE WATER LIMITED,24/07/2023 00:00,276011,-67.93,CA0625,CASTLE WATER LIMITED,26/06/2023 00:00,30/07/2023 00:00,P04-2024
,LEE VALLEY MARINA SPRINGFIELD,PREMISES RELATED EXPENDITURE,CLEANING & DOMESTIC SUPPLIES,2666,P121660-SERVICE-Site Cleaning April to July 2023,05/07/2023 00:00,275363,1070.52,MA0015,MAYFAIR CLEANING COMPANY LIMITED,26/06/2023 00:00,30/07/2023 00:00,P04-2024
,LEE VALLEY MARINA SPRINGFIELD,PREMISES RELATED EXPENDITURE,CLEANING & DOMESTIC SUPPLIES,2666,P122219-SERVICE-To supply items as requestrd,05/07/2023 00:00,275415,324.97,HY0043,HYGIENE SYSTEMS LTD,26/06/2023 00:00,30/07/2023 00:00,P04-2024
,LEE VALLEY MARINA SPRINGFIELD,PREMISES RELATED EXPENDITURE,CLEANING & DOMESTIC SUPPLIES,2666,P121808-SERVICE-To supply items as requested,12/07/2023 00:00,275632,136.04,HY0043,HYGIENE SYSTEMS LTD,26/06/2023 00:00,30/07/2023 00:00,P04-2024
,LEE VALLEY MARINA STANSTEAD,PREMISES RELATED EXPENDITURE,CLEANING & DOMESTIC SUPPLIES,2666,P122635-SERVICE-cleaning cover,25/07/2023 00:00,275859,80,TR0632,TONYA RENNIE T/A TR SERVICES,26/06/2023 00:00,30/07/2023 00:00,P04-2024
,LEE VALLEY CAMPSITE,PREMISES RELATED EXPENDITURE,CLEANING & DOMESTIC SUPPLIES,2666,P122144-SERVICE-site cleaning materials,04/07/2023 00:00,275168,269.92,HY0043,HYGIENE SYSTEMS LTD,26/06/2023 00:00,30/07/2023 00:00,P04-2024
,LEE VALLEY CAMPSITE,PREMISES RELATED EXPENDITURE,CLEANING & DOMESTIC SUPPLIES,2666,P122144-SERVICE-site cleaning materials,11/07/2023 00:00,275414,51.1,HY0043,HYGIENE SYSTEMS LTD,26/06/2023 00:00,30/07/2023 00:00,P04-2024
,LEE VALLEY CAMPSITE,PREMISES RELATED EXPENDITURE,CLEANING & DOMESTIC SUPPLIES,2666,P122144-SERVICE-site cleaning materials,17/07/2023 00:00,275633,76.25,HY0043,HYGIENE SYSTEMS LTD,26/06/2023 00:00,30/07/2023 00:00,P04-2024
,LEE VALLEY CAMPSITE,PREMISES RELATED EXPENDITURE,CLEANING & DOMESTIC SUPPLIES,2666,P122616-SERVICE-Site Cleaning Materials,30/07/2023 00:00,276069,232.6,HY0043,HYGIENE SYSTEMS LTD,26/06/2023 00:00,30/07/2023 00:00,P04-2024
,LEE VALLEY CARAVAN PARK,PREMISES RELATED EXPENDITURE,CLEANING & DOMESTIC SUPPLIES,2666,P122426-SERVICE-Cleaning materials,17/07/2023 00:00,275350,223.9,HY0043,HYGIENE SYSTEMS LTD,26/06/2023 00:00,30/07/2023 00:00,P04-2024
,LEE VALLEY CARAVAN PARK,PREMISES RELATED EXPENDITURE,CLEANING & DOMESTIC SUPPLIES,2666,P122632-SERVICE-Cleaning materials,25/07/2023 00:00,275971,434.71,HY0043,HYGIENE SYSTEMS LTD,26/06/2023 00:00,30/07/2023 00:00,P04-2024
,LEE VALLEY CARAVAN PARK,PREMISES RELATED EXPENDITURE,CLEANING & DOMESTIC SUPPLIES,2666,P122632-SERVICE-Cleaning materials,30/07/2023 00:00,276065,16.41,HY0043,HYGIENE SYSTEMS LTD,26/06/2023 00:00,30/07/2023 00:00,P04-2024
P&V,RIVER LEE COUNTRY PARK,PREMISES RELATED EXPENDITURE,CLEANING & DOMESTIC SUPPLIES,2666,P122299-SERVICE-1x MaximaToilet Rolls Pk36 - 78285CP,11/07/2023 00:00,275026,15.77,TH0008,JKL SOLUTIONS LTD,26/06/2023 00:00,30/07/2023 00:00,P04-2024
P&V,RIVER LEE COUNTRY PARK,PREMISES RELATED EXPENDITURE,CLEANING & DOMESTIC SUPPLIES,2666,P122299-SERVICE-1x Carex Hand Wash Pk6 - CPD34619,11/07/2023 00:00,275026,14.46,TH0008,JKL SOLUTIONS LTD,26/06/2023 00:00,30/07/2023 00:00,P04-2024
P&V,RIVER LEE COUNTRY PARK,PREMISES RELATED EXPENDITURE,CLEANING & DOMESTIC SUPPLIES,2666,P122299-SERVICE-1x Economy Cleaning Cloths Pk50 - 2W08168,11/07/2023 00:00,275026,4.73,TH0008,JKL SOLUTIONS LTD,26/06/2023 00:00,30/07/2023 00:00,P04-2024
P&V,RIVER LEE COUNTRY PARK,PREMISES RELATED EXPENDITURE,CLEANING & DOMESTIC SUPPLIES,2666,P122299-SERVICE-1x Antibacterial Spray 750ml 6Pk - 2W04586,11/07/2023 00:00,275026,18.11,TH0008,JKL SOLUTIONS LTD,26/06/2023 00:00,30/07/2023 00:00,P04-2024
P&V,RIVER LEE COUNTRY PARK,PREMISES RELATED EXPENDITURE,CLEANING & DOMESTIC SUPPLIES,2666,P122299-SERVICE-2x Microfibre Cloths Pk10 - PS8511,11/07/2023 00:00,275026,19.5,TH0008,JKL SOLUTIONS LTD,26/06/2023 00:00,30/07/2023 00:00,P04-2024
P&V,ALMOST WILD CAMPSITE,PREMISES RELATED EXPENDITURE,CLEANING & DOMESTIC SUPPLIES,2666,"P122489-SERVICE-Toilet Rolls, Spray & Wipe, Hand Sanitiser",12/07/2023 00:00,275635,301.73,HY0043,HYGIENE SYSTEMS LTD,26/06/2023 00:00,30/07/2023 00:00,P04-2024
P&V,ALMOST WILD CAMPSITE,PREMISES RELATED EXPENDITURE,CLEANING & DOMESTIC SUPPLIES,2666,P122652-SERVICE-Spray & Wipe Not Deliverd on P122489,25/07/2023 00:00,275811,9.42,HY0043,HYGIENE SYSTEMS LTD,26/06/2023 00:00,30/07/2023 00:00,P04-2024
,LV LEISURE CENTRE CAMPSITE,PREMISES RELATED EXPENDITURE,CLEANING & DOMESTIC SUPPLIES,2666,P122346-SERVICE-Cleaning supplies for site,04/07/2023 00:00,275169,514.8,HY0043,HYGIENE SYSTEMS LTD,26/06/2023 00:00,30/07/2023 00:00,P04-2024
,LV LEISURE CENTRE CAMPSITE,PREMISES RELATED EXPENDITURE,CLEANING & DOMESTIC SUPPLIES,2666,P122212-SERVICE-Cleaning supplies,11/07/2023 00:00,275418,292.34,HY0043,HYGIENE SYSTEMS LTD,26/06/2023 00:00,30/07/2023 00:00,P04-2024
,LV LEISURE CENTRE CAMPSITE,PREMISES RELATED EXPENDITURE,CLEANING & DOMESTIC SUPPLIES,2666,P122476-SERVICE-Toilet rolls and black sacks,17/07/2023 00:00,275634,410.16,HY0043,HYGIENE SYSTEMS LTD,26/06/2023 00:00,30/07/2023 00:00,P04-2024
,LV LEISURE CENTRE CAMPSITE,PREMISES RELATED EXPENDITURE,CLEANING & DOMESTIC SUPPLIES,2666,P122553-SERVICE-cleaning supplies,25/07/2023 00:00,275803,381.61,HY0043,HYGIENE SYSTEMS LTD,26/06/2023 00:00,30/07/2023 00:00,P04-2024
,LV LEISURE CENTRE CAMPSITE,PREMISES RELATED EXPENDITURE,CLEANING & DOMESTIC SUPPLIES,2666,P122677-SERVICE-cleaning supplies,30/07/2023 00:00,276064,277.73,HY0043,HYGIENE SYSTEMS LTD,26/06/2023 00:00,30/07/2023 00:00,P04-2024
P&V,LEE VALLEY FARM HOLYFIELDHALL,TRANSPORT RELATED EXPENDITURE,TRANSPORT RUNNING EXPENSES,3333,P121508-SERVICE-Welding Sundries,05/07/2023 00:00,275383,109.75,BO0015,BOC LTD,26/06/2023 00:00,30/07/2023 00:00,P04-2024
P&V,LEE VALLEY FARM HOLYFIELDHALL,TRANSPORT RELATED EXPENDITURE,TRANSPORT RUNNING EXPENSES,3333,P121503-SERVICE-Tractor Spares,25/07/2023 00:00,275768,337.83,OL0001,OLIVER AGRICULTURE LTD,26/06/2023 00:00,30/07/2023 00:00,P04-2024
P&V,LEE VALLEY FARM HOLYFIELDHALL,TRANSPORT RELATED EXPENDITURE,TRANSPORT RUNNING EXPENSES,3333,P121509-SERVICE-Tractor Spares,25/07/2023 00:00,275836,230,RW0257,R. W. CRAWFORD AGRICULTURAL MACHINERY LTD,26/06/2023 00:00,30/07/2023 00:00,P04-2024
P&V,LEE VALLEY FARM HOLYFIELDHALL,TRANSPORT RELATED EXPENDITURE,TRANSPORT RUNNING EXPENSES,3333,P122766-SERVICE-8 Super Single Trailer Tyres,30/07/2023 00:00,276270,1500,BW0539,BWT (BROCKS WHEEL & TYRE),26/06/2023 00:00,30/07/2023 00:00,P04-2024
,LV CAMPSITE CARAVAN SALES,TRANSPORT RELATED EXPENDITURE,TRANSPORT RUNNING EXPENSES,3333,P122564-SERVICE-Transport old unit SC to Farm,18/07/2023 00:00,275377,600,CL0760,CLARKS CARAVAN & BOAT HAULAGE LTD,26/06/2023 00:00,30/07/2023 00:00,P04-2024
,LV CAMPSITE CARAVAN SALES,TRANSPORT RELATED EXPENDITURE,TRANSPORT RUNNING EXPENSES,3333,P122564-SERVICE-Transport old unit DW to Sewardstone,18/07/2023 00:00,275377,600,CL0760,CLARKS CARAVAN & BOAT HAULAGE LTD,26/06/2023 00:00,30/07/2023 00:00,P04-2024
P&V,FISHERIES MANAGEMENT,TRANSPORT RELATED EXPENDITURE,VEHICLE FUEL,3335,FUEL CARD-June 2023,05/07/2023 00:00,275380,130.72,AR0035,ALLSTAR BUSINESS SOLUTIONS LTD,26/06/2023 00:00,30/07/2023 00:00,P04-2024
,LEE VALLEY MARINA SPRINGFIELD,TRANSPORT RELATED EXPENDITURE,VEHICLE FUEL,3335,FUEL CARD-June 2023,05/07/2023 00:00,275380,23,AR0035,ALLSTAR BUSINESS SOLUTIONS LTD,26/06/2023 00:00,30/07/2023 00:00,P04-2024
,LEE VALLEY MARINA STANSTEAD,TRANSPORT RELATED EXPENDITURE,VEHICLE FUEL,3335,P122367-SERVICE-200 ltrs white diesel,17/07/2023 00:00,275337,292,SP0543,SPEEDY FUELS LIMITED,26/06/2023 00:00,30/07/2023 00:00,P04-2024
,LEE VALLEY MARINA STANSTEAD,TRANSPORT RELATED EXPENDITURE,VEHICLE FUEL,3335,FUEL CARD-June 2023,05/07/2023 00:00,275380,250.19,AR0035,ALLSTAR BUSINESS SOLUTIONS LTD,26/06/2023 00:00,30/07/2023 00:00,P04-2024
,STANSTEAD RECHARGEABLE WORKS,TRANSPORT RELATED EXPENDITURE,VEHICLE FUEL,3335,P121945-SERVICE-White diesel 200 ltrs,17/07/2023 00:00,275583,296.01,SP0543,SPEEDY FUELS LIMITED,26/06/2023 00:00,30/07/2023 00:00,P04-2024
P&V,LEE VALLEY FARM HOLYFIELDHALL,TRANSPORT RELATED EXPENDITURE,VEHICLE FUEL,3335,FUEL CARD-June 2023,05/07/2023 00:00,275380,242.17,AR0035,ALLSTAR BUSINESS SOLUTIONS LTD,26/06/2023 00:00,30/07/2023 00:00,P04-2024
,LEE VALLEY CAMPSITE,TRANSPORT RELATED EXPENDITURE,VEHICLE FUEL,3335,FUEL CARD-June 2023,05/07/2023 00:00,275380,150.37,AR0035,ALLSTAR BUSINESS SOLUTIONS LTD,26/06/2023 00:00,30/07/2023 00:00,P04-2024
,LEE VALLEY CARAVAN PARK,TRANSPORT RELATED EXPENDITURE,VEHICLE FUEL,3335,FUEL CARD-June 2023,05/07/2023 00:00,275380,210.18,AR0035,ALLSTAR BUSINESS SOLUTIONS LTD,26/06/2023 00:00,30/07/2023 00:00,P04-2024
P&V,SOUTH AREA RANGERS,TRANSPORT RELATED EXPENDITURE,VEHICLE FUEL,3335,FUEL CARD-June 2023,05/07/2023 00:00,275380,590.01,AR0035,ALLSTAR BUSINESS SOLUTIONS LTD,26/06/2023 00:00,30/07/2023 00:00,P04-2024
P&V,RIVER LEE COUNTRY PARK,TRANSPORT RELATED EXPENDITURE,VEHICLE FUEL,3335,FUEL CARD-June 2023,05/07/2023 00:00,275380,464.14,AR0035,ALLSTAR BUSINESS SOLUTIONS LTD,26/06/2023 00:00,30/07/2023 00:00,P04-2024
,LV LEISURE CENTRE CAMPSITE,TRANSPORT RELATED EXPENDITURE,VEHICLE FUEL,3335,FUEL CARD-June 2023,05/07/2023 00:00,275380,62.7,AR0035,ALLSTAR BUSINESS SOLUTIONS LTD,26/06/2023 00:00,30/07/2023 00:00,P04-2024
,LV LEISURE CENTRE CAMPSITE,TRANSPORT RELATED EXPENDITURE,VEHICLE FUEL,3335,FUEL CARD-June 2023,05/07/2023 00:00,275380,55.96,AR0035,ALLSTAR BUSINESS SOLUTIONS LTD,26/06/2023 00:00,30/07/2023 00:00,P04-2024
P&V,NORTH AREA RANGERS,TRANSPORT RELATED EXPENDITURE,VEHICLE REPAIRS & MAINTENANCE,3338,P122784-SERVICE-Service Quad - EU55XXM,30/07/2023 00:00,276274,712.9,TU0006,P TUCKWELL LTD,26/06/2023 00:00,30/07/2023 00:00,P04-2024
P&V,SOUTH AREA RANGERS,TRANSPORT RELATED EXPENDITURE,VEHICLE REPAIRS & MAINTENANCE,3338,P122782-SERVICE-Small Trailer Repairs,30/07/2023 00:00,276269,208.07,TO0071,GT TOWING,26/06/2023 00:00,30/07/2023 00:00,P04-2024
P&V,RIVER LEE COUNTRY PARK,TRANSPORT RELATED EXPENDITURE,VEHICLE REPAIRS & MAINTENANCE,3338,P122449-SERVICE-MOT - EY20 TJZ Isuzu Crew Cab,05/07/2023 00:00,275461,45,AB0153,ABBEY SERVICE CENTRE,26/06/2023 00:00,30/07/2023 00:00,P04-2024
P&V,VOLUNTEERS (L&E),TRANSPORT RELATED EXPENDITURE,TRAVELLING EXPENSES,3344,Volunteer-travel expense 25/01-12/04/23,04/07/2023 00:00,275216,16.2,CH0761,MRS J C CHANDLER,26/06/2023 00:00,30/07/2023 00:00,P04-2024
P&V,VOLUNTEERS (L&E),TRANSPORT RELATED EXPENDITURE,TRAVELLING EXPENSES,3344,Vol-Travel expense-01/02/23-12/04/23,05/07/2023 00:00,275385,34.7,WR0363,JONATHAN WRIGHT,26/06/2023 00:00,30/07/2023 00:00,P04-2024
P&V,VOLUNTEERS (L&E),TRANSPORT RELATED EXPENDITURE,TRAVELLING EXPENSES,3344,VOLUNTEER-01/06/-28/06/23,19/07/2023 00:00,275865,92.7,CH0762,MRS BRENDA CHANTER,26/06/2023 00:00,30/07/2023 00:00,P04-2024
,STANSTEAD RECHARGEABLE WORKS,SUPPLIES AND SERVICES,EQUIPMENT & MATERIALS,4111,P122692-SERVICE-blacking,30/07/2023 00:00,276034,1401,AQ0033,AQUAFAX LIMITED,26/06/2023 00:00,30/07/2023 00:00,P04-2024
,LEE VALLEY CAMPSITE,SUPPLIES AND SERVICES,EQUIPMENT & MATERIALS,4111,P122385-SERVICE-site materials,04/07/2023 00:00,274963,103.37,BQ0164,TRADE UK ACCOUNT,26/06/2023 00:00,30/07/2023 00:00,P04-2024
,LEE VALLEY CAMPSITE,SUPPLIES AND SERVICES,EQUIPMENT & MATERIALS,4111,Sewardstone-materials,05/07/2023 00:00,275135,82.98,SC0057,SCREWFIX DIRECT LTD,26/06/2023 00:00,30/07/2023 00:00,P04-2024
,LEE VALLEY CAMPSITE,SUPPLIES AND SERVICES,EQUIPMENT & MATERIALS,4111,Sewardstone-materials,05/07/2023 00:00,275135,-92.65,SC0057,SCREWFIX DIRECT LTD,26/06/2023 00:00,30/07/2023 00:00,P04-2024
,LEE VALLEY CAMPSITE,SUPPLIES AND SERVICES,EQUIPMENT & MATERIALS,4111,P122441-SERVICE-Site materials,05/07/2023 00:00,275135,92.65,SC0057,SCREWFIX DIRECT LTD,26/06/2023 00:00,30/07/2023 00:00,P04-2024
,LEE VALLEY CAMPSITE,SUPPLIES AND SERVICES,EQUIPMENT & MATERIALS,4111,Sewardstone-materials,05/07/2023 00:00,275135,9.67,SC0057,SCREWFIX DIRECT LTD,26/06/2023 00:00,30/07/2023 00:00,P04-2024
,LEE VALLEY CAMPSITE,SUPPLIES AND SERVICES,EQUIPMENT & MATERIALS,4111,P122385-SERVICE-site materials,04/07/2023 00:00,275179,61.5,BQ0164,TRADE UK ACCOUNT,26/06/2023 00:00,30/07/2023 00:00,P04-2024
,LEE VALLEY CAMPSITE,SUPPLIES AND SERVICES,EQUIPMENT & MATERIALS,4111,P122385-SERVICE-site materials,17/07/2023 00:00,275611,164.33,BQ0164,TRADE UK ACCOUNT,26/06/2023 00:00,30/07/2023 00:00,P04-2024
,LEE VALLEY CAMPSITE,SUPPLIES AND SERVICES,EQUIPMENT & MATERIALS,4111,P122516-SERVICE-Site requipmenty & materials,25/07/2023 00:00,275874,85.19,SC0057,SCREWFIX DIRECT LTD,26/06/2023 00:00,30/07/2023 00:00,P04-2024
,LEE VALLEY CAMPSITE,SUPPLIES AND SERVICES,EQUIPMENT & MATERIALS,4111,P122385-SERVICE-site materials,25/07/2023 00:00,275875,-23.34,BQ0164,TRADE UK ACCOUNT,26/06/2023 00:00,30/07/2023 00:00,P04-2024
,LEE VALLEY CAMPSITE,SUPPLIES AND SERVICES,EQUIPMENT & MATERIALS,4111,P122441-SERVICE-Site materials,25/07/2023 00:00,275965,30,SC0057,SCREWFIX DIRECT LTD,26/06/2023 00:00,30/07/2023 00:00,P04-2024
,LEE VALLEY CARAVAN PARK,SUPPLIES AND SERVICES,EQUIPMENT & MATERIALS,4111,P122428-SERVICE-Various materials,04/07/2023 00:00,275180,50.37,BQ0164,TRADE UK ACCOUNT,26/06/2023 00:00,30/07/2023 00:00,P04-2024
,LEE VALLEY CARAVAN PARK,SUPPLIES AND SERVICES,EQUIPMENT & MATERIALS,4111,P122429-SERVICE-Fire blankets ans bike pump,04/07/2023 00:00,275181,159.37,SC0057,SCREWFIX DIRECT LTD,26/06/2023 00:00,30/07/2023 00:00,P04-2024
,LEE VALLEY CARAVAN PARK,SUPPLIES AND SERVICES,EQUIPMENT & MATERIALS,4111,P122431-SERVICE-Cloth tape,04/07/2023 00:00,275219,6.63,SC0057,SCREWFIX DIRECT LTD,26/06/2023 00:00,30/07/2023 00:00,P04-2024
,LEE VALLEY CARAVAN PARK,SUPPLIES AND SERVICES,EQUIPMENT & MATERIALS,4111,P122461-SERVICE-2 way radios,17/07/2023 00:00,275600,677.7,DI0253,DIRECT COMMUNICATIONS RADIO SERVICES LTD,26/06/2023 00:00,30/07/2023 00:00,P04-2024
,LEE VALLEY CARAVAN PARK,SUPPLIES AND SERVICES,EQUIPMENT & MATERIALS,4111,P122487-SERVICE-Six Ear Pieces for new Radios,12/07/2023 00:00,275602,65.03,DI0253,DIRECT COMMUNICATIONS RADIO SERVICES LTD,26/06/2023 00:00,30/07/2023 00:00,P04-2024
,LEE VALLEY CARAVAN PARK,SUPPLIES AND SERVICES,EQUIPMENT & MATERIALS,4111,P122621-SERVICE-Cup hooks,18/07/2023 00:00,275613,6.73,SC0057,SCREWFIX DIRECT LTD,26/06/2023 00:00,30/07/2023 00:00,P04-2024
,LEE VALLEY CARAVAN PARK,SUPPLIES AND SERVICES,EQUIPMENT & MATERIALS,4111,"P122623-SERVICE-Rubble bags, screws",18/07/2023 00:00,275773,22.81,SC0057,SCREWFIX DIRECT LTD,26/06/2023 00:00,30/07/2023 00:00,P04-2024
,LEE VALLEY CARAVAN PARK,SUPPLIES AND SERVICES,EQUIPMENT & MATERIALS,4111,P122683-SERVICE-Service Immersion heaters,25/07/2023 00:00,275983,298,BR0018,BRADSHAW ELECTRICAL LIMITED,26/06/2023 00:00,30/07/2023 00:00,P04-2024
,LEE VALLEY CARAVAN PARK,SUPPLIES AND SERVICES,EQUIPMENT & MATERIALS,4111,"P122366-SERVICE-3 sheets MDF, wooden posts for signs, cortex",30/07/2023 00:00,275991,296.44,LE0012,LEASIDE TIMBER & BUILDERS MERCHANTS LTD,26/06/2023 00:00,30/07/2023 00:00,P04-2024
,LEE VALLEY CARAVAN PARK,SUPPLIES AND SERVICES,EQUIPMENT & MATERIALS,4111,P122735-SERVICE-Red trimmer line,30/07/2023 00:00,276000,16.66,SC0057,SCREWFIX DIRECT LTD,26/06/2023 00:00,30/07/2023 00:00,P04-2024
P&V,MYDDELTON HOUSE GARDENS,SUPPLIES AND SERVICES,EQUIPMENT & MATERIALS,4111,P121912-SERVICE-pest control gardens 23/24,05/07/2023 00:00,275223,79.43,FA0149,FARGRO LIMITED,26/06/2023 00:00,30/07/2023 00:00,P04-2024
P&V,MYDDELTON HOUSE GARDENS,SUPPLIES AND SERVICES,EQUIPMENT & MATERIALS,4111,Volunteer expenses,04/07/2023 00:00,275338,105,RA0358,CAROLYN RAMSAMY,26/06/2023 00:00,30/07/2023 00:00,P04-2024
P&V,NORTH AREA RANGERS,SUPPLIES AND SERVICES,EQUIPMENT & MATERIALS,4111,P121971-SERVICE-50x Wooden Rails (3.6mx88mmx38mm),05/07/2023 00:00,275355,425.34,TI0164,414 TIMBER & FENCING,26/06/2023 00:00,30/07/2023 00:00,P04-2024
P&V,NORTH AREA RANGERS,SUPPLIES AND SERVICES,EQUIPMENT & MATERIALS,4111,P122442-SERVICE-8x Firechief Forestry Rakes,12/07/2023 00:00,275582,256,MA0462,MARSDEN FIRE SAFETY LIMITED,26/06/2023 00:00,30/07/2023 00:00,P04-2024
P&V,NORTH AREA RANGERS,SUPPLIES AND SERVICES,EQUIPMENT & MATERIALS,4111,P122442-SERVICE-Delivery,12/07/2023 00:00,275582,12.5,MA0462,MARSDEN FIRE SAFETY LIMITED,26/06/2023 00:00,30/07/2023 00:00,P04-2024
P&V,SOUTH AREA RANGERS,SUPPLIES AND SERVICES,EQUIPMENT & MATERIALS,4111,P122440-SERVICE-10x Compactor Black Sacks - 746653,05/07/2023 00:00,275382,365.8,GR0020,GREENHAM TRADING LIMITED,26/06/2023 00:00,30/07/2023 00:00,P04-2024
P&V,SOUTH AREA RANGERS,SUPPLIES AND SERVICES,EQUIPMENT & MATERIALS,4111,P122560-SERVICE-Lock and Hasp,12/07/2023 00:00,275614,3.66,SC0057,SCREWFIX DIRECT LTD,26/06/2023 00:00,30/07/2023 00:00,P04-2024
P&V,SOUTH AREA RANGERS,SUPPLIES AND SERVICES,EQUIPMENT & MATERIALS,4111,P122669-SERVICE-11 Erbauer Sander 240W - 433FX,26/07/2023 00:00,276043,37.99,SC0057,SCREWFIX DIRECT LTD,26/06/2023 00:00,30/07/2023 00:00,P04-2024
P&V,SOUTH AREA RANGERS,SUPPLIES AND SERVICES,EQUIPMENT & MATERIALS,4111,P122669-SERVICE-1x Galvanised Round Wire Nails 1Kg - 18968,26/07/2023 00:00,276043,5.24,SC0057,SCREWFIX DIRECT LTD,26/06/2023 00:00,30/07/2023 00:00,P04-2024
P&V,SOUTH AREA RANGERS,SUPPLIES AND SERVICES,EQUIPMENT & MATERIALS,4111,P122669-SERVICE-1x 10PK Wet/Dry 12 Grit - 209JG,26/07/2023 00:00,276043,3.68,SC0057,SCREWFIX DIRECT LTD,26/06/2023 00:00,30/07/2023 00:00,P04-2024
P&V,SOUTH AREA RANGERS,SUPPLIES AND SERVICES,EQUIPMENT & MATERIALS,4111,P122669-SERVICE-4x Rapid Setting Cement - 58196,26/07/2023 00:00,276043,48.28,SC0057,SCREWFIX DIRECT LTD,26/06/2023 00:00,30/07/2023 00:00,P04-2024
P&V,ABBEY GARDENS,SUPPLIES AND SERVICES,EQUIPMENT & MATERIALS,4111,P122067-SERVICE-Delivery,30/07/2023 00:00,275849,181,ST0041,BROXAP LTD,26/06/2023 00:00,30/07/2023 00:00,P04-2024
P&V,ABBEY GARDENS,SUPPLIES AND SERVICES,EQUIPMENT & MATERIALS,4111,P122067-SERVICE-Bench Slats - Eastgate Benches,30/07/2023 00:00,275849,342,ST0041,BROXAP LTD,26/06/2023 00:00,30/07/2023 00:00,P04-2024
P&V,WILDLIFE DISCOVERY CENTRE,SUPPLIES AND SERVICES,EQUIPMENT & MATERIALS,4111,P122649-SERVICE-5x Office A4 White Card 205gsm - RI21010,30/07/2023 00:00,276185,13.2,TH0008,JKL SOLUTIONS LTD,26/06/2023 00:00,30/07/2023 00:00,P04-2024
P&V,WILDLIFE DISCOVERY CENTRE,SUPPLIES AND SERVICES,EQUIPMENT & MATERIALS,4111,P122649-SERVICE-1x Blue Centrefeed Roll 2 Ply 150m - WX43931,30/07/2023 00:00,276185,14.69,TH0008,JKL SOLUTIONS LTD,26/06/2023 00:00,30/07/2023 00:00,P04-2024
P&V,RIVER LEE COUNTRY PARK,SUPPLIES AND SERVICES,EQUIPMENT & MATERIALS,4111,P122299-SERVICE-10x Heavy Duty Buckets 14L - CX01119,11/07/2023 00:00,275026,40.5,TH0008,JKL SOLUTIONS LTD,26/06/2023 00:00,30/07/2023 00:00,P04-2024
P&V,RIVER LEE COUNTRY PARK,SUPPLIES AND SERVICES,EQUIPMENT & MATERIALS,4111,P122299-SERVICE-8x Dustpan & Brush Plastic Red - PS8600,11/07/2023 00:00,275026,20.08,TH0008,JKL SOLUTIONS LTD,26/06/2023 00:00,30/07/2023 00:00,P04-2024
P&V,RIVER LEE COUNTRY PARK,SUPPLIES AND SERVICES,EQUIPMENT & MATERIALS,4111,P122340-SERVICE-Delivery,25/07/2023 00:00,275341,5.95,LS0469,L & S ENGINEERS LTD,26/06/2023 00:00,30/07/2023 00:00,P04-2024
P&V,RIVER LEE COUNTRY PARK,SUPPLIES AND SERVICES,EQUIPMENT & MATERIALS,4111,P122340-SERVICE-2x Sthil SynthPlus Chain Oil 5 Litre for Chai,25/07/2023 00:00,275341,41.6,LS0469,L & S ENGINEERS LTD,26/06/2023 00:00,30/07/2023 00:00,P04-2024
P&V,RIVER LEE COUNTRY PARK,SUPPLIES AND SERVICES,EQUIPMENT & MATERIALS,4111,"P122340-SERVICE-1x Tension Spring for Sthil MS261, MS261C - 1",25/07/2023 00:00,275341,2.67,LS0469,L & S ENGINEERS LTD,26/06/2023 00:00,30/07/2023 00:00,P04-2024
P&V,RIVER LEE COUNTRY PARK,SUPPLIES AND SERVICES,EQUIPMENT & MATERIALS,4111,P122039-SERVICE-MEU Foamex Panel as per quote ref 31905/1,04/07/2023 00:00,275344,130,SI0024,SIGNS EXPRESS (HARLOW),26/06/2023 00:00,30/07/2023 00:00,P04-2024
,LV LEISURE CENTRE GOLF COURSE,SUPPLIES AND SERVICES,EQUIPMENT & MATERIALS,4111,P122373-SERVICE-Battery for Machine,12/07/2023 00:00,275170,125.32,LE0279,REESINK TURFCARE UK LIMITED,26/06/2023 00:00,30/07/2023 00:00,P04-2024
,LV LEISURE CENTRE GOLF COURSE,SUPPLIES AND SERVICES,EQUIPMENT & MATERIALS,4111,P122185-SERVICE-Replace Back up Batteries,11/07/2023 00:00,275535,56,RV0035,RVTV SECURITY GROUP LTD,26/06/2023 00:00,30/07/2023 00:00,P04-2024
,LV LEISURE CENTRE GOLF COURSE,SUPPLIES AND SERVICES,EQUIPMENT & MATERIALS,4111,P122185-SERVICE-Fire Panel,11/07/2023 00:00,275535,225,RV0035,RVTV SECURITY GROUP LTD,26/06/2023 00:00,30/07/2023 00:00,P04-2024
,LV LEISURE CENTRE GOLF COURSE,SUPPLIES AND SERVICES,EQUIPMENT & MATERIALS,4111,P122657-SERVICE-H&S Signs for Groundsyard AED,25/07/2023 00:00,275988,188,SL0528,SLAM SIGNS LTD,26/06/2023 00:00,30/07/2023 00:00,P04-2024
,LEE VALLEY CAMPSITE,SUPPLIES AND SERVICES,EQUIPMENT MAINTENANCE,4112,P122351-SERVICE-Replace faulty key pad,04/07/2023 00:00,275192,360,DE0013,DENNIS SECURITY CENTRE,26/06/2023 00:00,30/07/2023 00:00,P04-2024
,LEE VALLEY CAMPSITE,SUPPLIES AND SERVICES,EQUIPMENT MAINTENANCE,4112,P122509-SERVICE-RCD Tripping HH20 & HH21,11/07/2023 00:00,275342,62,BR0018,BRADSHAW ELECTRICAL LIMITED,26/06/2023 00:00,30/07/2023 00:00,P04-2024
,LEE VALLEY CAMPSITE,SUPPLIES AND SERVICES,EQUIPMENT MAINTENANCE,4112,P122509-SERVICE-RCD Tripping HH20 & HH21,11/07/2023 00:00,275343,62,BR0018,BRADSHAW ELECTRICAL LIMITED,26/06/2023 00:00,30/07/2023 00:00,P04-2024
,LEE VALLEY CAMPSITE,SUPPLIES AND SERVICES,EQUIPMENT MAINTENANCE,4112,P122610-SERVICE-Replace with TVM 2 Bath shower mixer,30/07/2023 00:00,276031,300,SO0400,SOUTHERN GREEN SERVICES LIMITED,26/06/2023 00:00,30/07/2023 00:00,P04-2024
,LEE VALLEY CAMPSITE,SUPPLIES AND SERVICES,EQUIPMENT MAINTENANCE,4112,P122611-SERVICE-repair overflowing wc Ladies,30/07/2023 00:00,276032,80,SO0400,SOUTHERN GREEN SERVICES LIMITED,26/06/2023 00:00,30/07/2023 00:00,P04-2024
,LEE VALLEY CAMPSITE,SUPPLIES AND SERVICES,EQUIPMENT MAINTENANCE,4112,P122611-SERVICE-repair leak to boiler,30/07/2023 00:00,276033,65,SO0400,SOUTHERN GREEN SERVICES LIMITED,26/06/2023 00:00,30/07/2023 00:00,P04-2024
,LV CAMPSITE CARAVAN SALES,SUPPLIES AND SERVICES,EQUIPMENT MAINTENANCE,4112,P122684-SERVICE-HH24 Electrics to shed  agreed JH,30/07/2023 00:00,276040,135,BR0018,BRADSHAW ELECTRICAL LIMITED,26/06/2023 00:00,30/07/2023 00:00,P04-2024
,LEE VALLEY CARAVAN PARK,SUPPLIES AND SERVICES,EQUIPMENT MAINTENANCE,4112,P122427-SERVICE-Testing of hot tubs,04/07/2023 00:00,275167,121.72,KI0090,KINGFISHER ENVIRONMENTAL SERVICES LTD,26/06/2023 00:00,30/07/2023 00:00,P04-2024
,LEE VALLEY CARAVAN PARK,SUPPLIES AND SERVICES,EQUIPMENT MAINTENANCE,4112,P122430-SERVICE-Blocked drain,04/07/2023 00:00,275210,250,CO0550,CONVERT WATER LTD,26/06/2023 00:00,30/07/2023 00:00,P04-2024
,LEE VALLEY CARAVAN PARK,SUPPLIES AND SERVICES,EQUIPMENT MAINTENANCE,4112,P122447-SERVICE-Service on air compressor,04/07/2023 00:00,275323,261.16,AI0500,AIR ENERGY LIMITED,26/06/2023 00:00,30/07/2023 00:00,P04-2024
,LEE VALLEY CARAVAN PARK,SUPPLIES AND SERVICES,EQUIPMENT MAINTENANCE,4112,P122074-SERVICE-Annual Service of Compressor,04/07/2023 00:00,275323,52.23,AI0500,AIR ENERGY LIMITED,26/06/2023 00:00,30/07/2023 00:00,P04-2024
,LEE VALLEY CARAVAN PARK,SUPPLIES AND SERVICES,EQUIPMENT MAINTENANCE,4112,P122502-SERVICE-Servicing of Strimmer and Hedge Trimmer,12/07/2023 00:00,275527,214,NA0168,NAZEING GARDEN MACHINERY,26/06/2023 00:00,30/07/2023 00:00,P04-2024
,LEE VALLEY CARAVAN PARK,SUPPLIES AND SERVICES,EQUIPMENT MAINTENANCE,4112,P122619-SERVICE-Hot tub testing,18/07/2023 00:00,275578,121.72,KI0090,KINGFISHER ENVIRONMENTAL SERVICES LTD,26/06/2023 00:00,30/07/2023 00:00,P04-2024
,LEE VALLEY CARAVAN PARK,SUPPLIES AND SERVICES,EQUIPMENT MAINTENANCE,4112,P122770-SERVICE-Hot tub sampling,30/07/2023 00:00,276203,121.72,KI0090,KINGFISHER ENVIRONMENTAL SERVICES LTD,26/06/2023 00:00,30/07/2023 00:00,P04-2024
,LEE VALLEY CARAVAN PARK,SUPPLIES AND SERVICES,EQUIPMENT MAINTENANCE,4112,P122720-SERVICE-Tent block mens urinal leak,30/07/2023 00:00,276232,240,SO0400,SOUTHERN GREEN SERVICES LIMITED,26/06/2023 00:00,30/07/2023 00:00,P04-2024
,LEE VALLEY CARAVAN PARK,SUPPLIES AND SERVICES,EQUIPMENT MAINTENANCE,4112,P122721-SERVICE-General repair in the mallard,30/07/2023 00:00,276233,125,SO0400,SOUTHERN GREEN SERVICES LIMITED,26/06/2023 00:00,30/07/2023 00:00,P04-2024
P&V,MYDDELTON HOUSE GARDENS,SUPPLIES AND SERVICES,EQUIPMENT MAINTENANCE,4112,P122325-SERVICE-mowers service june 23 MHG,05/07/2023 00:00,275182,570.47,BR0143,GEORGE BROWNS LTD,26/06/2023 00:00,30/07/2023 00:00,P04-2024
P&V,NORTH AREA RANGERS,SUPPLIES AND SERVICES,EQUIPMENT MAINTENANCE,4112,P122448-SERVICE-Chipper Service - S/No: 35A2FS209098,11/07/2023 00:00,275437,372.55,GR0146,GREEN PLANT UK LTD,26/06/2023 00:00,30/07/2023 00:00,P04-2024
P&V,ALMOST WILD CAMPSITE,SUPPLIES AND SERVICES,EQUIPMENT MAINTENANCE,4112,P122490-SERVICE-AMW - Toilet Pump Out,11/07/2023 00:00,275349,250,CO0550,CONVERT WATER LTD,26/06/2023 00:00,30/07/2023 00:00,P04-2024
,LV LEISURE CENTRE CAMPSITE,SUPPLIES AND SERVICES,EQUIPMENT MAINTENANCE,4112,P122141-SERVICE-Compressor Servicing,04/07/2023 00:00,275322,313.39,AI0500,AIR ENERGY LIMITED,26/06/2023 00:00,30/07/2023 00:00,P04-2024
,LV LEISURE CENTRE CAMPSITE,SUPPLIES AND SERVICES,EQUIPMENT MAINTENANCE,4112,Edmonton-various materials,18/07/2023 00:00,275612,59.98,SC0057,SCREWFIX DIRECT LTD,26/06/2023 00:00,30/07/2023 00:00,P04-2024
,LV LEISURE CENTRE CAMPSITE,SUPPLIES AND SERVICES,EQUIPMENT MAINTENANCE,4112,Edmonton-various materials,18/07/2023 00:00,275612,55.96,SC0057,SCREWFIX DIRECT LTD,26/06/2023 00:00,30/07/2023 00:00,P04-2024
,LV LEISURE CENTRE CAMPSITE,SUPPLIES AND SERVICES,EQUIPMENT MAINTENANCE,4112,"P122598-SERVICE-Helmet trowel, bit set, gloves",18/07/2023 00:00,275612,115.94,SC0057,SCREWFIX DIRECT LTD,26/06/2023 00:00,30/07/2023 00:00,P04-2024
,LV LEISURE CENTRE CAMPSITE,SUPPLIES AND SERVICES,EQUIPMENT MAINTENANCE,4112,Edmonton-various materials,18/07/2023 00:00,275612,-115.94,SC0057,SCREWFIX DIRECT LTD,26/06/2023 00:00,30/07/2023 00:00,P04-2024
,LV LEISURE CENTRE CAMPSITE,SUPPLIES AND SERVICES,EQUIPMENT MAINTENANCE,4112,"P122599-SERVICE-mortar, padlocks, unblocker",18/07/2023 00:00,275615,41.82,SC0057,SCREWFIX DIRECT LTD,26/06/2023 00:00,30/07/2023 00:00,P04-2024
,LV LEISURE CENTRE CAMPSITE,SUPPLIES AND SERVICES,EQUIPMENT MAINTENANCE,4112,P122760-SERVICE-fly ant killer safety specs ppe,30/07/2023 00:00,275820,140.04,SC0057,SCREWFIX DIRECT LTD,26/06/2023 00:00,30/07/2023 00:00,P04-2024
,LV LEISURE CENTRE CAMPSITE,SUPPLIES AND SERVICES,EQUIPMENT MAINTENANCE,4112,P122519-SERVICE-PLY FOR BATH PANEL,25/07/2023 00:00,275992,30.13,LE0012,LEASIDE TIMBER & BUILDERS MERCHANTS LTD,26/06/2023 00:00,30/07/2023 00:00,P04-2024
,LV LEISURE CENTRE GOLF COURSE,SUPPLIES AND SERVICES,EQUIPMENT MAINTENANCE,4112,P122224-SERVICE-Irrigation Pumps,12/07/2023 00:00,275321,834.97,SJ0635,SJS IRRIGATION,26/06/2023 00:00,30/07/2023 00:00,P04-2024
,LV LEISURE CENTRE GOLF COURSE,SUPPLIES AND SERVICES,EQUIPMENT MAINTENANCE,4112,P122224-SERVICE-Irrigation Pumps,18/07/2023 00:00,275674,834.97,SJ0635,SJS IRRIGATION,26/06/2023 00:00,30/07/2023 00:00,P04-2024
,LV LEISURE CENTRE GOLF COURSE,SUPPLIES AND SERVICES,EQUIPMENT MAINTENANCE,4112,P122224-SERVICE-Irrigation Pumps,25/07/2023 00:00,275675,2011.96,SJ0635,SJS IRRIGATION,26/06/2023 00:00,30/07/2023 00:00,P04-2024
R&B,INFORMATION TECHNOLOGY,SUPPLIES AND SERVICES,IT CORE SYSTEMS,4113,P122330-SERVICE-SAP Business objects enterprise professional,11/07/2023 00:00,275384,711.25,CE0021,ADVANCED BUSINESS SOLUTIONS,26/06/2023 00:00,30/07/2023 00:00,P04-2024
R&B,INFORMATION TECHNOLOGY,SUPPLIES AND SERVICES,IT CORE SYSTEMS,4113,"P122330-SERVICE-Maintenance: V1 Login-Data mapping only, Qty",11/07/2023 00:00,275384,714.55,CE0021,ADVANCED BUSINESS SOLUTIONS,26/06/2023 00:00,30/07/2023 00:00,P04-2024
R&B,INFORMATION TECHNOLOGY,SUPPLIES AND SERVICES,IT CORE SYSTEMS,4113,"P122330-SERVICE-eFinancials Paperclip maintenance, Qty 30",11/07/2023 00:00,275384,711.25,CE0021,ADVANCED BUSINESS SOLUTIONS,26/06/2023 00:00,30/07/2023 00:00,P04-2024
R&B,INFORMATION TECHNOLOGY,SUPPLIES AND SERVICES,IT CORE SYSTEMS,4113,"P122330-SERVICE-Document imaging (eFinancials) maintenance, Q",11/07/2023 00:00,275384,711.25,CE0021,ADVANCED BUSINESS SOLUTIONS,26/06/2023 00:00,30/07/2023 00:00,P04-2024
R&B,INFORMATION TECHNOLOGY,SUPPLIES AND SERVICES,IT CORE SYSTEMS,4113,P122330-SERVICE-eFinancials Xcel uploader Maintenance,11/07/2023 00:00,275384,711.25,CE0021,ADVANCED BUSINESS SOLUTIONS,26/06/2023 00:00,30/07/2023 00:00,P04-2024
R&B,INFORMATION TECHNOLOGY,SUPPLIES AND SERVICES,IT CORE SYSTEMS,4113,P122330-SERVICE-Collaborative interface broker efinancials  s,11/07/2023 00:00,275384,711.25,CE0021,ADVANCED BUSINESS SOLUTIONS,26/06/2023 00:00,30/07/2023 00:00,P04-2024
R&B,INFORMATION TECHNOLOGY,SUPPLIES AND SERVICES,IT CORE SYSTEMS,4113,P122330-SERVICE-eFinancials web charts of accounts maintenanc,11/07/2023 00:00,275384,711.25,CE0021,ADVANCED BUSINESS SOLUTIONS,26/06/2023 00:00,30/07/2023 00:00,P04-2024
R&B,INFORMATION TECHNOLOGY,SUPPLIES AND SERVICES,IT CORE SYSTEMS,4113,"P122330-SERVICE-eFinancials Xcel Download Maintenance, Qty 30",11/07/2023 00:00,275384,711.25,CE0021,ADVANCED BUSINESS SOLUTIONS,26/06/2023 00:00,30/07/2023 00:00,P04-2024
R&B,INFORMATION TECHNOLOGY,SUPPLIES AND SERVICES,IT CORE SYSTEMS,4113,P122330-SERVICE-Collaborative planning core support & mainten,11/07/2023 00:00,275384,714.55,CE0021,ADVANCED BUSINESS SOLUTIONS,26/06/2023 00:00,30/07/2023 00:00,P04-2024
R&B,INFORMATION TECHNOLOGY,SUPPLIES AND SERVICES,IT CORE SYSTEMS,4113,P122330-SERVICE-eFin services 01 Aug 23 - 31 Jul 24,11/07/2023 00:00,275384,711.25,CE0021,ADVANCED BUSINESS SOLUTIONS,26/06/2023 00:00,30/07/2023 00:00,P04-2024
R&B,INFORMATION TECHNOLOGY,SUPPLIES AND SERVICES,IT CORE SYSTEMS,4113,P121892-SERVICE-Support & Data Apr 23 - Mar 24,11/07/2023 00:00,275456,160.53,CY0653,CYBERTILL,26/06/2023 00:00,30/07/2023 00:00,P04-2024
R&B,INFORMATION TECHNOLOGY,SUPPLIES AND SERVICES,IT CORE SYSTEMS,4113,P121193-SERVICE-Gema parks Campsite monthly subs April 2023 -,11/07/2023 00:00,275551,605,NE0218,NETGUIDES LIMITED,26/06/2023 00:00,30/07/2023 00:00,P04-2024
R&B,INFORMATION TECHNOLOGY,SUPPLIES AND SERVICES,IT CORE SYSTEMS,4113,P121421-SERVICE-CIPHR Payroll April 2023 - March 2024 @ 569.,11/07/2023 00:00,275565,569.58,CI0721,CIPHR,26/06/2023 00:00,30/07/2023 00:00,P04-2024
R&B,INFORMATION TECHNOLOGY,SUPPLIES AND SERVICES,IT CORE SYSTEMS,4113,"P121499-SERVICE-Efin monthly managed fees @ 1,466.82",26/07/2023 00:00,275813,1466.82,CE0021,ADVANCED BUSINESS SOLUTIONS,26/06/2023 00:00,30/07/2023 00:00,P04-2024
R&B,INFORMATION TECHNOLOGY,SUPPLIES AND SERVICES,IT CORE SYSTEMS,4113,P122703-SERVICE-Migration from Avaya to CallSwitch,25/07/2023 00:00,275890,1800,IQ0022,IQUAL,26/06/2023 00:00,30/07/2023 00:00,P04-2024
R&B,INFORMATION TECHNOLOGY,SUPPLIES AND SERVICES,IT NETWORK & TELECOMS COSTS,4114,P122706-SERVICE-CallSwitch Business Licence including calls 0,26/07/2023 00:00,274784,3780,IQ0022,IQUAL,26/06/2023 00:00,30/07/2023 00:00,P04-2024
R&B,INFORMATION TECHNOLOGY,SUPPLIES AND SERVICES,IT NETWORK & TELECOMS COSTS,4114,P122709-SERVICE-CallSwitch Business Licence including calls A,26/07/2023 00:00,275137,1260,IQ0022,IQUAL,26/06/2023 00:00,30/07/2023 00:00,P04-2024
R&B,INFORMATION TECHNOLOGY,SUPPLIES AND SERVICES,IT NETWORK & TELECOMS COSTS,4114,P121817-SERVICE-Monthly SIP charges Apr 2023 - Mar 2024,11/07/2023 00:00,275417,159.34,FR0131,VOICEFLEX LTD,26/06/2023 00:00,30/07/2023 00:00,P04-2024
R&B,INFORMATION TECHNOLOGY,SUPPLIES AND SERVICES,IT NETWORK & TELECOMS COSTS,4114,P121558-SERVICE-MPLS for all sites April - September 2023,05/07/2023 00:00,275425,8757.36,PP0200,PPSNET LIMITED,26/06/2023 00:00,30/07/2023 00:00,P04-2024
R&B,INFORMATION TECHNOLOGY,SUPPLIES AND SERVICES,IT NETWORK & TELECOMS COSTS,4114,P121559-SERVICE-Campsites Circuits 1GB for Public WiFi - Apri,05/07/2023 00:00,275426,835,PP0200,PPSNET LIMITED,26/06/2023 00:00,30/07/2023 00:00,P04-2024
R&B,INFORMATION TECHNOLOGY,SUPPLIES AND SERVICES,IT HARDWARE & SOFTWARE COSTS,4116,"P122462-SERVICE-Maintenance, Support and Managed Service Cont",11/07/2023 00:00,273986,2101.22,WI0209,WIFI SPARK LIMITED,26/06/2023 00:00,30/07/2023 00:00,P04-2024
R&B,INFORMATION TECHNOLOGY,SUPPLIES AND SERVICES,IT HARDWARE & SOFTWARE COSTS,4116,P121396-SERVICE-Cloud Backup & Recovery for microsoft 365,26/07/2023 00:00,274786,35,IQ0022,IQUAL,26/06/2023 00:00,30/07/2023 00:00,P04-2024
R&B,INFORMATION TECHNOLOGY,SUPPLIES AND SERVICES,IT HARDWARE & SOFTWARE COSTS,4116,P121396-SERVICE-CyberFox Auto Elevate,26/07/2023 00:00,274786,60,IQ0022,IQUAL,26/06/2023 00:00,30/07/2023 00:00,P04-2024
R&B,INFORMATION TECHNOLOGY,SUPPLIES AND SERVICES,IT HARDWARE & SOFTWARE COSTS,4116,P121396-SERVICE-Datto RMM Device Licence,26/07/2023 00:00,274786,418,IQ0022,IQUAL,26/06/2023 00:00,30/07/2023 00:00,P04-2024
R&B,INFORMATION TECHNOLOGY,SUPPLIES AND SERVICES,IT HARDWARE & SOFTWARE COSTS,4116,P121396-SERVICE-Mimecast S1 - email fitering service per mail,26/07/2023 00:00,274786,400,IQ0022,IQUAL,26/06/2023 00:00,30/07/2023 00:00,P04-2024
R&B,INFORMATION TECHNOLOGY,SUPPLIES AND SERVICES,IT HARDWARE & SOFTWARE COSTS,4116,"P122462-SERVICE-Maintenance, Support and Managed Service Cont",11/07/2023 00:00,275234,163.42,WI0209,WIFI SPARK LIMITED,26/06/2023 00:00,30/07/2023 00:00,P04-2024
R&B,INFORMATION TECHNOLOGY,SUPPLIES AND SERVICES,IT HARDWARE & SOFTWARE COSTS,4116,"P122462-SERVICE-Maintenance, Support and Managed Service Cont",11/07/2023 00:00,275528,742.29,WI0209,WIFI SPARK LIMITED,26/06/2023 00:00,30/07/2023 00:00,P04-2024
R&B,INFORMATION TECHNOLOGY,SUPPLIES AND SERVICES,IT HARDWARE & SOFTWARE COSTS,4116,"P122462-SERVICE-Maintenance, Support and Managed Service Cont",26/07/2023 00:00,275846,-1774.38,WI0209,WIFI SPARK LIMITED,26/06/2023 00:00,30/07/2023 00:00,P04-2024
R&B,INFORMATION TECHNOLOGY,SUPPLIES AND SERVICES,IT HARDWARE & SOFTWARE COSTS,4116,"P122462-SERVICE-Maintenance, Support and Managed Service Cont",26/07/2023 00:00,275847,-163.42,WI0209,WIFI SPARK LIMITED,26/06/2023 00:00,30/07/2023 00:00,P04-2024
R&B,INFORMATION TECHNOLOGY,SUPPLIES AND SERVICES,IT MAINTENANCE AGREEMENTS,4119,P122283-SERVICE-Manage data network  support service,26/07/2023 00:00,274785,5700,IQ0022,IQUAL,26/06/2023 00:00,30/07/2023 00:00,P04-2024
R&B,INFORMATION TECHNOLOGY,SUPPLIES AND SERVICES,IT MAINTENANCE AGREEMENTS,4119,P121793-SERVICE-Digiticket monthly ticketing service,11/07/2023 00:00,275423,605,DI0304,DIGITAL TICKETING SYSTEMS LTD (DIGITICKETS),26/06/2023 00:00,30/07/2023 00:00,P04-2024
R&B,INFORMATION TECHNOLOGY,SUPPLIES AND SERVICES,IT MAINTENANCE AGREEMENTS,4119,P121793-SERVICE-Digiticket monthly ticketing service,11/07/2023 00:00,275571,532.96,DI0304,DIGITAL TICKETING SYSTEMS LTD (DIGITICKETS),26/06/2023 00:00,30/07/2023 00:00,P04-2024
R&B,INFORMATION TECHNOLOGY,SUPPLIES AND SERVICES,IT MAINTENANCE AGREEMENTS,4119,P121793-SERVICE-Digiticket monthly ticketing service,11/07/2023 00:00,275572,414.61,DI0304,DIGITAL TICKETING SYSTEMS LTD (DIGITICKETS),26/06/2023 00:00,30/07/2023 00:00,P04-2024
R&B,INFORMATION TECHNOLOGY,SUPPLIES AND SERVICES,IT MAINTENANCE AGREEMENTS,4119,P121793-SERVICE-Digiticket monthly ticketing service,11/07/2023 00:00,275573,98.11,DI0304,DIGITAL TICKETING SYSTEMS LTD (DIGITICKETS),26/06/2023 00:00,30/07/2023 00:00,P04-2024
R&B,INFORMATION TECHNOLOGY,SUPPLIES AND SERVICES,IT MAINTENANCE AGREEMENTS,4119,P121793-SERVICE-Digiticket monthly ticketing service,26/07/2023 00:00,275872,-4007,DI0304,DIGITAL TICKETING SYSTEMS LTD (DIGITICKETS),26/06/2023 00:00,30/07/2023 00:00,P04-2024
,LEE VALLEY MARINA STANSTEAD,EXPENDITURE FROM RENEWALS FUND,EXPENDITURE FROM RENEWALS FUND,4121,P122729-SERVICE-Coles 9 tonne crane,30/07/2023 00:00,276178,6500,JO0185,JOHN TAYLOR CRANE SERVICES LTD,26/06/2023 00:00,30/07/2023 00:00,P04-2024
P&V,LEE VALLEY FARM HOLYFIELDHALL,EXPENDITURE FROM RENEWALS FUND,EXPENDITURE FROM RENEWALS FUND,4121,R. W. CRAWFORD AGRICULTURAL MA,25/07/2023 00:00,276016,375,RW0257,R. W. CRAWFORD AGRICULTURAL MACHINERY LTD,26/06/2023 00:00,30/07/2023 00:00,P04-2024
P&V,LEE VALLEY FARM HOLYFIELDHALL,EXPENDITURE FROM RENEWALS FUND,EXPENDITURE FROM RENEWALS FUND,4121,R. W. CRAWFORD AGRICULTURAL MA,25/07/2023 00:00,276016,-500,RW0257,R. W. CRAWFORD AGRICULTURAL MACHINERY LTD,26/06/2023 00:00,30/07/2023 00:00,P04-2024
P&V,LEE VALLEY FARM HOLYFIELDHALL,EXPENDITURE FROM RENEWALS FUND,EXPENDITURE FROM RENEWALS FUND,4121,P122704-SERVICE-New Farm Vehicle - ET23XBC,25/07/2023 00:00,276016,25778,RW0257,R. W. CRAWFORD AGRICULTURAL MACHINERY LTD,26/06/2023 00:00,30/07/2023 00:00,P04-2024
P&V,LEE VALLEY FARM HOLYFIELDHALL,EXPENDITURE FROM RENEWALS FUND,EXPENDITURE FROM RENEWALS FUND,4121,R. W. CRAWFORD AGRICULTURAL MA,25/07/2023 00:00,276016,25903,RW0257,R. W. CRAWFORD AGRICULTURAL MACHINERY LTD,26/06/2023 00:00,30/07/2023 00:00,P04-2024
P&V,LEE VALLEY FARM HOLYFIELDHALL,EXPENDITURE FROM RENEWALS FUND,EXPENDITURE FROM RENEWALS FUND,4121,R. W. CRAWFORD AGRICULTURAL MA,25/07/2023 00:00,276016,-25778,RW0257,R. W. CRAWFORD AGRICULTURAL MACHINERY LTD,26/06/2023 00:00,30/07/2023 00:00,P04-2024
P&V,RIVER LEE COUNTRY PARK,SUPPLIES AND SERVICES,MATERIALS (LOCKS),4124,P122488-SERVICE-ASSA Keys - TXM x20,30/07/2023 00:00,276179,294.6,LO0020,LOCK AND KEY SERVICES,26/06/2023 00:00,30/07/2023 00:00,P04-2024
P&V,RIVER LEE COUNTRY PARK,SUPPLIES AND SERVICES,MATERIALS (LOCKS),4124,P122488-SERVICE-ASSA Keys - XM x20,30/07/2023 00:00,276179,256.6,LO0020,LOCK AND KEY SERVICES,26/06/2023 00:00,30/07/2023 00:00,P04-2024
P&V,RIVER LEE COUNTRY PARK,SUPPLIES AND SERVICES,MATERIALS (LOCKS),4124,P122488-SERVICE-Delivery - ASSA Keys,30/07/2023 00:00,276179,12,LO0020,LOCK AND KEY SERVICES,26/06/2023 00:00,30/07/2023 00:00,P04-2024
,LV LEISURE CENTRE CAMPSITE,SUPPLIES AND SERVICES,MATERIALS (LOCKS),4124,P122393-SERVICE-Delivery,17/07/2023 00:00,275440,5,LO0020,LOCK AND KEY SERVICES,26/06/2023 00:00,30/07/2023 00:00,P04-2024
,LV LEISURE CENTRE CAMPSITE,SUPPLIES AND SERVICES,MATERIALS (LOCKS),4124,P122393-SERVICE-1x ASSA Key - C1-1-4,17/07/2023 00:00,275440,14.73,LO0020,LOCK AND KEY SERVICES,26/06/2023 00:00,30/07/2023 00:00,P04-2024
P&V,ALMOST WILD CAMPSITE,SUPPLIES AND SERVICES,MATERIALS (GROUNDS MAINT),4125,P122650-SERVICE-Maintance of unsafe trees,30/07/2023 00:00,276036,300,MU0030,P J MUSK TREES,26/06/2023 00:00,30/07/2023 00:00,P04-2024
P&V,MYDDELTON HOUSE GARDENS,SUPPLIES AND SERVICES,MATERIALS (PLANTS & SHRUBS),4126,P122281-SERVICE-pots and bed plants,05/07/2023 00:00,274926,76.31,CL0093,CLOCKHOUSE NURSERY,26/06/2023 00:00,30/07/2023 00:00,P04-2024
,LEE VALLEY MARINA SPRINGFIELD,SUPPLIES AND SERVICES,MATERIALS (TOOLS & PLANT),4127,P122222-SERVICE-To supply items as per Quotation,11/07/2023 00:00,274982,420.67,EL0281,ELTHAM WELDING SUPPLIES LIMITED,26/06/2023 00:00,30/07/2023 00:00,P04-2024
,LEE VALLEY MARINA SPRINGFIELD,SUPPLIES AND SERVICES,MATERIALS (TOOLS & PLANT),4127,P122324-SERVICE-Workshop tools - drill,04/07/2023 00:00,275239,101.65,LS0469,L & S ENGINEERS LTD,26/06/2023 00:00,30/07/2023 00:00,P04-2024
,LEE VALLEY MARINA SPRINGFIELD,SUPPLIES AND SERVICES,MATERIALS (TOOLS & PLANT),4127,P122222-SERVICE-To supply items as per Quotation,11/07/2023 00:00,275543,-115,EL0281,ELTHAM WELDING SUPPLIES LIMITED,26/06/2023 00:00,30/07/2023 00:00,P04-2024
,LEE VALLEY MARINA STANSTEAD,SUPPLIES AND SERVICES,MATERIALS (TOOLS & PLANT),4127,P122729-SERVICE-transport costs coles crane,30/07/2023 00:00,276178,550,JO0185,JOHN TAYLOR CRANE SERVICES LTD,26/06/2023 00:00,30/07/2023 00:00,P04-2024
,STANSTEAD RECHARGEABLE WORKS,SUPPLIES AND SERVICES,MATERIALS (TOOLS & PLANT),4127,P122380-SERVICE-deck board (MC),04/07/2023 00:00,275242,231,TI0068,A10 TIMBER COMPANY,26/06/2023 00:00,30/07/2023 00:00,P04-2024
,STANSTEAD RECHARGEABLE WORKS,SUPPLIES AND SERVICES,MATERIALS (TOOLS & PLANT),4127,P122573-SERVICE-screwfix workshop july 23 Josh,25/07/2023 00:00,275799,472.71,SC0057,SCREWFIX DIRECT LTD,26/06/2023 00:00,30/07/2023 00:00,P04-2024
,STANSTEAD RECHARGEABLE WORKS,SUPPLIES AND SERVICES,MATERIALS (TOOLS & PLANT),4127,Stanstead-materials for workshop,25/07/2023 00:00,275799,465.72,SC0057,SCREWFIX DIRECT LTD,26/06/2023 00:00,30/07/2023 00:00,P04-2024
,STANSTEAD RECHARGEABLE WORKS,SUPPLIES AND SERVICES,MATERIALS (TOOLS & PLANT),4127,P122573-SERVICE-screwfix workshop july 23 josh 2,25/07/2023 00:00,275799,0.05,SC0057,SCREWFIX DIRECT LTD,26/06/2023 00:00,30/07/2023 00:00,P04-2024
,STANSTEAD RECHARGEABLE WORKS,SUPPLIES AND SERVICES,MATERIALS (TOOLS & PLANT),4127,Stanstead-materials for workshop,25/07/2023 00:00,275799,-472.71,SC0057,SCREWFIX DIRECT LTD,26/06/2023 00:00,30/07/2023 00:00,P04-2024
,STANSTEAD RECHARGEABLE WORKS,SUPPLIES AND SERVICES,MATERIALS (TOOLS & PLANT),4127,Stanstead-materials for workshop,25/07/2023 00:00,275799,6.99,SC0057,SCREWFIX DIRECT LTD,26/06/2023 00:00,30/07/2023 00:00,P04-2024
,STANSTEAD RECHARGEABLE WORKS,SUPPLIES AND SERVICES,MATERIALS (TOOLS & PLANT),4127,P122574-SERVICE-safety specs extra,25/07/2023 00:00,275801,0.01,SC0057,SCREWFIX DIRECT LTD,26/06/2023 00:00,30/07/2023 00:00,P04-2024
,STANSTEAD RECHARGEABLE WORKS,SUPPLIES AND SERVICES,MATERIALS (TOOLS & PLANT),4127,P122574-SERVICE-safety specs,25/07/2023 00:00,275801,35.29,SC0057,SCREWFIX DIRECT LTD,26/06/2023 00:00,30/07/2023 00:00,P04-2024
,STANSTEAD RECHARGEABLE WORKS,SUPPLIES AND SERVICES,MATERIALS (TOOLS & PLANT),4127,P122573-SERVICE-screwfix workshop july 23 Josh,25/07/2023 00:00,275822,-12.49,SC0057,SCREWFIX DIRECT LTD,26/06/2023 00:00,30/07/2023 00:00,P04-2024
,SPRINGFIELD RECHARGEABLE WORKS,SUPPLIES AND SERVICES,MATERIALS (ENG OTHER),4130,P122220-SERVICE-To hire 120 ton crane on 4/7/2023,19/07/2023 00:00,275766,1400,BA0339,BALDWINS CRANE HIRE LTD,26/06/2023 00:00,30/07/2023 00:00,P04-2024
,SPRINGFIELD RECHARGEABLE WORKS,SUPPLIES AND SERVICES,MATERIALS (ENG OTHER),4130,P122220-SERVICE-To provide insurance @ 15%,19/07/2023 00:00,275766,210,BA0339,BALDWINS CRANE HIRE LTD,26/06/2023 00:00,30/07/2023 00:00,P04-2024
,STANSTEAD RECHARGEABLE WORKS,SUPPLIES AND SERVICES,MATERIALS (ENG OTHER),4130,P122384-SERVICE-red heavy tubing,25/07/2023 00:00,275808,7.36,HO0349,HOMETREND SUPPLIES LTD,26/06/2023 00:00,30/07/2023 00:00,P04-2024
,STANSTEAD RECHARGEABLE WORKS,SUPPLIES AND SERVICES,MATERIALS (ENG OTHER),4130,P122384-SERVICE-red heavy tubing,25/07/2023 00:00,275809,72.53,HO0349,HOMETREND SUPPLIES LTD,26/06/2023 00:00,30/07/2023 00:00,P04-2024
,STANSTEAD RECHARGEABLE WORKS,SUPPLIES AND SERVICES,MATERIALS (ENG OTHER),4130,P122384-SERVICE-red heavy tubing,25/07/2023 00:00,275810,162,HO0349,HOMETREND SUPPLIES LTD,26/06/2023 00:00,30/07/2023 00:00,P04-2024
,STANSTEAD RECHARGEABLE WORKS,SUPPLIES AND SERVICES,MATERIALS (ENG OTHER),4130,P122597-SERVICE-Brass bearing,25/07/2023 00:00,275817,28.63,AS0036,ASAP SUPPLIES,26/06/2023 00:00,30/07/2023 00:00,P04-2024
,LEE VALLEY CARAVAN PARK,SUPPLIES AND SERVICES,MATERIALS (ENG OTHER),4130,P122620-SERVICE-Signs,18/07/2023 00:00,275604,347,SL0528,SLAM SIGNS LTD,26/06/2023 00:00,30/07/2023 00:00,P04-2024
,LEE VALLEY CARAVAN PARK,SUPPLIES AND SERVICES,MATERIALS (MEDICAL),4132,P122606-SERVICE-First Aid Kit and Eye wash station,19/07/2023 00:00,275814,23.65,FI0215,VALUE PRODUCTS LTD,26/06/2023 00:00,30/07/2023 00:00,P04-2024
,LEE VALLEY CARAVAN PARK,SUPPLIES AND SERVICES,MATERIALS (MEDICAL),4132,"P122687-SERVICE-Drip tray's, Shelving, Safety mirror - H & S",30/07/2023 00:00,276035,74.4,ES0413,ESE DIRECT,26/06/2023 00:00,30/07/2023 00:00,P04-2024
,LEE VALLEY CARAVAN PARK,SUPPLIES AND SERVICES,MATERIALS (MEDICAL),4132,"P122687-SERVICE-Drip tray's, Shelving, Safety mirror - H & S",30/07/2023 00:00,276057,8.4,ES0413,ESE DIRECT,26/06/2023 00:00,30/07/2023 00:00,P04-2024
,LEE VALLEY CARAVAN PARK,SUPPLIES AND SERVICES,MATERIALS (MEDICAL),4132,"P122687-SERVICE-Drip tray's, Shelving, Safety mirror - H & S",30/07/2023 00:00,276197,123.2,ES0413,ESE DIRECT,26/06/2023 00:00,30/07/2023 00:00,P04-2024
P&V,LEE VALLEY FARM HOLYFIELDHALL,SUPPLIES AND SERVICES,FEED,4133,P122481-SERVICE-Prime Rearer,11/07/2023 00:00,275424,2155.14,BO0246,FOR FARMERS UK LTD,26/06/2023 00:00,30/07/2023 00:00,P04-2024
P&V,LEE VALLEY FARM HOLYFIELDHALL,SUPPLIES AND SERVICES,FEED,4133,P122581-SERVICE-Nutrimol,17/07/2023 00:00,275596,2154.96,BO0246,FOR FARMERS UK LTD,26/06/2023 00:00,30/07/2023 00:00,P04-2024
P&V,LEE VALLEY FARM HOLYFIELDHALL,SUPPLIES AND SERVICES,DAIRY SUNDRIES,4138,P122011-SERVICE-Liquid Nitrogen,12/07/2023 00:00,275538,78,GE0005,GENUS BREEDING LTD,26/06/2023 00:00,30/07/2023 00:00,P04-2024
,LV CAMPSITE CARAVAN SALES,SUPPLIES AND SERVICES,CARAVAN PURCHASES,4171,THE UK CARAVAN CENTRE,25/07/2023 00:00,275346,43633.96,UK0086,THE UK CARAVAN CENTRE,26/06/2023 00:00,30/07/2023 00:00,P04-2024
,LV CAMPSITE CARAVAN SALES,SUPPLIES AND SERVICES,CARAVAN PURCHASES,4171,THE UK CARAVAN CENTRE,25/07/2023 00:00,275346,-54173.19,UK0086,THE UK CARAVAN CENTRE,26/06/2023 00:00,30/07/2023 00:00,P04-2024
,LV CAMPSITE CARAVAN SALES,SUPPLIES AND SERVICES,CARAVAN PURCHASES,4171,THE UK CARAVAN CENTRE,25/07/2023 00:00,275346,10539.23,UK0086,THE UK CARAVAN CENTRE,26/06/2023 00:00,30/07/2023 00:00,P04-2024
,LV CAMPSITE CARAVAN SALES,SUPPLIES AND SERVICES,CARAVAN PURCHASES,4171,P120254-SERVICE-Delta Superior Deluxe Sewardstone,25/07/2023 00:00,275346,54173.19,UK0086,THE UK CARAVAN CENTRE,26/06/2023 00:00,30/07/2023 00:00,P04-2024
,LV CAMPSITE CARAVAN SALES,SUPPLIES AND SERVICES,CARAVAN PURCHASES,4171,P122491-SERVICE-Amelia EB,11/07/2023 00:00,275568,20992.5,SH0693,SH CARAVANS,26/06/2023 00:00,30/07/2023 00:00,P04-2024
,LV CAMPSITE CARAVAN SALES,SUPPLIES AND SERVICES,CARAVAN PURCHASES,4171,P122492-SERVICE-Valley Lodge,11/07/2023 00:00,275569,29492.81,SH0693,SH CARAVANS,26/06/2023 00:00,30/07/2023 00:00,P04-2024
,LV CAMPSITE CARAVAN SALES,SUPPLIES AND SERVICES,CARAVAN PURCHASES,4171,Caravan sales-new Neaumont Resi,25/07/2023 00:00,275878,13419.31,PI0333,PIONEER CARAVANS,26/06/2023 00:00,30/07/2023 00:00,P04-2024
,LV CAMPSITE CARAVAN SALES,SUPPLIES AND SERVICES,CARAVAN PURCHASES,4171,Caravan sales-new Neaumont Resi,25/07/2023 00:00,275878,50660.55,PI0333,PIONEER CARAVANS,26/06/2023 00:00,30/07/2023 00:00,P04-2024
,LV CAMPSITE CARAVAN SALES,SUPPLIES AND SERVICES,CARAVAN PURCHASES,4171,Caravan sales-new Neaumont Resi,25/07/2023 00:00,275878,-64079.86,PI0333,PIONEER CARAVANS,26/06/2023 00:00,30/07/2023 00:00,P04-2024
,LV CAMPSITE CARAVAN SALES,SUPPLIES AND SERVICES,CARAVAN PURCHASES,4171,P121293-SERVICE-127 DW ABI Beaumont 42x14,25/07/2023 00:00,275878,64079.86,PI0333,PIONEER CARAVANS,26/06/2023 00:00,30/07/2023 00:00,P04-2024
,LV CAMPSITE CARAVAN SALES,SUPPLIES AND SERVICES,MISCELLANEOUS CARAVAN COSTS,4174,P122434-SERVICE-HH 127 DW Panasonic TZ Super Compact Air Con,18/07/2023 00:00,275353,1940,SP0698,SPEEDYFIT LTD,26/06/2023 00:00,30/07/2023 00:00,P04-2024
,LEE VALLEY CARAVAN PARK,SUPPLIES AND SERVICES,MISCELLANEOUS CARAVAN COSTS,4174,P122327-SERVICE-Other electrical goods,11/07/2023 00:00,275131,668.38,CU0759,CURRYS BUSINESS,26/06/2023 00:00,30/07/2023 00:00,P04-2024
,LEE VALLEY CARAVAN PARK,SUPPLIES AND SERVICES,MISCELLANEOUS CARAVAN COSTS,4174,P122327-SERVICE-Waher/Dryer,11/07/2023 00:00,275131,307.96,CU0759,CURRYS BUSINESS,26/06/2023 00:00,30/07/2023 00:00,P04-2024
,LEE VALLEY CARAVAN PARK,SUPPLIES AND SERVICES,MISCELLANEOUS CARAVAN COSTS,4174,P122327-SERVICE-QUOTE 52181263,11/07/2023 00:00,275166,47.09,CU0759,CURRYS BUSINESS,26/06/2023 00:00,30/07/2023 00:00,P04-2024
,LEE VALLEY CARAVAN PARK,SUPPLIES AND SERVICES,MISCELLANEOUS CARAVAN COSTS,4174,P122327-SERVICE-Hoover,11/07/2023 00:00,275166,71.74,CU0759,CURRYS BUSINESS,26/06/2023 00:00,30/07/2023 00:00,P04-2024
,LEE VALLEY CARAVAN PARK,SUPPLIES AND SERVICES,MISCELLANEOUS CARAVAN COSTS,4174,P122327-SERVICE-Microwave,11/07/2023 00:00,275166,79.05,CU0759,CURRYS BUSINESS,26/06/2023 00:00,30/07/2023 00:00,P04-2024
,LEE VALLEY CARAVAN PARK,SUPPLIES AND SERVICES,MISCELLANEOUS CARAVAN COSTS,4174,P122327-SERVICE-Other electrical goods,11/07/2023 00:00,275166,366.89,CU0759,CURRYS BUSINESS,26/06/2023 00:00,30/07/2023 00:00,P04-2024
,LEE VALLEY CARAVAN PARK,SUPPLIES AND SERVICES,MISCELLANEOUS CARAVAN COSTS,4174,P122327-SERVICE-Coffee Machine,11/07/2023 00:00,275166,55.4,CU0759,CURRYS BUSINESS,26/06/2023 00:00,30/07/2023 00:00,P04-2024
,LEE VALLEY CARAVAN PARK,SUPPLIES AND SERVICES,MISCELLANEOUS CARAVAN COSTS,4174,P122327-SERVICE-Hair Dryers,11/07/2023 00:00,275166,72.76,CU0759,CURRYS BUSINESS,26/06/2023 00:00,30/07/2023 00:00,P04-2024
,LEE VALLEY CARAVAN PARK,SUPPLIES AND SERVICES,MISCELLANEOUS CARAVAN COSTS,4174,P122365-SERVICE-Various Kitchen Utenstils - Riverside Cottage,04/07/2023 00:00,275332,25.03,PA0415,PATTERSONS,26/06/2023 00:00,30/07/2023 00:00,P04-2024
,LEE VALLEY CARAVAN PARK,SUPPLIES AND SERVICES,MISCELLANEOUS CARAVAN COSTS,4174,P122468-SERVICE-Planking yourstone,04/07/2023 00:00,275412,74.5,PI0333,PIONEER CARAVANS,26/06/2023 00:00,30/07/2023 00:00,P04-2024
,LEE VALLEY CARAVAN PARK,SUPPLIES AND SERVICES,MISCELLANEOUS CARAVAN COSTS,4174,P122736-SERVICE-Installing new T.Vs in The Cottage,30/07/2023 00:00,276188,379.49,AS0343,ASCENT AERIALS,26/06/2023 00:00,30/07/2023 00:00,P04-2024
,LEE VALLEY CARAVAN PARK,SUPPLIES AND SERVICES,MISCELLANEOUS CARAVAN COSTS,4174,P122715-SERVICE-Tresco bathroom leak repair,30/07/2023 00:00,276227,2380,SO0400,SOUTHERN GREEN SERVICES LIMITED,26/06/2023 00:00,30/07/2023 00:00,P04-2024
,LEE VALLEY CARAVAN PARK,SUPPLIES AND SERVICES,MISCELLANEOUS CARAVAN COSTS,4174,P122716-SERVICE-Tresco hob recall and replacement,30/07/2023 00:00,276228,645,SO0400,SOUTHERN GREEN SERVICES LIMITED,26/06/2023 00:00,30/07/2023 00:00,P04-2024
,LEE VALLEY CARAVAN PARK,SUPPLIES AND SERVICES,MISCELLANEOUS CARAVAN COSTS,4174,P122717-SERVICE-Tresco carpet replacement,30/07/2023 00:00,276229,680,SO0400,SOUTHERN GREEN SERVICES LIMITED,26/06/2023 00:00,30/07/2023 00:00,P04-2024
,LEE VALLEY CARAVAN PARK,SUPPLIES AND SERVICES,MISCELLANEOUS CARAVAN COSTS,4174,P122718-SERVICE-Country hob recall & replacement,30/07/2023 00:00,276230,645,SO0400,SOUTHERN GREEN SERVICES LIMITED,26/06/2023 00:00,30/07/2023 00:00,P04-2024
,LEE VALLEY CARAVAN PARK,SUPPLIES AND SERVICES,MISCELLANEOUS CARAVAN COSTS,4174,P122719-SERVICE-Cottage washing machine installation,30/07/2023 00:00,276231,175,SO0400,SOUTHERN GREEN SERVICES LIMITED,26/06/2023 00:00,30/07/2023 00:00,P04-2024
,LEE VALLEY MARINA SPRINGFIELD,SUPPLIES AND SERVICES,CLOTHING & UNIFORMS,4225,P122545-SERVICE-To suppy PPE & uniform as per quote,26/07/2023 00:00,275775,293.45,SA0008,SAFETEC DIRECT LTD,26/06/2023 00:00,30/07/2023 00:00,P04-2024
,LEE VALLEY MARINA STANSTEAD,SUPPLIES AND SERVICES,CLOTHING & UNIFORMS,4225,P122004-SERVICE-welding gloves,17/07/2023 00:00,275595,8.5,WE0257,PERFECT WELDING LTD,26/06/2023 00:00,30/07/2023 00:00,P04-2024
,LEE VALLEY CAMPSITE,SUPPLIES AND SERVICES,CLOTHING & UNIFORMS,4225,Sewarstone-Edm   GA CLOTHING,30/07/2023 00:00,276070,58.95,SC0057,SCREWFIX DIRECT LTD,26/06/2023 00:00,30/07/2023 00:00,P04-2024
,LEE VALLEY CAMPSITE,SUPPLIES AND SERVICES,CLOTHING & UNIFORMS,4225,P122746-SERVICE-GA Safety wear EDM & S/S,30/07/2023 00:00,276070,237.85,SC0057,SCREWFIX DIRECT LTD,26/06/2023 00:00,30/07/2023 00:00,P04-2024
,LEE VALLEY CAMPSITE,SUPPLIES AND SERVICES,CLOTHING & UNIFORMS,4225,Sewarstone-Edm   GA CLOTHING,30/07/2023 00:00,276070,-237.85,SC0057,SCREWFIX DIRECT LTD,26/06/2023 00:00,30/07/2023 00:00,P04-2024
,LEE VALLEY CAMPSITE,SUPPLIES AND SERVICES,CLOTHING & UNIFORMS,4225,Sewarstone-Edm   GA CLOTHING,30/07/2023 00:00,276070,59.98,SC0057,SCREWFIX DIRECT LTD,26/06/2023 00:00,30/07/2023 00:00,P04-2024
P&V,SOUTH AREA RANGERS,SUPPLIES AND SERVICES,CLOTHING & UNIFORMS,4225,P122294-SERVICE-1x Sthil Gloves - 886110510 Large,12/07/2023 00:00,275617,21.85,AP0245,APS LIMITED,26/06/2023 00:00,30/07/2023 00:00,P04-2024
P&V,SOUTH AREA RANGERS,SUPPLIES AND SERVICES,CLOTHING & UNIFORMS,4225,P122154-SERVICE-2x Sthil Gloves,18/07/2023 00:00,275789,43.7,AP0245,APS LIMITED,26/06/2023 00:00,30/07/2023 00:00,P04-2024
P&V,RIVER LEE COUNTRY PARK,SUPPLIES AND SERVICES,CLOTHING & UNIFORMS,4225,P121940-SERVICE-2x Ladies Peru Trousers Black Regular S10,25/07/2023 00:00,275603,48.56,IL0177,KEELA INTERNATION LTD,26/06/2023 00:00,30/07/2023 00:00,P04-2024
P&V,RIVER LEE COUNTRY PARK,SUPPLIES AND SERVICES,CLOTHING & UNIFORMS,4225,P121940-SERVICE-3x Peru Trousers Black Reg W28,25/07/2023 00:00,275603,72.84,IL0177,KEELA INTERNATION LTD,26/06/2023 00:00,30/07/2023 00:00,P04-2024
P&V,RIVER LEE COUNTRY PARK,SUPPLIES AND SERVICES,CLOTHING & UNIFORMS,4225,P121940-SERVICE-3x Peru Trousers Black Reg W30,25/07/2023 00:00,275603,24.28,IL0177,KEELA INTERNATION LTD,26/06/2023 00:00,30/07/2023 00:00,P04-2024
P&V,RIVER LEE COUNTRY PARK,SUPPLIES AND SERVICES,CLOTHING & UNIFORMS,4225,P121940-SERVICE-7x Peru Trousers Black Reg W32,25/07/2023 00:00,275603,169.96,IL0177,KEELA INTERNATION LTD,26/06/2023 00:00,30/07/2023 00:00,P04-2024
P&V,RIVER LEE COUNTRY PARK,SUPPLIES AND SERVICES,CLOTHING & UNIFORMS,4225,P121940-SERVICE-3x Peru Trousers Black Reg W30,25/07/2023 00:00,275877,48.56,IL0177,KEELA INTERNATION LTD,26/06/2023 00:00,30/07/2023 00:00,P04-2024
P&V,RIVER LEE COUNTRY PARK,SUPPLIES AND SERVICES,CLOTHING & UNIFORMS,4225,P121940-SERVICE-6x Peru Trousers Black Long W34,25/07/2023 00:00,275877,145.68,IL0177,KEELA INTERNATION LTD,26/06/2023 00:00,30/07/2023 00:00,P04-2024
,LV LEISURE CENTRE CAMPSITE,SUPPLIES AND SERVICES,CLOTHING & UNIFORMS,4225,Sewarstone-Edm   GA CLOTHING,30/07/2023 00:00,276070,69.98,SC0057,SCREWFIX DIRECT LTD,26/06/2023 00:00,30/07/2023 00:00,P04-2024
,LV LEISURE CENTRE CAMPSITE,SUPPLIES AND SERVICES,CLOTHING & UNIFORMS,4225,Sewarstone-Edm   GA CLOTHING,30/07/2023 00:00,276070,48.94,SC0057,SCREWFIX DIRECT LTD,26/06/2023 00:00,30/07/2023 00:00,P04-2024
CEO,PR/COMMUNICATIONS,SUPPLIES AND SERVICES,OFFICE EXPENSES,4311,P122176-SERVICE-LVRPA business cards,17/07/2023 00:00,275554,88,BE0505,BELMONT PRESS,26/06/2023 00:00,30/07/2023 00:00,P04-2024
R&B,DEMOCRATIC REPRESENTATION & MA,SUPPLIES AND SERVICES,OFFICE EXPENSES,4311,P122480-SERVICE-Glue Sticks (BK80511),17/07/2023 00:00,275625,13.63,TH0008,JKL SOLUTIONS LTD,26/06/2023 00:00,30/07/2023 00:00,P04-2024
R&B,FINANCE,SUPPLIES AND SERVICES,OFFICE EXPENSES,4311,P122477-SERVICE-Q-connect multipurpose labels KF26051 21.shee,12/07/2023 00:00,275628,13.1,TH0008,JKL SOLUTIONS LTD,26/06/2023 00:00,30/07/2023 00:00,P04-2024
R&B,FINANCE,SUPPLIES AND SERVICES,OFFICE EXPENSES,4311,P122477-SERVICE-Prestige Credit Card Roll 57mmx38mmx12mm,12/07/2023 00:00,275628,5.78,TH0008,JKL SOLUTIONS LTD,26/06/2023 00:00,30/07/2023 00:00,P04-2024
,LEE VALLEY MARINA SPRINGFIELD,SUPPLIES AND SERVICES,OFFICE EXPENSES,4311,P122643-SERVICE-To supply items as requested,25/07/2023 00:00,275970,113.19,TH0008,JKL SOLUTIONS LTD,26/06/2023 00:00,30/07/2023 00:00,P04-2024
,LEE VALLEY MARINA STANSTEAD,SUPPLIES AND SERVICES,OFFICE EXPENSES,4311,"P122392-SERVICE-stationery posts, chains, till rolls",04/07/2023 00:00,275236,414.16,TH0008,JKL SOLUTIONS LTD,26/06/2023 00:00,30/07/2023 00:00,P04-2024
,LEE VALLEY CAMPSITE,SUPPLIES AND SERVICES,OFFICE EXPENSES,4311,P122685-SERVICE-Annual renewal 23/24 house,26/07/2023 00:00,275807,159,TV0065,TV LICENSING,26/06/2023 00:00,30/07/2023 00:00,P04-2024
P&V,RIVER LEE COUNTRY PARK,SUPPLIES AND SERVICES,OFFICE EXPENSES,4311,P122299-SERVICE-1x Yorkshire Tea Bags - BZ11835,11/07/2023 00:00,275026,17.44,TH0008,JKL SOLUTIONS LTD,26/06/2023 00:00,30/07/2023 00:00,P04-2024
P&V,RIVER LEE COUNTRY PARK,SUPPLIES AND SERVICES,OFFICE EXPENSES,4311,P122299-SERVICE-3x Hole Punch Black - KF01234,11/07/2023 00:00,275026,9.99,TH0008,JKL SOLUTIONS LTD,26/06/2023 00:00,30/07/2023 00:00,P04-2024
P&V,RIVER LEE COUNTRY PARK,SUPPLIES AND SERVICES,OFFICE EXPENSES,4311,P122299-SERVICE-1x Semi-Skimmed Milk Pots Pk120 - AU99486,11/07/2023 00:00,275026,6.63,TH0008,JKL SOLUTIONS LTD,26/06/2023 00:00,30/07/2023 00:00,P04-2024
P&V,RIVER LEE COUNTRY PARK,SUPPLIES AND SERVICES,OFFICE EXPENSES,4311,P122299-SERVICE-1x A3 Photo Copier Paper Pk500 - MO08330,11/07/2023 00:00,275026,9.9,TH0008,JKL SOLUTIONS LTD,26/06/2023 00:00,30/07/2023 00:00,P04-2024
P&V,RIVER LEE COUNTRY PARK,SUPPLIES AND SERVICES,OFFICE EXPENSES,4311,P122299-SERVICE-1x Inisible Tape 19mmx33m - KF02164,11/07/2023 00:00,275026,0.48,TH0008,JKL SOLUTIONS LTD,26/06/2023 00:00,30/07/2023 00:00,P04-2024
P&V,RIVER LEE COUNTRY PARK,SUPPLIES AND SERVICES,OFFICE EXPENSES,4311,P122299-SERVICE-4x Self Adhesive Frames - DB06824,11/07/2023 00:00,275026,38,TH0008,JKL SOLUTIONS LTD,26/06/2023 00:00,30/07/2023 00:00,P04-2024
P&V,RIVER LEE COUNTRY PARK,SUPPLIES AND SERVICES,OFFICE EXPENSES,4311,P122299-SERVICE-1x All Purpose Scissors 170mm - KF01228,11/07/2023 00:00,275026,1,TH0008,JKL SOLUTIONS LTD,26/06/2023 00:00,30/07/2023 00:00,P04-2024
P&V,RIVER LEE COUNTRY PARK,SUPPLIES AND SERVICES,OFFICE EXPENSES,4311,P122536-SERVICE-Delivery,26/07/2023 00:00,275879,40,TH0008,JKL SOLUTIONS LTD,26/06/2023 00:00,30/07/2023 00:00,P04-2024
P&V,RIVER LEE COUNTRY PARK,SUPPLIES AND SERVICES,OFFICE EXPENSES,4311,P122536-SERVICE-6x Adjustable Office Chairs - V102-00-K,26/07/2023 00:00,275879,539.94,TH0008,JKL SOLUTIONS LTD,26/06/2023 00:00,30/07/2023 00:00,P04-2024
P&V,RIVER LEE COUNTRY PARK,SUPPLIES AND SERVICES,OFFICE EXPENSES,4311,P122536-SERVICE-1x Cosy Active Sitting Ball - LZ12953,26/07/2023 00:00,275879,49.99,TH0008,JKL SOLUTIONS LTD,26/06/2023 00:00,30/07/2023 00:00,P04-2024
,LV LEISURE CENTRE CAMPSITE,SUPPLIES AND SERVICES,OFFICE EXPENSES,4311,P122397-SERVICE-office supplies,04/07/2023 00:00,275237,75.92,TH0008,JKL SOLUTIONS LTD,26/06/2023 00:00,30/07/2023 00:00,P04-2024
,LV LEISURE CENTRE CAMPSITE,SUPPLIES AND SERVICES,OFFICE EXPENSES,4311,P122554-SERVICE-Stationary office supplies,17/07/2023 00:00,275781,63.73,TH0008,JKL SOLUTIONS LTD,26/06/2023 00:00,30/07/2023 00:00,P04-2024
R&B,INFORMATION TECHNOLOGY,SUPPLIES AND SERVICES,PHOTOCOPYING,4314,IT-Photocopying machines,26/07/2023 00:00,275656,326.82,KO0071,KONICA MINOLTA BUSINESS SOLUTIONS ( UK) LTD,26/06/2023 00:00,30/07/2023 00:00,P04-2024
R&B,INFORMATION TECHNOLOGY,SUPPLIES AND SERVICES,PHOTOCOPYING,4314,IT-copying machines 14/07-13/10/23,17/07/2023 00:00,275767,459.6,KO0071,KONICA MINOLTA BUSINESS SOLUTIONS ( UK) LTD,26/06/2023 00:00,30/07/2023 00:00,P04-2024
P&V,MYDDELTON HOUSE,SUPPLIES AND SERVICES,POSTAGE & MAILING,4445,Md Hs-postage meter,17/07/2023 00:00,275664,-812.59,PI0021,PITNEY BOWES PURCHASE POWER,26/06/2023 00:00,30/07/2023 00:00,P04-2024
P&V,MYDDELTON HOUSE,SUPPLIES AND SERVICES,POSTAGE & MAILING,4445,Md Hs-postage meter,17/07/2023 00:00,275664,1000,PI0021,PITNEY BOWES PURCHASE POWER,26/06/2023 00:00,30/07/2023 00:00,P04-2024
P&V,MYDDELTON HOUSE,SUPPLIES AND SERVICES,POSTAGE & MAILING,4445,Md Hs-postage meter,17/07/2023 00:00,275664,13,PI0021,PITNEY BOWES PURCHASE POWER,26/06/2023 00:00,30/07/2023 00:00,P04-2024
R&B,INFORMATION TECHNOLOGY,SUPPLIES AND SERVICES,TELEPHONES (OFFICE),4481,Jun-23,12/07/2023 00:00,275588,2003.97,ID0002,DAISY COMMUNICATIONS LTD,26/06/2023 00:00,30/07/2023 00:00,P04-2024
R&B,INFORMATION TECHNOLOGY,SUPPLIES AND SERVICES,TELEPHONES (OFFICE),4481,IT-Zen fibre pro monthly chg,17/07/2023 00:00,275662,38,ZE0007,ZEN INTERNET LTD,26/06/2023 00:00,30/07/2023 00:00,P04-2024
R&B,INFORMATION TECHNOLOGY,SUPPLIES AND SERVICES,TELEPHONES (OFFICE),4481,IT-business talk monthly charge,17/07/2023 00:00,275774,31.32,ZE0007,ZEN INTERNET LTD,26/06/2023 00:00,30/07/2023 00:00,P04-2024
R&B,INFORMATION TECHNOLOGY,SUPPLIES AND SERVICES,TELEPHONES (MOBILE),4484,Jun-23,04/07/2023 00:00,275335,51.64,VO0010,VODAFONE  LIMITED (CORPORATE),26/06/2023 00:00,30/07/2023 00:00,P04-2024
R&B,INFORMATION TECHNOLOGY,SUPPLIES AND SERVICES,TELEPHONES (MOBILE),4484,Jun-23,04/07/2023 00:00,275335,916.3,VO0010,VODAFONE  LIMITED (CORPORATE),26/06/2023 00:00,30/07/2023 00:00,P04-2024
R&B,INFORMATION TECHNOLOGY,SUPPLIES AND SERVICES,TELEPHONES (MOBILE),4484,Jun-23,12/07/2023 00:00,275649,1.56,GA0432,GAMMA TELECOM LTD,26/06/2023 00:00,30/07/2023 00:00,P04-2024
R&B,INFORMATION TECHNOLOGY,SUPPLIES AND SERVICES,TELEPHONES (MOBILE),4484,IT-monthly mobile charges,30/07/2023 00:00,276051,921.1,VO0010,VODAFONE  LIMITED (CORPORATE),26/06/2023 00:00,30/07/2023 00:00,P04-2024
R&B,DEMOCRATIC REPRESENTATION & MA,SUPPLIES AND SERVICES,MEMBERS EXPENSES,4502,P122458-SERVICE-Catering on 22/05/23,05/07/2023 00:00,275395,74.5,SH0256,SHARRONS EVENT CATERING COMPANY LTD,26/06/2023 00:00,30/07/2023 00:00,P04-2024
R&B,DEMOCRATIC REPRESENTATION & MA,SUPPLIES AND SERVICES,MEMBERS EXPENSES,4502,P122370-SERVICE-Catering at White Water Centre for Authority,25/07/2023 00:00,275886,679.05,GR0097,GREENWICH LEISURE LTD,26/06/2023 00:00,30/07/2023 00:00,P04-2024
R&B,DEMOCRATIC REPRESENTATION & MA,SUPPLIES AND SERVICES,MEMBERS EXPENSES,4502,Panel meeting /prep and reading,30/07/2023 00:00,276067,450,AS0504,DERRICK ASHLEY,26/06/2023 00:00,30/07/2023 00:00,P04-2024
R&B,DEMOCRATIC REPRESENTATION & MA,SUPPLIES AND SERVICES,MEMBERS EXPENSES,4502,Panel meeting/prep & reading,30/07/2023 00:00,276068,450,SH0484,MR S SHELDON,26/06/2023 00:00,30/07/2023 00:00,P04-2024
R&B,CORPORATE TRAINING,SUPPLIES AND SERVICES,HOSPITALITY,4505,P122099-SERVICE-HoS Training 6 June - Lunch for 12 People,04/07/2023 00:00,275206,89.4,SH0256,SHARRONS EVENT CATERING COMPANY LTD,26/06/2023 00:00,30/07/2023 00:00,P04-2024
CEO,PR/COMMUNICATIONS,SUPPLIES AND SERVICES,HOSPITALITY,4505,P122482-SERVICE-FIH Pro League - drinks vouchers x 24 @ 4.50,11/07/2023 00:00,275525,108,GR0097,GREENWICH LEISURE LTD,26/06/2023 00:00,30/07/2023 00:00,P04-2024
P&V,FISHERIES MANAGEMENT,SUPPLIES AND SERVICES,MARKETING,4603,P122473-SERVICE-Notebooks (191857) as Per Quote: QU0896234,17/07/2023 00:00,275772,764,TO0195,TOTAL MERCHANDISE LIMITED,26/06/2023 00:00,30/07/2023 00:00,P04-2024
,LEE VALLEY MARINA STANSTEAD,SUPPLIES AND SERVICES,MARKETING,4603,P121741-SERVICE-marina signage (SC),17/07/2023 00:00,275371,538,SI0024,SIGNS EXPRESS (HARLOW),26/06/2023 00:00,30/07/2023 00:00,P04-2024
,LEE VALLEY CAMPSITE,SUPPLIES AND SERVICES,MARKETING,4603,P122656-SERVICE-SC Visit England Member Renewal,25/07/2023 00:00,275972,490.93,VI0109,VISIT ENGLAND ASSESSMENT SERVICES,26/06/2023 00:00,30/07/2023 00:00,P04-2024
P&V,RIVER LEE COUNTRY PARK,SUPPLIES AND SERVICES,MARKETING,4603,P122389-SERVICE-Interp Boards Printing,11/07/2023 00:00,275376,37.18,MA0167,MARTIN DANNELL & CO LTD,26/06/2023 00:00,30/07/2023 00:00,P04-2024
,LV LEISURE CENTRE GOLF COURSE,SUPPLIES AND SERVICES,MARKETING,4603,P122375-SERVICE-Golf Loyalty Cards,17/07/2023 00:00,275531,23.2,SO0582,SOLOPRESS,26/06/2023 00:00,30/07/2023 00:00,P04-2024
,LEE VALLEY WATERWORKS CENTRE,SUPPLIES AND SERVICES,PEST CONTROL,4625,P122562-SERVICE-Pest Control - WaterWorks - Jul to Sep,12/07/2023 00:00,275645,165,VE0006,VERMINATE CITY & RURAL PEST CONTROL LTD,26/06/2023 00:00,30/07/2023 00:00,P04-2024
P&V,NORTH AREA RANGERS,SUPPLIES AND SERVICES,PEST CONTROL,4625,P122082-SERVICE-Pest Control - North Sites - Jun,04/07/2023 00:00,274795,73.33,VE0006,VERMINATE CITY & RURAL PEST CONTROL LTD,26/06/2023 00:00,30/07/2023 00:00,P04-2024
P&V,NORTH AREA RANGERS,SUPPLIES AND SERVICES,PEST CONTROL,4625,P122060-SERVICE-Pest Control - Ware Town Centre - Jun,04/07/2023 00:00,274797,70,VE0006,VERMINATE CITY & RURAL PEST CONTROL LTD,26/06/2023 00:00,30/07/2023 00:00,P04-2024
P&V,NORTH AREA RANGERS,SUPPLIES AND SERVICES,PEST CONTROL,4625,P122082-SERVICE-Pest Control - North Sites - Jul,18/07/2023 00:00,275636,73.33,VE0006,VERMINATE CITY & RURAL PEST CONTROL LTD,26/06/2023 00:00,30/07/2023 00:00,P04-2024
P&V,NORTH AREA RANGERS,SUPPLIES AND SERVICES,PEST CONTROL,4625,P122060-SERVICE-Pest Control - Ware Town Centre - Jul,18/07/2023 00:00,275637,70,VE0006,VERMINATE CITY & RURAL PEST CONTROL LTD,26/06/2023 00:00,30/07/2023 00:00,P04-2024
P&V,SOUTH AREA RANGERS,SUPPLIES AND SERVICES,PEST CONTROL,4625,P122058-SERVICE-Pest Control - Tottenham Marshes - Jun,04/07/2023 00:00,274805,70,VE0006,VERMINATE CITY & RURAL PEST CONTROL LTD,26/06/2023 00:00,30/07/2023 00:00,P04-2024
P&V,SOUTH AREA RANGERS,SUPPLIES AND SERVICES,PEST CONTROL,4625,P122058-SERVICE-Pest Control - Tottenham Marshes - Jul,12/07/2023 00:00,275638,70,VE0006,VERMINATE CITY & RURAL PEST CONTROL LTD,26/06/2023 00:00,30/07/2023 00:00,P04-2024
P&V,ABBEY GARDENS,SUPPLIES AND SERVICES,PEST CONTROL,4625,P122082-SERVICE-Pest Control - North Sites - Jun,04/07/2023 00:00,274795,36.67,VE0006,VERMINATE CITY & RURAL PEST CONTROL LTD,26/06/2023 00:00,30/07/2023 00:00,P04-2024
P&V,ABBEY GARDENS,SUPPLIES AND SERVICES,PEST CONTROL,4625,P122082-SERVICE-Pest Control - North Sites - Jul,18/07/2023 00:00,275636,36.67,VE0006,VERMINATE CITY & RURAL PEST CONTROL LTD,26/06/2023 00:00,30/07/2023 00:00,P04-2024
P&V,RIVER LEE COUNTRY PARK,SUPPLIES AND SERVICES,PEST CONTROL,4625,P122082-SERVICE-Pest Control - North Sites - Jun,04/07/2023 00:00,274795,73.33,VE0006,VERMINATE CITY & RURAL PEST CONTROL LTD,26/06/2023 00:00,30/07/2023 00:00,P04-2024
P&V,RIVER LEE COUNTRY PARK,SUPPLIES AND SERVICES,PEST CONTROL,4625,P122082-SERVICE-Pest Control - North Sites - Jul,18/07/2023 00:00,275636,73.33,VE0006,VERMINATE CITY & RURAL PEST CONTROL LTD,26/06/2023 00:00,30/07/2023 00:00,P04-2024
P&V,FORMER LV LIDO SITE,SUPPLIES AND SERVICES,PEST CONTROL,4625,P122082-SERVICE-Pest Control - North Sites - Jun,04/07/2023 00:00,274795,36.67,VE0006,VERMINATE CITY & RURAL PEST CONTROL LTD,26/06/2023 00:00,30/07/2023 00:00,P04-2024
P&V,FORMER LV LIDO SITE,SUPPLIES AND SERVICES,PEST CONTROL,4625,P122082-SERVICE-Pest Control - North Sites - Jul,18/07/2023 00:00,275636,36.67,VE0006,VERMINATE CITY & RURAL PEST CONTROL LTD,26/06/2023 00:00,30/07/2023 00:00,P04-2024
,LEE VALLEY MARINA SPRINGFIELD,SUPPLIES AND SERVICES,MERCHANT PROCESSING CHARGES,4641,Monthly Fee,04/07/2023 00:00,275224,30,WO0338,WORLDPAY,26/06/2023 00:00,30/07/2023 00:00,P04-2024
,LEE VALLEY MARINA SPRINGFIELD,SUPPLIES AND SERVICES,MERCHANT PROCESSING CHARGES,4641,Monthly fee,30/07/2023 00:00,276234,30,WO0338,WORLDPAY,26/06/2023 00:00,30/07/2023 00:00,P04-2024
,LEE VALLEY MARINA STANSTEAD,SUPPLIES AND SERVICES,MERCHANT PROCESSING CHARGES,4641,Monthly Fee,04/07/2023 00:00,275224,30,WO0338,WORLDPAY,26/06/2023 00:00,30/07/2023 00:00,P04-2024
,LEE VALLEY MARINA STANSTEAD,SUPPLIES AND SERVICES,MERCHANT PROCESSING CHARGES,4641,Monthly fee,30/07/2023 00:00,276234,30,WO0338,WORLDPAY,26/06/2023 00:00,30/07/2023 00:00,P04-2024
P&V,MYDDELTON HOUSE,SUPPLIES AND SERVICES,CASH COLLECTIONS,4642,P122771-SERVICE-Myddelton House 15 & 21/7/23,30/07/2023 00:00,275618,24.86,SE0692,SECURITY PLUS LTD,26/06/2023 00:00,30/07/2023 00:00,P04-2024
,LEE VALLEY MARINA SPRINGFIELD,SUPPLIES AND SERVICES,CASH COLLECTIONS,4642,P122771-SERVICE-Stanstead Marina 7 & 21/7/23,30/07/2023 00:00,275618,24.86,SE0692,SECURITY PLUS LTD,26/06/2023 00:00,30/07/2023 00:00,P04-2024
,LEE VALLEY CAMPSITE,SUPPLIES AND SERVICES,CASH COLLECTIONS,4642,"P122771-SERVICE-Sewardstone campsite 14,21 & 28/7/23",30/07/2023 00:00,275618,37.29,SE0692,SECURITY PLUS LTD,26/06/2023 00:00,30/07/2023 00:00,P04-2024
,LEE VALLEY CARAVAN PARK,SUPPLIES AND SERVICES,CASH COLLECTIONS,4642,"P122771-SERVICE-Dobbs Weir 7,14,21 & 28/7/23",30/07/2023 00:00,275618,49.72,SE0692,SECURITY PLUS LTD,26/06/2023 00:00,30/07/2023 00:00,P04-2024
,LV LEISURE CENTRE CAMPSITE,SUPPLIES AND SERVICES,CASH COLLECTIONS,4642,Cash collection-June 2023,30/07/2023 00:00,275618,49.72,SE0692,SECURITY PLUS LTD,26/06/2023 00:00,30/07/2023 00:00,P04-2024
,LV LEISURE CENTRE GOLF COURSE,SUPPLIES AND SERVICES,CASH COLLECTIONS,4642,"P122771-SERVICE-Edmonton campsite 7,14,21 & 28/7/23",30/07/2023 00:00,275618,49.72,SE0692,SECURITY PLUS LTD,26/06/2023 00:00,30/07/2023 00:00,P04-2024
,LV LEISURE CENTRE GOLF COURSE,SUPPLIES AND SERVICES,CASH COLLECTIONS,4642,Cash collection-June 2023,30/07/2023 00:00,275618,-49.72,SE0692,SECURITY PLUS LTD,26/06/2023 00:00,30/07/2023 00:00,P04-2024
R&B,FINANCE & RESOURCES MANAGEMENT,SUPPLIES AND SERVICES,DEBT RECOVERY FEES,4646,P121343-SERVICE-DEBT RECOVERY FEES 2023/2024,25/07/2023 00:00,275884,1112.11,LE0069,LEGAL RECOVERIES AND COLLECTIONS LIMITED,26/06/2023 00:00,30/07/2023 00:00,P04-2024
,LEE VALLEY MARINA STANSTEAD,SUPPLIES AND SERVICES,SECURITY,4650,P122644-SERVICE-3 boxes of fobs,30/07/2023 00:00,276037,106,AI0262,AIS ( ADVANCED INTEGRATED SECURITY),26/06/2023 00:00,30/07/2023 00:00,P04-2024
,LEE VALLEY CAMPSITE,SUPPLIES AND SERVICES,SECURITY,4650,P122747-SERVICE-17/06/23 SITE SUPPORT 11PM,30/07/2023 00:00,275888,120,AH0449,MR HUMZAH AHMED,26/06/2023 00:00,30/07/2023 00:00,P04-2024
,LEE VALLEY CAMPSITE,SUPPLIES AND SERVICES,SECURITY,4650,P122747-SERVICE-21/06/23 TRAVELLERS EVICTION,30/07/2023 00:00,275888,340,AH0449,MR HUMZAH AHMED,26/06/2023 00:00,30/07/2023 00:00,P04-2024
,LEE VALLEY CAMPSITE,SUPPLIES AND SERVICES,SECURITY,4650,P122747-SERVICE-18/06/23 SITESUPPORT 11PM,30/07/2023 00:00,275888,120,AH0449,MR HUMZAH AHMED,26/06/2023 00:00,30/07/2023 00:00,P04-2024
,LEE VALLEY CAMPSITE,SUPPLIES AND SERVICES,SECURITY,4650,P122747-SERVICE-20/06/23 TRAVELLERS EVICTION,30/07/2023 00:00,275888,340,AH0449,MR HUMZAH AHMED,26/06/2023 00:00,30/07/2023 00:00,P04-2024
P&V,NORTH AREA RANGERS,SUPPLIES AND SERVICES,SECURITY,4650,P122126-SERVICE-Security - North of Park,04/07/2023 00:00,275005,6962.27,PA0059,PARKGUARD LTD,26/06/2023 00:00,30/07/2023 00:00,P04-2024
P&V,NORTH AREA RANGERS,SUPPLIES AND SERVICES,SECURITY,4650,P122402-SERVICE-'Out of Hours Call Service' for Lee Valley Pa,04/07/2023 00:00,275031,1311.27,TE0585,TENDRING DISTRICT COUNCIL,26/06/2023 00:00,30/07/2023 00:00,P04-2024
P&V,NORTH AREA RANGERS,SUPPLIES AND SERVICES,SECURITY,4650,P122518-SERVICE-'Out of Hours Call Service' for Lee Valley Pa,11/07/2023 00:00,275420,327.81,TE0585,TENDRING DISTRICT COUNCIL,26/06/2023 00:00,30/07/2023 00:00,P04-2024
P&V,NORTH AREA RANGERS,SUPPLIES AND SERVICES,SECURITY,4650,P122126-SERVICE-Security - North of Park,18/07/2023 00:00,275840,6430.02,PA0059,PARKGUARD LTD,26/06/2023 00:00,30/07/2023 00:00,P04-2024
P&V,SOUTH AREA RANGERS,SUPPLIES AND SERVICES,SECURITY,4650,P122127-SERVICE-Security - South of Park,04/07/2023 00:00,275004,10721.28,PA0059,PARKGUARD LTD,26/06/2023 00:00,30/07/2023 00:00,P04-2024
P&V,SOUTH AREA RANGERS,SUPPLIES AND SERVICES,SECURITY,4650,P122493-SERVICE-Additonal Security at Coppermill,12/07/2023 00:00,275606,2880,PA0059,PARKGUARD LTD,26/06/2023 00:00,30/07/2023 00:00,P04-2024
P&V,SOUTH AREA RANGERS,SUPPLIES AND SERVICES,SECURITY,4650,P122127-SERVICE-Security - South of Park,18/07/2023 00:00,275841,9568.6,PA0059,PARKGUARD LTD,26/06/2023 00:00,30/07/2023 00:00,P04-2024
,LV LEISURE CENTRE CAMPSITE,SUPPLIES AND SERVICES,SECURITY,4650,P122759-SERVICE-K 9 security on site,30/07/2023 00:00,275887,340,AH0449,MR HUMZAH AHMED,26/06/2023 00:00,30/07/2023 00:00,P04-2024
CEO,LVLC SERVICE CHARGE,SUPPLIES AND SERVICES,SECURITY,4650,P121975-SERVICE-Security,19/07/2023 00:00,275605,974.64,PA0059,PARKGUARD LTD,26/06/2023 00:00,30/07/2023 00:00,P04-2024
CEO,PR/COMMUNICATIONS,SUPPLIES AND SERVICES,ARTWORK,4664,P121954-SERVICE-Lamp post banners x 3,30/07/2023 00:00,276293,228,BL0393,BLUE SEA DESIGN,26/06/2023 00:00,30/07/2023 00:00,P04-2024
CEO,LEGAL SERVICES,SUPPLIES AND SERVICES,OFFSITE ARCHIVED STORAGE,4667,P122559-SERVICE-Off site storage June 2023,17/07/2023 00:00,275552,359.94,DA0154,RESTORE PLC,26/06/2023 00:00,30/07/2023 00:00,P04-2024
,LEE VALLEY WATERWORKS CENTRE,SUPPLIES AND SERVICES,ENTERTAINMENT & OTHER LICENCES,4711,P122674-SERVICE-TV Licence - WaterWorks Centre,25/07/2023 00:00,275995,159,TV0065,TV LICENSING,26/06/2023 00:00,30/07/2023 00:00,P04-2024
P&V,LEE VALLEY FARM HOLYFIELDHALL,THIRD PARTY PAYMENTS,VETERINARY SERVICES,4718,P122531-SERVICE-Vets,17/07/2023 00:00,275529,115.38,HA0443,HAMPDEN VETERINARY HOSPITAL,26/06/2023 00:00,30/07/2023 00:00,P04-2024
P&V,MYDDLETON HSE HERITAGE CENTRE,SUPPLIES AND SERVICES,NET CATERING PURCHASES,4777,P122303-SERVICE-Food/Drink order week com 12 Jun 2023,05/07/2023 00:00,274949,-30.82,360001,BIDFOOD,26/06/2023 00:00,30/07/2023 00:00,P04-2024
P&V,MYDDLETON HSE HERITAGE CENTRE,SUPPLIES AND SERVICES,NET CATERING PURCHASES,4777,BTR-food/drinks,05/07/2023 00:00,274950,176.96,360001,BIDFOOD,26/06/2023 00:00,30/07/2023 00:00,P04-2024
P&V,MYDDLETON HSE HERITAGE CENTRE,SUPPLIES AND SERVICES,NET CATERING PURCHASES,4777,P122303-SERVICE-Food/Drink order week com 12 Jun 2023,05/07/2023 00:00,274950,116.35,360001,BIDFOOD,26/06/2023 00:00,30/07/2023 00:00,P04-2024
P&V,MYDDLETON HSE HERITAGE CENTRE,SUPPLIES AND SERVICES,NET CATERING PURCHASES,4777,P122368-SERVICE-Food/Drink order week com 19/06/2023,05/07/2023 00:00,274950,320.04,360001,BIDFOOD,26/06/2023 00:00,30/07/2023 00:00,P04-2024
P&V,MYDDLETON HSE HERITAGE CENTRE,SUPPLIES AND SERVICES,NET CATERING PURCHASES,4777,BTR-food/drinks,05/07/2023 00:00,274950,143.08,360001,BIDFOOD,26/06/2023 00:00,30/07/2023 00:00,P04-2024
P&V,MYDDLETON HSE HERITAGE CENTRE,SUPPLIES AND SERVICES,NET CATERING PURCHASES,4777,BTR-food/drinks,05/07/2023 00:00,274950,-320.04,360001,BIDFOOD,26/06/2023 00:00,30/07/2023 00:00,P04-2024
P&V,MYDDLETON HSE HERITAGE CENTRE,SUPPLIES AND SERVICES,NET CATERING PURCHASES,4777,BTR-food/drinks,05/07/2023 00:00,275063,165.65,360001,BIDFOOD,26/06/2023 00:00,30/07/2023 00:00,P04-2024
P&V,MYDDLETON HSE HERITAGE CENTRE,SUPPLIES AND SERVICES,NET CATERING PURCHASES,4777,BTR-food/drinks,05/07/2023 00:00,275063,-319.94,360001,BIDFOOD,26/06/2023 00:00,30/07/2023 00:00,P04-2024
P&V,MYDDLETON HSE HERITAGE CENTRE,SUPPLIES AND SERVICES,NET CATERING PURCHASES,4777,BTR-food/drinks,05/07/2023 00:00,275063,154.29,360001,BIDFOOD,26/06/2023 00:00,30/07/2023 00:00,P04-2024
P&V,MYDDLETON HSE HERITAGE CENTRE,SUPPLIES AND SERVICES,NET CATERING PURCHASES,4777,P122368-SERVICE-Food/Drink order week com 19/06/2023,05/07/2023 00:00,275063,319.94,360001,BIDFOOD,26/06/2023 00:00,30/07/2023 00:00,P04-2024
P&V,MYDDLETON HSE HERITAGE CENTRE,SUPPLIES AND SERVICES,NET CATERING PURCHASES,4777,BIDFOOD,05/07/2023 00:00,275162,-820.3,360001,BIDFOOD,26/06/2023 00:00,30/07/2023 00:00,P04-2024
P&V,MYDDLETON HSE HERITAGE CENTRE,SUPPLIES AND SERVICES,NET CATERING PURCHASES,4777,BIDFOOD,05/07/2023 00:00,275162,480.65,360001,BIDFOOD,26/06/2023 00:00,30/07/2023 00:00,P04-2024
P&V,MYDDLETON HSE HERITAGE CENTRE,SUPPLIES AND SERVICES,NET CATERING PURCHASES,4777,P122303-SERVICE-Food/Drink order week com 12 Jun 2023,05/07/2023 00:00,275162,820.3,360001,BIDFOOD,26/06/2023 00:00,30/07/2023 00:00,P04-2024
P&V,MYDDLETON HSE HERITAGE CENTRE,SUPPLIES AND SERVICES,NET CATERING PURCHASES,4777,BIDFOOD,05/07/2023 00:00,275162,339.65,360001,BIDFOOD,26/06/2023 00:00,30/07/2023 00:00,P04-2024
P&V,MYDDLETON HSE HERITAGE CENTRE,SUPPLIES AND SERVICES,NET CATERING PURCHASES,4777,P122303-SERVICE-Food/Drink order week com 12 Jun 2023,05/07/2023 00:00,275205,-18.14,360001,BIDFOOD,26/06/2023 00:00,30/07/2023 00:00,P04-2024
P&V,MYDDLETON HSE HERITAGE CENTRE,SUPPLIES AND SERVICES,NET CATERING PURCHASES,4777,P122368-SERVICE-Food/Drink order week com 19/06/2023,04/07/2023 00:00,275215,360.02,360001,BIDFOOD,26/06/2023 00:00,30/07/2023 00:00,P04-2024
P&V,MYDDLETON HSE HERITAGE CENTRE,SUPPLIES AND SERVICES,NET CATERING PURCHASES,4777,BTR-food/drinks,04/07/2023 00:00,275215,-360.02,360001,BIDFOOD,26/06/2023 00:00,30/07/2023 00:00,P04-2024
P&V,MYDDLETON HSE HERITAGE CENTRE,SUPPLIES AND SERVICES,NET CATERING PURCHASES,4777,BTR-food/drinks,04/07/2023 00:00,275215,141.14,360001,BIDFOOD,26/06/2023 00:00,30/07/2023 00:00,P04-2024
P&V,MYDDLETON HSE HERITAGE CENTRE,SUPPLIES AND SERVICES,NET CATERING PURCHASES,4777,BTR-food/drinks,04/07/2023 00:00,275215,218.88,360001,BIDFOOD,26/06/2023 00:00,30/07/2023 00:00,P04-2024
P&V,MYDDLETON HSE HERITAGE CENTRE,SUPPLIES AND SERVICES,NET CATERING PURCHASES,4777,P122407-SERVICE-Food & Drink order week comm 26.06.2023,04/07/2023 00:00,275215,6.27,360001,BIDFOOD,26/06/2023 00:00,30/07/2023 00:00,P04-2024
P&V,MYDDLETON HSE HERITAGE CENTRE,SUPPLIES AND SERVICES,NET CATERING PURCHASES,4777,BTR-food/drink,05/07/2023 00:00,275397,-429.23,360001,BIDFOOD,26/06/2023 00:00,30/07/2023 00:00,P04-2024
P&V,MYDDLETON HSE HERITAGE CENTRE,SUPPLIES AND SERVICES,NET CATERING PURCHASES,4777,P122407-SERVICE-Food & Drink order week comm 26.06.2023,05/07/2023 00:00,275397,429.23,360001,BIDFOOD,26/06/2023 00:00,30/07/2023 00:00,P04-2024
P&V,MYDDLETON HSE HERITAGE CENTRE,SUPPLIES AND SERVICES,NET CATERING PURCHASES,4777,BTR-food/drink,05/07/2023 00:00,275397,88.64,360001,BIDFOOD,26/06/2023 00:00,30/07/2023 00:00,P04-2024
P&V,MYDDLETON HSE HERITAGE CENTRE,SUPPLIES AND SERVICES,NET CATERING PURCHASES,4777,BTR-food/drink,05/07/2023 00:00,275397,340.59,360001,BIDFOOD,26/06/2023 00:00,30/07/2023 00:00,P04-2024
P&V,MYDDLETON HSE HERITAGE CENTRE,SUPPLIES AND SERVICES,NET CATERING PURCHASES,4777,P122303-SERVICE-Food/Drink order week com 12 Jun 2023,05/07/2023 00:00,275436,-25.16,360001,BIDFOOD,26/06/2023 00:00,30/07/2023 00:00,P04-2024
P&V,MYDDLETON HSE HERITAGE CENTRE,SUPPLIES AND SERVICES,NET CATERING PURCHASES,4777,P122303-SERVICE-Food/Drink order week com 12 Jun 2023,11/07/2023 00:00,275549,25.16,360001,BIDFOOD,26/06/2023 00:00,30/07/2023 00:00,P04-2024
P&V,MYDDLETON HSE HERITAGE CENTRE,SUPPLIES AND SERVICES,NET CATERING PURCHASES,4777,P122407-SERVICE-Food & Drink order week comm 26.06.2023,11/07/2023 00:00,275549,280.95,360001,BIDFOOD,26/06/2023 00:00,30/07/2023 00:00,P04-2024
P&V,MYDDLETON HSE HERITAGE CENTRE,SUPPLIES AND SERVICES,NET CATERING PURCHASES,4777,P121783-SERVICE-Coffee order weeek com 01 May 2023,25/07/2023 00:00,275630,138,TU0194,TUDOR TEA & COFFEE,26/06/2023 00:00,30/07/2023 00:00,P04-2024
P&V,MYDDLETON HSE HERITAGE CENTRE,SUPPLIES AND SERVICES,NET CATERING PURCHASES,4777,P122407-SERVICE-Food & Drink order week comm 26.06.2023,25/07/2023 00:00,275655,283.55,360001,BIDFOOD,26/06/2023 00:00,30/07/2023 00:00,P04-2024
P&V,MYDDLETON HSE HERITAGE CENTRE,SUPPLIES AND SERVICES,NET CATERING PURCHASES,4777,BTR-food/drinks,25/07/2023 00:00,275655,-153.13,360001,BIDFOOD,26/06/2023 00:00,30/07/2023 00:00,P04-2024
P&V,MYDDLETON HSE HERITAGE CENTRE,SUPPLIES AND SERVICES,NET CATERING PURCHASES,4777,BTR-food/drinks,25/07/2023 00:00,275655,136.44,360001,BIDFOOD,26/06/2023 00:00,30/07/2023 00:00,P04-2024
P&V,MYDDLETON HSE HERITAGE CENTRE,SUPPLIES AND SERVICES,NET CATERING PURCHASES,4777,BTR-food/drinks,25/07/2023 00:00,275655,16.69,360001,BIDFOOD,26/06/2023 00:00,30/07/2023 00:00,P04-2024
P&V,MYDDLETON HSE HERITAGE CENTRE,SUPPLIES AND SERVICES,NET CATERING PURCHASES,4777,P122537-SERVICE-Food and drink order wk com 10/07/2023,25/07/2023 00:00,275655,153.13,360001,BIDFOOD,26/06/2023 00:00,30/07/2023 00:00,P04-2024
P&V,MYDDLETON HSE HERITAGE CENTRE,SUPPLIES AND SERVICES,NET CATERING PURCHASES,4777,BTR-food/drinks,25/07/2023 00:00,275823,155.33,360001,BIDFOOD,26/06/2023 00:00,30/07/2023 00:00,P04-2024
P&V,MYDDLETON HSE HERITAGE CENTRE,SUPPLIES AND SERVICES,NET CATERING PURCHASES,4777,P122537-SERVICE-Food and drink order wk com 10/07/2023,25/07/2023 00:00,275823,465.43,360001,BIDFOOD,26/06/2023 00:00,30/07/2023 00:00,P04-2024
P&V,MYDDLETON HSE HERITAGE CENTRE,SUPPLIES AND SERVICES,NET CATERING PURCHASES,4777,BTR-food/drinks,25/07/2023 00:00,275823,-465.43,360001,BIDFOOD,26/06/2023 00:00,30/07/2023 00:00,P04-2024
P&V,MYDDLETON HSE HERITAGE CENTRE,SUPPLIES AND SERVICES,NET CATERING PURCHASES,4777,BTR-food/drinks,25/07/2023 00:00,275823,310.1,360001,BIDFOOD,26/06/2023 00:00,30/07/2023 00:00,P04-2024
P&V,MYDDLETON HSE HERITAGE CENTRE,SUPPLIES AND SERVICES,NET CATERING PURCHASES,4777,P122638-SERVICE-Food drink order week com 17/07/2023,25/07/2023 00:00,275880,73.62,360001,BIDFOOD,26/06/2023 00:00,30/07/2023 00:00,P04-2024
P&V,MYDDLETON HSE HERITAGE CENTRE,SUPPLIES AND SERVICES,NET CATERING PURCHASES,4777,BTR-food/drinks,25/07/2023 00:00,275880,270.33,360001,BIDFOOD,26/06/2023 00:00,30/07/2023 00:00,P04-2024
P&V,MYDDLETON HSE HERITAGE CENTRE,SUPPLIES AND SERVICES,NET CATERING PURCHASES,4777,BTR-food/drinks,25/07/2023 00:00,275880,111.11,360001,BIDFOOD,26/06/2023 00:00,30/07/2023 00:00,P04-2024
P&V,MYDDLETON HSE HERITAGE CENTRE,SUPPLIES AND SERVICES,NET CATERING PURCHASES,4777,BTR-food/drinks,25/07/2023 00:00,275880,-381.44,360001,BIDFOOD,26/06/2023 00:00,30/07/2023 00:00,P04-2024
P&V,MYDDLETON HSE HERITAGE CENTRE,SUPPLIES AND SERVICES,NET CATERING PURCHASES,4777,P122537-SERVICE-Food and drink order wk com 10/07/2023,25/07/2023 00:00,275880,381.44,360001,BIDFOOD,26/06/2023 00:00,30/07/2023 00:00,P04-2024
P&V,MYDDLETON HSE HERITAGE CENTRE,SUPPLIES AND SERVICES,NET CATERING PURCHASES,4777,P122638-SERVICE-Food drink order week com 17/07/2023,30/07/2023 00:00,276003,-6.6,360001,BIDFOOD,26/06/2023 00:00,30/07/2023 00:00,P04-2024
P&V,MYDDLETON HSE HERITAGE CENTRE,SUPPLIES AND SERVICES,NET CATERING PURCHASES,4777,BTR-food/drinks,30/07/2023 00:00,276029,251.38,360001,BIDFOOD,26/06/2023 00:00,30/07/2023 00:00,P04-2024
P&V,MYDDLETON HSE HERITAGE CENTRE,SUPPLIES AND SERVICES,NET CATERING PURCHASES,4777,BTR-food/drinks,30/07/2023 00:00,276029,-389.96,360001,BIDFOOD,26/06/2023 00:00,30/07/2023 00:00,P04-2024
P&V,MYDDLETON HSE HERITAGE CENTRE,SUPPLIES AND SERVICES,NET CATERING PURCHASES,4777,BTR-food/drinks,30/07/2023 00:00,276029,138.58,360001,BIDFOOD,26/06/2023 00:00,30/07/2023 00:00,P04-2024
P&V,MYDDLETON HSE HERITAGE CENTRE,SUPPLIES AND SERVICES,NET CATERING PURCHASES,4777,P122638-SERVICE-Food drink order week com 17/07/2023,30/07/2023 00:00,276029,389.96,360001,BIDFOOD,26/06/2023 00:00,30/07/2023 00:00,P04-2024
P&V,MYDDLETON HSE HERITAGE CENTRE,SUPPLIES AND SERVICES,NET CATERING PURCHASES,4777,P122638-SERVICE-Food drink order week com 17/07/2023,30/07/2023 00:00,276054,362.47,360001,BIDFOOD,26/06/2023 00:00,30/07/2023 00:00,P04-2024
P&V,MYDDLETON HSE HERITAGE CENTRE,SUPPLIES AND SERVICES,NET CATERING PURCHASES,4777,BTR-food/drinks,30/07/2023 00:00,276054,-362.47,360001,BIDFOOD,26/06/2023 00:00,30/07/2023 00:00,P04-2024
P&V,MYDDLETON HSE HERITAGE CENTRE,SUPPLIES AND SERVICES,NET CATERING PURCHASES,4777,BTR-food/drinks,30/07/2023 00:00,276054,352.88,360001,BIDFOOD,26/06/2023 00:00,30/07/2023 00:00,P04-2024
P&V,MYDDLETON HSE HERITAGE CENTRE,SUPPLIES AND SERVICES,NET CATERING PURCHASES,4777,BTR-food/drinks,30/07/2023 00:00,276054,9.59,360001,BIDFOOD,26/06/2023 00:00,30/07/2023 00:00,P04-2024
P&V,MYDDLETON HSE HERITAGE CENTRE,SUPPLIES AND SERVICES,NET CATERING PURCHASES,4777,P122638-SERVICE-Food drink order week com 17/07/2023,30/07/2023 00:00,276055,-2.22,360001,BIDFOOD,26/06/2023 00:00,30/07/2023 00:00,P04-2024
,LEE VALLEY MARINA SPRINGFIELD,SUPPLIES AND SERVICES,TRADING AC - EXTERNAL PURCHASE,4875,P122301-SERVICE-Chandlery Stock,04/07/2023 00:00,274958,632.6,MI0200,MIDLAND CHANDLERS LIMITED,26/06/2023 00:00,30/07/2023 00:00,P04-2024
,LEE VALLEY MARINA SPRINGFIELD,SUPPLIES AND SERVICES,TRADING AC - EXTERNAL PURCHASE,4875,P121901-SERVICE-To supply items as requested,05/07/2023 00:00,275136,32.5,BQ0164,TRADE UK ACCOUNT,26/06/2023 00:00,30/07/2023 00:00,P04-2024
,LEE VALLEY MARINA SPRINGFIELD,SUPPLIES AND SERVICES,TRADING AC - EXTERNAL PURCHASE,4875,P122117-SERVICE-Adams Argon 50 Ltr Cylinder 200 Bar Gas & Dep,11/07/2023 00:00,275152,115,EL0281,ELTHAM WELDING SUPPLIES LIMITED,26/06/2023 00:00,30/07/2023 00:00,P04-2024
,LEE VALLEY MARINA SPRINGFIELD,SUPPLIES AND SERVICES,TRADING AC - EXTERNAL PURCHASE,4875,P122390-SERVICE-Plumbing and electrical cable,04/07/2023 00:00,275191,318.17,AQ0033,AQUAFAX LIMITED,26/06/2023 00:00,30/07/2023 00:00,P04-2024
,LEE VALLEY MARINA SPRINGFIELD,SUPPLIES AND SERVICES,TRADING AC - EXTERNAL PURCHASE,4875,P122357-SERVICE-Hull blacking,04/07/2023 00:00,275203,1298.4,SM0658,SML PAINTS AND COATINGS,26/06/2023 00:00,30/07/2023 00:00,P04-2024
,LEE VALLEY MARINA SPRINGFIELD,SUPPLIES AND SERVICES,TRADING AC - EXTERNAL PURCHASE,4875,P122391-SERVICE-Chandlery Stock,04/07/2023 00:00,275217,523.9,MI0200,MIDLAND CHANDLERS LIMITED,26/06/2023 00:00,30/07/2023 00:00,P04-2024
,LEE VALLEY MARINA SPRINGFIELD,SUPPLIES AND SERVICES,TRADING AC - EXTERNAL PURCHASE,4875,P122129-SERVICE-Electrical and plumbing items,04/07/2023 00:00,275220,169.14,AS0036,ASAP SUPPLIES,26/06/2023 00:00,30/07/2023 00:00,P04-2024
,LEE VALLEY MARINA SPRINGFIELD,SUPPLIES AND SERVICES,TRADING AC - EXTERNAL PURCHASE,4875,P122423-SERVICE-Customer paint order,04/07/2023 00:00,275241,55.55,CR0651,CRAFTMASTER PAINTS,26/06/2023 00:00,30/07/2023 00:00,P04-2024
,LEE VALLEY MARINA SPRINGFIELD,SUPPLIES AND SERVICES,TRADING AC - EXTERNAL PURCHASE,4875,P122322-SERVICE-Gas,04/07/2023 00:00,275328,613,SM0664,KG SMITH & SON,26/06/2023 00:00,30/07/2023 00:00,P04-2024
,LEE VALLEY MARINA SPRINGFIELD,SUPPLIES AND SERVICES,TRADING AC - EXTERNAL PURCHASE,4875,P122439-SERVICE-Electrical and engineering parts,05/07/2023 00:00,275351,283.21,AQ0033,AQUAFAX LIMITED,26/06/2023 00:00,30/07/2023 00:00,P04-2024
,LEE VALLEY MARINA SPRINGFIELD,SUPPLIES AND SERVICES,TRADING AC - EXTERNAL PURCHASE,4875,Springfield-chandlery stock,12/07/2023 00:00,275537,-474.1,MI0200,MIDLAND CHANDLERS LIMITED,26/06/2023 00:00,30/07/2023 00:00,P04-2024
,LEE VALLEY MARINA SPRINGFIELD,SUPPLIES AND SERVICES,TRADING AC - EXTERNAL PURCHASE,4875,Springfield-chandlery stock,12/07/2023 00:00,275537,6.45,MI0200,MIDLAND CHANDLERS LIMITED,26/06/2023 00:00,30/07/2023 00:00,P04-2024
,LEE VALLEY MARINA SPRINGFIELD,SUPPLIES AND SERVICES,TRADING AC - EXTERNAL PURCHASE,4875,Springfield-chandlery stock,12/07/2023 00:00,275537,467.65,MI0200,MIDLAND CHANDLERS LIMITED,26/06/2023 00:00,30/07/2023 00:00,P04-2024
,LEE VALLEY MARINA SPRINGFIELD,SUPPLIES AND SERVICES,TRADING AC - EXTERNAL PURCHASE,4875,P122470-SERVICE-Chandlery Stock - various,12/07/2023 00:00,275537,474.1,MI0200,MIDLAND CHANDLERS LIMITED,26/06/2023 00:00,30/07/2023 00:00,P04-2024
,LEE VALLEY MARINA SPRINGFIELD,SUPPLIES AND SERVICES,TRADING AC - EXTERNAL PURCHASE,4875,P122470-SERVICE-Chandlery Stock - various,12/07/2023 00:00,275544,51.6,MI0200,MIDLAND CHANDLERS LIMITED,26/06/2023 00:00,30/07/2023 00:00,P04-2024
,LEE VALLEY MARINA SPRINGFIELD,SUPPLIES AND SERVICES,TRADING AC - EXTERNAL PURCHASE,4875,P122508-SERVICE-To Supply items on quotation 1928906842,11/07/2023 00:00,275574,2904,AS0304,KLOECKNER METALS UK (formerly ASD METAL SERV),26/06/2023 00:00,30/07/2023 00:00,P04-2024
,LEE VALLEY MARINA SPRINGFIELD,SUPPLIES AND SERVICES,TRADING AC - EXTERNAL PURCHASE,4875,P122522-SERVICE-Gas electric and plumbing fittings,17/07/2023 00:00,275585,282.69,AQ0033,AQUAFAX LIMITED,26/06/2023 00:00,30/07/2023 00:00,P04-2024
,LEE VALLEY MARINA SPRINGFIELD,SUPPLIES AND SERVICES,TRADING AC - EXTERNAL PURCHASE,4875,P122522-SERVICE-Gas electric and plumbing fittings,17/07/2023 00:00,275597,7.11,AQ0033,AQUAFAX LIMITED,26/06/2023 00:00,30/07/2023 00:00,P04-2024
,LEE VALLEY MARINA SPRINGFIELD,SUPPLIES AND SERVICES,TRADING AC - EXTERNAL PURCHASE,4875,P122546-SERVICE-Electrical and engineering parts,17/07/2023 00:00,275657,271.49,AS0036,ASAP SUPPLIES,26/06/2023 00:00,30/07/2023 00:00,P04-2024
,LEE VALLEY MARINA SPRINGFIELD,SUPPLIES AND SERVICES,TRADING AC - EXTERNAL PURCHASE,4875,P122558-SERVICE-General chandlery stock,17/07/2023 00:00,275659,433.26,MI0200,MIDLAND CHANDLERS LIMITED,26/06/2023 00:00,30/07/2023 00:00,P04-2024
,LEE VALLEY MARINA SPRINGFIELD,SUPPLIES AND SERVICES,TRADING AC - EXTERNAL PURCHASE,4875,P122605-SERVICE-Chandlery Stock,25/07/2023 00:00,275845,422.69,MI0200,MIDLAND CHANDLERS LIMITED,26/06/2023 00:00,30/07/2023 00:00,P04-2024
,LEE VALLEY MARINA SPRINGFIELD,SUPPLIES AND SERVICES,TRADING AC - EXTERNAL PURCHASE,4875,P122651-SERVICE-Gas and engineering equipment,25/07/2023 00:00,275961,822.45,AQ0033,AQUAFAX LIMITED,26/06/2023 00:00,30/07/2023 00:00,P04-2024
,LEE VALLEY MARINA SPRINGFIELD,SUPPLIES AND SERVICES,TRADING AC - EXTERNAL PURCHASE,4875,P122563-SERVICE-Gas,25/07/2023 00:00,275964,1468.5,SM0664,KG SMITH & SON,26/06/2023 00:00,30/07/2023 00:00,P04-2024
,LEE VALLEY MARINA SPRINGFIELD,SUPPLIES AND SERVICES,TRADING AC - EXTERNAL PURCHASE,4875,P122651-SERVICE-Gas and engineering equipment,25/07/2023 00:00,275966,91.12,AQ0033,AQUAFAX LIMITED,26/06/2023 00:00,30/07/2023 00:00,P04-2024
,LEE VALLEY MARINA SPRINGFIELD,SUPPLIES AND SERVICES,TRADING AC - EXTERNAL PURCHASE,4875,P122436-SERVICE-Gas,25/07/2023 00:00,275994,648,SM0664,KG SMITH & SON,26/06/2023 00:00,30/07/2023 00:00,P04-2024
,LEE VALLEY MARINA SPRINGFIELD,SUPPLIES AND SERVICES,TRADING AC - EXTERNAL PURCHASE,4875,P122658-SERVICE-Chandlery Stock various,26/07/2023 00:00,276001,373.68,MI0200,MIDLAND CHANDLERS LIMITED,26/06/2023 00:00,30/07/2023 00:00,P04-2024
,LEE VALLEY MARINA SPRINGFIELD,SUPPLIES AND SERVICES,TRADING AC - EXTERNAL PURCHASE,4875,P122658-SERVICE-Chandlery Stock various,30/07/2023 00:00,276045,7.84,MI0200,MIDLAND CHANDLERS LIMITED,26/06/2023 00:00,30/07/2023 00:00,P04-2024
,LEE VALLEY MARINA SPRINGFIELD,SUPPLIES AND SERVICES,TRADING AC - EXTERNAL PURCHASE,4875,P122710-SERVICE-Chandlery Stock,30/07/2023 00:00,276056,4.05,MI0200,MIDLAND CHANDLERS LIMITED,26/06/2023 00:00,30/07/2023 00:00,P04-2024
,LEE VALLEY MARINA SPRINGFIELD,SUPPLIES AND SERVICES,TRADING AC - EXTERNAL PURCHASE,4875,P122710-SERVICE-Chandlery Stock,30/07/2023 00:00,276198,273.3,MI0200,MIDLAND CHANDLERS LIMITED,26/06/2023 00:00,30/07/2023 00:00,P04-2024
,STANSTEAD RECHARGEABLE WORKS,SUPPLIES AND SERVICES,TRADING AC - EXTERNAL PURCHASE,4875,P121931-SERVICE-chandlery stock,04/07/2023 00:00,274957,11.19,MI0200,MIDLAND CHANDLERS LIMITED,26/06/2023 00:00,30/07/2023 00:00,P04-2024
,STANSTEAD RECHARGEABLE WORKS,SUPPLIES AND SERVICES,TRADING AC - EXTERNAL PURCHASE,4875,P121735-SERVICE-chandlery stock,04/07/2023 00:00,274957,10.75,MI0200,MIDLAND CHANDLERS LIMITED,26/06/2023 00:00,30/07/2023 00:00,P04-2024
,STANSTEAD RECHARGEABLE WORKS,SUPPLIES AND SERVICES,TRADING AC - EXTERNAL PURCHASE,4875,P121963-SERVICE-extra to cover invoice,04/07/2023 00:00,274957,34.2,MI0200,MIDLAND CHANDLERS LIMITED,26/06/2023 00:00,30/07/2023 00:00,P04-2024
,STANSTEAD RECHARGEABLE WORKS,SUPPLIES AND SERVICES,TRADING AC - EXTERNAL PURCHASE,4875,P122285-SERVICE-chandlery stock,04/07/2023 00:00,275183,109.22,AS0036,ASAP SUPPLIES,26/06/2023 00:00,30/07/2023 00:00,P04-2024
,STANSTEAD RECHARGEABLE WORKS,SUPPLIES AND SERVICES,TRADING AC - EXTERNAL PURCHASE,4875,P122381-SERVICE-4m wet exhaust 60mm,04/07/2023 00:00,275184,100.44,AS0036,ASAP SUPPLIES,26/06/2023 00:00,30/07/2023 00:00,P04-2024
,STANSTEAD RECHARGEABLE WORKS,SUPPLIES AND SERVICES,TRADING AC - EXTERNAL PURCHASE,4875,P121922-SERVICE-chandlery stock,04/07/2023 00:00,275188,274.63,MI0200,MIDLAND CHANDLERS LIMITED,26/06/2023 00:00,30/07/2023 00:00,P04-2024
,STANSTEAD RECHARGEABLE WORKS,SUPPLIES AND SERVICES,TRADING AC - EXTERNAL PURCHASE,4875,P121735-SERVICE-chandlery stock,04/07/2023 00:00,275188,135.07,MI0200,MIDLAND CHANDLERS LIMITED,26/06/2023 00:00,30/07/2023 00:00,P04-2024
,STANSTEAD RECHARGEABLE WORKS,SUPPLIES AND SERVICES,TRADING AC - EXTERNAL PURCHASE,4875,P121922-SERVICE-chandlery stock,04/07/2023 00:00,275189,20.71,MI0200,MIDLAND CHANDLERS LIMITED,26/06/2023 00:00,30/07/2023 00:00,P04-2024
,STANSTEAD RECHARGEABLE WORKS,SUPPLIES AND SERVICES,TRADING AC - EXTERNAL PURCHASE,4875,P121922-SERVICE-chandlery stock,04/07/2023 00:00,275190,98.29,MI0200,MIDLAND CHANDLERS LIMITED,26/06/2023 00:00,30/07/2023 00:00,P04-2024
,STANSTEAD RECHARGEABLE WORKS,SUPPLIES AND SERVICES,TRADING AC - EXTERNAL PURCHASE,4875,P122405-SERVICE-chandlery stock,04/07/2023 00:00,275190,2.11,MI0200,MIDLAND CHANDLERS LIMITED,26/06/2023 00:00,30/07/2023 00:00,P04-2024
,STANSTEAD RECHARGEABLE WORKS,SUPPLIES AND SERVICES,TRADING AC - EXTERNAL PURCHASE,4875,P122383-SERVICE-chandlery paint,04/07/2023 00:00,275193,572.16,CR0651,CRAFTMASTER PAINTS,26/06/2023 00:00,30/07/2023 00:00,P04-2024
,STANSTEAD RECHARGEABLE WORKS,SUPPLIES AND SERVICES,TRADING AC - EXTERNAL PURCHASE,4875,P122425-SERVICE-chandlery stock,04/07/2023 00:00,275316,461.19,AQ0033,AQUAFAX LIMITED,26/06/2023 00:00,30/07/2023 00:00,P04-2024
,STANSTEAD RECHARGEABLE WORKS,SUPPLIES AND SERVICES,TRADING AC - EXTERNAL PURCHASE,4875,P122406-SERVICE-chandlery stock,04/07/2023 00:00,275317,1776.38,MI0200,MIDLAND CHANDLERS LIMITED,26/06/2023 00:00,30/07/2023 00:00,P04-2024
,STANSTEAD RECHARGEABLE WORKS,SUPPLIES AND SERVICES,TRADING AC - EXTERNAL PURCHASE,4875,P122425-SERVICE-chandlery stock,04/07/2023 00:00,275325,51.62,AQ0033,AQUAFAX LIMITED,26/06/2023 00:00,30/07/2023 00:00,P04-2024
,STANSTEAD RECHARGEABLE WORKS,SUPPLIES AND SERVICES,TRADING AC - EXTERNAL PURCHASE,4875,P122425-SERVICE-chandlery stock,04/07/2023 00:00,275326,6.72,AQ0033,AQUAFAX LIMITED,26/06/2023 00:00,30/07/2023 00:00,P04-2024
,STANSTEAD RECHARGEABLE WORKS,SUPPLIES AND SERVICES,TRADING AC - EXTERNAL PURCHASE,4875,P122367-SERVICE-red diesel,04/07/2023 00:00,275336,284.7,SP0543,SPEEDY FUELS LIMITED,26/06/2023 00:00,30/07/2023 00:00,P04-2024
,STANSTEAD RECHARGEABLE WORKS,SUPPLIES AND SERVICES,TRADING AC - EXTERNAL PURCHASE,4875,P122367-SERVICE-extra amount for additional red diesel delive,17/07/2023 00:00,275337,135.48,SP0543,SPEEDY FUELS LIMITED,26/06/2023 00:00,30/07/2023 00:00,P04-2024
,STANSTEAD RECHARGEABLE WORKS,SUPPLIES AND SERVICES,TRADING AC - EXTERNAL PURCHASE,4875,P122367-SERVICE-red diesel,17/07/2023 00:00,275337,1293.8,SP0543,SPEEDY FUELS LIMITED,26/06/2023 00:00,30/07/2023 00:00,P04-2024
,STANSTEAD RECHARGEABLE WORKS,SUPPLIES AND SERVICES,TRADING AC - EXTERNAL PURCHASE,4875,P122437-SERVICE-paint,11/07/2023 00:00,275345,415,CR0651,CRAFTMASTER PAINTS,26/06/2023 00:00,30/07/2023 00:00,P04-2024
,STANSTEAD RECHARGEABLE WORKS,SUPPLIES AND SERVICES,TRADING AC - EXTERNAL PURCHASE,4875,P122454-SERVICE-ice creams and drinks,11/07/2023 00:00,275396,463.49,360001,BIDFOOD,26/06/2023 00:00,30/07/2023 00:00,P04-2024
,STANSTEAD RECHARGEABLE WORKS,SUPPLIES AND SERVICES,TRADING AC - EXTERNAL PURCHASE,4875,P121946-SERVICE-gas,11/07/2023 00:00,275438,180,SM0664,KG SMITH & SON,26/06/2023 00:00,30/07/2023 00:00,P04-2024
,STANSTEAD RECHARGEABLE WORKS,SUPPLIES AND SERVICES,TRADING AC - EXTERNAL PURCHASE,4875,P122211-SERVICE-calor gas,11/07/2023 00:00,275439,360,SM0664,KG SMITH & SON,26/06/2023 00:00,30/07/2023 00:00,P04-2024
,STANSTEAD RECHARGEABLE WORKS,SUPPLIES AND SERVICES,TRADING AC - EXTERNAL PURCHASE,4875,P122451-SERVICE-coal & logs,11/07/2023 00:00,275534,3450,SM0664,KG SMITH & SON,26/06/2023 00:00,30/07/2023 00:00,P04-2024
,STANSTEAD RECHARGEABLE WORKS,SUPPLIES AND SERVICES,TRADING AC - EXTERNAL PURCHASE,4875,P122453-SERVICE-elsan,11/07/2023 00:00,275546,1065.62,EL0376,ELSAN LTD,26/06/2023 00:00,30/07/2023 00:00,P04-2024
,STANSTEAD RECHARGEABLE WORKS,SUPPLIES AND SERVICES,TRADING AC - EXTERNAL PURCHASE,4875,P122475-SERVICE-chandlery stock,11/07/2023 00:00,275550,72.33,MA0442,MARINE AND INDUSTRIAL LLP,26/06/2023 00:00,30/07/2023 00:00,P04-2024
,STANSTEAD RECHARGEABLE WORKS,SUPPLIES AND SERVICES,TRADING AC - EXTERNAL PURCHASE,4875,P122530-SERVICE-paint,25/07/2023 00:00,275586,552.46,CR0651,CRAFTMASTER PAINTS,26/06/2023 00:00,30/07/2023 00:00,P04-2024
,STANSTEAD RECHARGEABLE WORKS,SUPPLIES AND SERVICES,TRADING AC - EXTERNAL PURCHASE,4875,P122471-SERVICE-chandlery stock,17/07/2023 00:00,275589,606.94,CE0510,CENTURION EUROPE LIMITED,26/06/2023 00:00,30/07/2023 00:00,P04-2024
,STANSTEAD RECHARGEABLE WORKS,SUPPLIES AND SERVICES,TRADING AC - EXTERNAL PURCHASE,4875,P122068-SERVICE-chandlery stock,17/07/2023 00:00,275598,48.26,AQ0033,AQUAFAX LIMITED,26/06/2023 00:00,30/07/2023 00:00,P04-2024
,STANSTEAD RECHARGEABLE WORKS,SUPPLIES AND SERVICES,TRADING AC - EXTERNAL PURCHASE,4875,P122557-SERVICE-water strainer,17/07/2023 00:00,275599,33.7,MI0200,MIDLAND CHANDLERS LIMITED,26/06/2023 00:00,30/07/2023 00:00,P04-2024
,STANSTEAD RECHARGEABLE WORKS,SUPPLIES AND SERVICES,TRADING AC - EXTERNAL PURCHASE,4875,P122555-SERVICE-chandlery stock,17/07/2023 00:00,275658,1811.98,MI0200,MIDLAND CHANDLERS LIMITED,26/06/2023 00:00,30/07/2023 00:00,P04-2024
,STANSTEAD RECHARGEABLE WORKS,SUPPLIES AND SERVICES,TRADING AC - EXTERNAL PURCHASE,4875,P122555-SERVICE-chandlery stock,17/07/2023 00:00,275663,56.08,MI0200,MIDLAND CHANDLERS LIMITED,26/06/2023 00:00,30/07/2023 00:00,P04-2024
,STANSTEAD RECHARGEABLE WORKS,SUPPLIES AND SERVICES,TRADING AC - EXTERNAL PURCHASE,4875,P122575-SERVICE-chandlery stock,25/07/2023 00:00,275765,751.14,AQ0033,AQUAFAX LIMITED,26/06/2023 00:00,30/07/2023 00:00,P04-2024
,STANSTEAD RECHARGEABLE WORKS,SUPPLIES AND SERVICES,TRADING AC - EXTERNAL PURCHASE,4875,P122068-SERVICE-chandlery stock,30/07/2023 00:00,275776,31.62,AQ0033,AQUAFAX LIMITED,26/06/2023 00:00,30/07/2023 00:00,P04-2024
,STANSTEAD RECHARGEABLE WORKS,SUPPLIES AND SERVICES,TRADING AC - EXTERNAL PURCHASE,4875,P122555-SERVICE-chandlery stock,25/07/2023 00:00,275777,62.92,MI0200,MIDLAND CHANDLERS LIMITED,26/06/2023 00:00,30/07/2023 00:00,P04-2024
,STANSTEAD RECHARGEABLE WORKS,SUPPLIES AND SERVICES,TRADING AC - EXTERNAL PURCHASE,4875,P122555-SERVICE-chandlery stock,25/07/2023 00:00,275815,21.1,MI0200,MIDLAND CHANDLERS LIMITED,26/06/2023 00:00,30/07/2023 00:00,P04-2024
,STANSTEAD RECHARGEABLE WORKS,SUPPLIES AND SERVICES,TRADING AC - EXTERNAL PURCHASE,4875,P122555-SERVICE-chandlery stock,25/07/2023 00:00,275816,6.6,MI0200,MIDLAND CHANDLERS LIMITED,26/06/2023 00:00,30/07/2023 00:00,P04-2024
,STANSTEAD RECHARGEABLE WORKS,SUPPLIES AND SERVICES,TRADING AC - EXTERNAL PURCHASE,4875,P122597-SERVICE-chandlery stock,25/07/2023 00:00,275817,126.48,AS0036,ASAP SUPPLIES,26/06/2023 00:00,30/07/2023 00:00,P04-2024
,STANSTEAD RECHARGEABLE WORKS,SUPPLIES AND SERVICES,TRADING AC - EXTERNAL PURCHASE,4875,P122068-SERVICE-chandlery stock,30/07/2023 00:00,275818,12.2,AQ0033,AQUAFAX LIMITED,26/06/2023 00:00,30/07/2023 00:00,P04-2024
,STANSTEAD RECHARGEABLE WORKS,SUPPLIES AND SERVICES,TRADING AC - EXTERNAL PURCHASE,4875,P122068-SERVICE-chandlery stock,30/07/2023 00:00,275819,3.05,AQ0033,AQUAFAX LIMITED,26/06/2023 00:00,30/07/2023 00:00,P04-2024
,STANSTEAD RECHARGEABLE WORKS,SUPPLIES AND SERVICES,TRADING AC - EXTERNAL PURCHASE,4875,P122555-SERVICE-chandlery stock,25/07/2023 00:00,275848,19.8,MI0200,MIDLAND CHANDLERS LIMITED,26/06/2023 00:00,30/07/2023 00:00,P04-2024
,STANSTEAD RECHARGEABLE WORKS,SUPPLIES AND SERVICES,TRADING AC - EXTERNAL PURCHASE,4875,P122592-SERVICE-2200ltrs red diesel,25/07/2023 00:00,275866,1562,SP0543,SPEEDY FUELS LIMITED,26/06/2023 00:00,30/07/2023 00:00,P04-2024
,STANSTEAD RECHARGEABLE WORKS,SUPPLIES AND SERVICES,TRADING AC - EXTERNAL PURCHASE,4875,P122452-SERVICE-gas,30/07/2023 00:00,275873,1005,SM0664,KG SMITH & SON,26/06/2023 00:00,30/07/2023 00:00,P04-2024
,STANSTEAD RECHARGEABLE WORKS,SUPPLIES AND SERVICES,TRADING AC - EXTERNAL PURCHASE,4875,P122661-SERVICE-chandlery stock,30/07/2023 00:00,276044,807.18,MI0200,MIDLAND CHANDLERS LIMITED,26/06/2023 00:00,30/07/2023 00:00,P04-2024
,STANSTEAD RECHARGEABLE WORKS,SUPPLIES AND SERVICES,TRADING AC - EXTERNAL PURCHASE,4875,P122731-SERVICE-chandlery stock,30/07/2023 00:00,276200,68.11,AS0036,ASAP SUPPLIES,26/06/2023 00:00,30/07/2023 00:00,P04-2024
,STANSTEAD RECHARGEABLE WORKS,SUPPLIES AND SERVICES,TRADING AC - EXTERNAL PURCHASE,4875,P122731-SERVICE-chandlery stock,30/07/2023 00:00,276201,44.96,AS0036,ASAP SUPPLIES,26/06/2023 00:00,30/07/2023 00:00,P04-2024
,LEE VALLEY CAMPSITE,SUPPLIES AND SERVICES,TRADING AC - EXTERNAL PURCHASE,4875,P121860-SERVICE-Shop stock logs kindling firelights,11/07/2023 00:00,275413,82.11,LO0473,LOGS DIRECT LTD,26/06/2023 00:00,30/07/2023 00:00,P04-2024
,LEE VALLEY CAMPSITE,SUPPLIES AND SERVICES,TRADING AC - EXTERNAL PURCHASE,4875,P121860-SERVICE-increase value to cover order,11/07/2023 00:00,275413,217.89,LO0473,LOGS DIRECT LTD,26/06/2023 00:00,30/07/2023 00:00,P04-2024
,LEE VALLEY CAMPSITE,SUPPLIES AND SERVICES,TRADING AC - EXTERNAL PURCHASE,4875,P122613-SERVICE-express delivery,25/07/2023 00:00,275839,19.05,LO0473,LOGS DIRECT LTD,26/06/2023 00:00,30/07/2023 00:00,P04-2024
,LEE VALLEY CAMPSITE,SUPPLIES AND SERVICES,TRADING AC - EXTERNAL PURCHASE,4875,P122613-SERVICE-100 x Softwood nets,25/07/2023 00:00,275839,279,LO0473,LOGS DIRECT LTD,26/06/2023 00:00,30/07/2023 00:00,P04-2024
,LEE VALLEY CAMPSITE,SUPPLIES AND SERVICES,TRADING AC - EXTERNAL PURCHASE,4875,P121693-SERVICE-Stock  Caravan chemicals,25/07/2023 00:00,275967,44.6,TO0079,TOWSURE PRODUCTS LIMITED,26/06/2023 00:00,30/07/2023 00:00,P04-2024
,LEE VALLEY CARAVAN PARK,SUPPLIES AND SERVICES,TRADING AC - EXTERNAL PURCHASE,4875,"P122424-SERVICE-Wood, charcoal and kindling",17/07/2023 00:00,275372,1246,LO0473,LOGS DIRECT LTD,26/06/2023 00:00,30/07/2023 00:00,P04-2024
P&V,WILDLIFE DISCOVERY CENTRE,SUPPLIES AND SERVICES,TRADING AC - EXTERNAL PURCHASE,4875,P122649-SERVICE-6x Caterpack 35cl Rippled Wall Hot Cups - RY0,30/07/2023 00:00,276185,26.1,TH0008,JKL SOLUTIONS LTD,26/06/2023 00:00,30/07/2023 00:00,P04-2024
P&V,WILDLIFE DISCOVERY CENTRE,SUPPLIES AND SERVICES,TRADING AC - EXTERNAL PURCHASE,4875,P122649-SERVICE-3x Still Spring Water 500ml - HSW35105,30/07/2023 00:00,276185,33.93,TH0008,JKL SOLUTIONS LTD,26/06/2023 00:00,30/07/2023 00:00,P04-2024
P&V,WILDLIFE DISCOVERY CENTRE,SUPPLIES AND SERVICES,TRADING AC - EXTERNAL PURCHASE,4875,P122649-SERVICE-1x Nescafe Coffee Sticks - NL72756,30/07/2023 00:00,276185,24.28,TH0008,JKL SOLUTIONS LTD,26/06/2023 00:00,30/07/2023 00:00,P04-2024
P&V,WILDLIFE DISCOVERY CENTRE,SUPPLIES AND SERVICES,TRADING AC - EXTERNAL PURCHASE,4875,P122649-SERVICE-3x Semi-Skimmed Milk Pots - AU99486,30/07/2023 00:00,276185,22.59,TH0008,JKL SOLUTIONS LTD,26/06/2023 00:00,30/07/2023 00:00,P04-2024
P&V,WILDLIFE DISCOVERY CENTRE,SUPPLIES AND SERVICES,TRADING AC - EXTERNAL PURCHASE,4875,P122649-SERVICE-3x Nescafe & Go Gold Blend White Coffee - NL5,30/07/2023 00:00,276185,25.35,TH0008,JKL SOLUTIONS LTD,26/06/2023 00:00,30/07/2023 00:00,P04-2024
,LV LEISURE CENTRE CAMPSITE,SUPPLIES AND SERVICES,TRADING AC - EXTERNAL PURCHASE,4875,P122495-SERVICE-2 paletts of logs,11/07/2023 00:00,275233,558,LO0473,LOGS DIRECT LTD,26/06/2023 00:00,30/07/2023 00:00,P04-2024
,LV LEISURE CENTRE CAMPSITE,SUPPLIES AND SERVICES,TRADING AC - EXTERNAL PURCHASE,4875,P122534-SERVICE-Shop Products,18/07/2023 00:00,275782,198.57,TO0079,TOWSURE PRODUCTS LIMITED,26/06/2023 00:00,30/07/2023 00:00,P04-2024
,LEE VALLEY CAMPSITE,SUPPLIES AND SERVICES,BOTTLED GAS,4877,P120451-SERVICE-Stock   47KG Gas cannisters,04/07/2023 00:00,275235,281.37,FL0147,FLOGAS BRITAIN LIMITED,26/06/2023 00:00,30/07/2023 00:00,P04-2024
,LEE VALLEY CAMPSITE,SUPPLIES AND SERVICES,BOTTLED GAS,4877,P121611-SERVICE-Stock Gas cannisters,04/07/2023 00:00,275235,448.18,FL0147,FLOGAS BRITAIN LIMITED,26/06/2023 00:00,30/07/2023 00:00,P04-2024
CEO,CHIEF EXECUTIVE,SUPPLIES AND SERVICES,UNRECONCILED COMPANY CARD EXP,4880,P ANDREWS - JULY 2023 CREDIT CARD STATEMENT,05/07/2023 00:00,275419,3689.2,NA0007,NATWEST CARD CENTRE,26/06/2023 00:00,30/07/2023 00:00,P04-2024
P&V,MYDDELTON HOUSE,SUPPLIES AND SERVICES,UNRECONCILED COMPANY CARD EXP,4880,G FLAVIEN  - JULY 2023 CREDIT CARD STATEMENT,05/07/2023 00:00,275419,780.32,NA0007,NATWEST CARD CENTRE,26/06/2023 00:00,30/07/2023 00:00,P04-2024
CEO,PR/COMMUNICATIONS,SUPPLIES AND SERVICES,UNRECONCILED COMPANY CARD EXP,4880,S BROMBERG  - JULY 2023 CREDIT CARD STATEMENT,05/07/2023 00:00,275419,3293.23,NA0007,NATWEST CARD CENTRE,26/06/2023 00:00,30/07/2023 00:00,P04-2024
R&B,DEMOCRATIC REPRESENTATION & MA,SUPPLIES AND SERVICES,UNRECONCILED COMPANY CARD EXP,4880,S BERTSCHIN  - JULY 2023 CREDIT CARD STATEMENT,05/07/2023 00:00,275419,763.6,NA0007,NATWEST CARD CENTRE,26/06/2023 00:00,30/07/2023 00:00,P04-2024
R&B,INFORMATION TECHNOLOGY,SUPPLIES AND SERVICES,UNRECONCILED COMPANY CARD EXP,4880,S CLARK  - JULY 2023 CREDIT CARD STATEMENT,05/07/2023 00:00,275419,1181.18,NA0007,NATWEST CARD CENTRE,26/06/2023 00:00,30/07/2023 00:00,P04-2024
,LEE VALLEY MARINA SPRINGFIELD,SUPPLIES AND SERVICES,UNRECONCILED COMPANY CARD EXP,4880,T BEAN  - JULY 2023 CREDIT CARD STATEMENT,05/07/2023 00:00,275419,159,NA0007,NATWEST CARD CENTRE,26/06/2023 00:00,30/07/2023 00:00,P04-2024
,LEE VALLEY MARINA STANSTEAD,SUPPLIES AND SERVICES,UNRECONCILED COMPANY CARD EXP,4880,J MANTON  - JULY 2023 CREDIT CARD STATEMENT,05/07/2023 00:00,275419,1262.83,NA0007,NATWEST CARD CENTRE,26/06/2023 00:00,30/07/2023 00:00,P04-2024
P&V,LEE VALLEY FARM HOLYFIELDHALL,SUPPLIES AND SERVICES,UNRECONCILED COMPANY CARD EXP,4880,J PAINTER  - JULY 2023 CREDIT CARD STATEMENT,05/07/2023 00:00,275419,854.12,NA0007,NATWEST CARD CENTRE,26/06/2023 00:00,30/07/2023 00:00,P04-2024
,LEE VALLEY CAMPSITE,SUPPLIES AND SERVICES,UNRECONCILED COMPANY CARD EXP,4880,C CARTER  - JULY 2023 CREDIT CARD STATEMENT,05/07/2023 00:00,275419,4422.7,NA0007,NATWEST CARD CENTRE,26/06/2023 00:00,30/07/2023 00:00,P04-2024
,LEE VALLEY CAMPSITE,SUPPLIES AND SERVICES,UNRECONCILED COMPANY CARD EXP,4880,D GROVE  - JULY 2023 CREDIT CARD STATEMENT,05/07/2023 00:00,275419,-26.21,NA0007,NATWEST CARD CENTRE,26/06/2023 00:00,30/07/2023 00:00,P04-2024
,LEE VALLEY CARAVAN PARK,SUPPLIES AND SERVICES,UNRECONCILED COMPANY CARD EXP,4880,D SNOWDEN  - JULY 2023 CREDIT CARD STATEMENT,05/07/2023 00:00,275419,685.48,NA0007,NATWEST CARD CENTRE,26/06/2023 00:00,30/07/2023 00:00,P04-2024
,LEE VALLEY CARAVAN PARK,SUPPLIES AND SERVICES,UNRECONCILED COMPANY CARD EXP,4880,I RUSSELL  - JULY 2023 CREDIT CARD STATEMENT,05/07/2023 00:00,275419,4816.09,NA0007,NATWEST CARD CENTRE,26/06/2023 00:00,30/07/2023 00:00,P04-2024
P&V,OPERATIONAL MANAGEMENT (L&E),SUPPLIES AND SERVICES,UNRECONCILED COMPANY CARD EXP,4880,D HUTLEY  - JULY 2023 CREDIT CARD STATEMENT,05/07/2023 00:00,275419,40,NA0007,NATWEST CARD CENTRE,26/06/2023 00:00,30/07/2023 00:00,P04-2024
P&V,OPERATIONAL MANAGEMENT (L&E),SUPPLIES AND SERVICES,UNRECONCILED COMPANY CARD EXP,4880,J CARNEY  - JULY 2023 CREDIT CARD STATEMENT,05/07/2023 00:00,275419,122.15,NA0007,NATWEST CARD CENTRE,26/06/2023 00:00,30/07/2023 00:00,P04-2024
P&V,OPERATIONAL MANAGEMENT (L&E),SUPPLIES AND SERVICES,UNRECONCILED COMPANY CARD EXP,4880,J HETHERINGTON  - JULY 2023 CREDIT CARD STATEMENT,05/07/2023 00:00,275419,936.81,NA0007,NATWEST CARD CENTRE,26/06/2023 00:00,30/07/2023 00:00,P04-2024
P&V,SPORT AND LEISURE,SUPPLIES AND SERVICES,UNRECONCILED COMPANY CARD EXP,4880,A SACKETT - JULY 2023 CREDIT CARD STATEMENT,05/07/2023 00:00,275419,304.76,NA0007,NATWEST CARD CENTRE,26/06/2023 00:00,30/07/2023 00:00,P04-2024
P&V,EVENTS MANAGEMENT (PR),SUPPLIES AND SERVICES,UNRECONCILED COMPANY CARD EXP,4880,S STONE  - JULY 2023 CREDIT CARD STATEMENT,05/07/2023 00:00,275419,126.89,NA0007,NATWEST CARD CENTRE,26/06/2023 00:00,30/07/2023 00:00,P04-2024
P&V,VOLUNTEERS (L&E),SUPPLIES AND SERVICES,UNRECONCILED COMPANY CARD EXP,4880,J WHITEHEAD  - JULY 2023 CREDIT CARD STATEMENT,05/07/2023 00:00,275419,360,NA0007,NATWEST CARD CENTRE,26/06/2023 00:00,30/07/2023 00:00,P04-2024
,LV LEISURE CENTRE CAMPSITE,SUPPLIES AND SERVICES,UNRECONCILED COMPANY CARD EXP,4880,L SMITH  - JULY 2023 CREDIT CARD STATEMENT,05/07/2023 00:00,275419,468.52,NA0007,NATWEST CARD CENTRE,26/06/2023 00:00,30/07/2023 00:00,P04-2024
CEO,COMMERCIAL ACCOMMODATION,SUPPLIES AND SERVICES,OTHER EXPENSES,4899,P121556-SERVICE-Land Registry Fees,05/07/2023 00:00,275364,9,HM0032,HM LAND REGISTRY,26/06/2023 00:00,30/07/2023 00:00,P04-2024
CEO,COMMERCIAL ACCOMMODATION,SUPPLIES AND SERVICES,OTHER EXPENSES,4899,P121556-SERVICE-Land Registry Fees,12/07/2023 00:00,275621,9,HM0032,HM LAND REGISTRY,26/06/2023 00:00,30/07/2023 00:00,P04-2024
CEO,COMMERCIAL ACCOMMODATION,SUPPLIES AND SERVICES,OTHER EXPENSES,4899,P121556-SERVICE-Land Registry Fees,18/07/2023 00:00,275790,15,HM0032,HM LAND REGISTRY,26/06/2023 00:00,30/07/2023 00:00,P04-2024
CEO,COMMERCIAL ACCOMMODATION,SUPPLIES AND SERVICES,OTHER EXPENSES,4899,P121556-SERVICE-Land Registry Fees,26/07/2023 00:00,276009,6,HM0032,HM LAND REGISTRY,26/06/2023 00:00,30/07/2023 00:00,P04-2024
CEO,COMMERCIAL ACCOMMODATION,SUPPLIES AND SERVICES,OTHER EXPENSES,4899,P121556-SERVICE-Land Registry Fees,30/07/2023 00:00,276241,42,HM0032,HM LAND REGISTRY,26/06/2023 00:00,30/07/2023 00:00,P04-2024
R&B,FINANCE,SUPPLIES AND SERVICES,OTHER EXPENSES,4899,VAT PAYMENT,04/07/2023 00:00,275314,0,KE0104,KENNEDYS,26/06/2023 00:00,30/07/2023 00:00,P04-2024
CEO,LEGAL SERVICES,SUPPLIES AND SERVICES,OTHER EXPENSES,4899,KENNEDYS,12/07/2023 00:00,275670,0,KE0104,KENNEDYS,26/06/2023 00:00,30/07/2023 00:00,P04-2024
CEO,MAJOR EVENTS,SUPPLIES AND SERVICES,OTHER EXPENSES,4899,P122528-SERVICE-HTC Veunue hire for England Hockey proleaue s,25/07/2023 00:00,275802,65403.56,GR0097,GREENWICH LEISURE LTD,26/06/2023 00:00,30/07/2023 00:00,P04-2024
P&V,COMMUNITY ACCESS FUND,SUPPLIES AND SERVICES,OTHER EXPENSES,4899,P122561-SERVICE-CAF WWC facility hire 13/5/23,17/07/2023 00:00,275330,150,GR0097,GREENWICH LEISURE LTD,26/06/2023 00:00,30/07/2023 00:00,P04-2024
P&V,COMMUNITY ACCESS FUND,SUPPLIES AND SERVICES,OTHER EXPENSES,4899,P122466-SERVICE-CAF coach Our Lady & St Josephs 3/7/23,04/07/2023 00:00,275416,595,SA0699,SATIABLE TRAVEL,26/06/2023 00:00,30/07/2023 00:00,P04-2024
,LV LEISURE CENTRE CAMPSITE,SUPPLIES AND SERVICES,OTHER EXPENSES,4899,P122472-SERVICE-new radios,17/07/2023 00:00,275601,677.7,DI0253,DIRECT COMMUNICATIONS RADIO SERVICES LTD,26/06/2023 00:00,30/07/2023 00:00,P04-2024
,LV LEISURE CENTRE CAMPSITE,SUPPLIES AND SERVICES,OTHER EXPENSES,4899,P122593-SERVICE-NEW RADIOS,18/07/2023 00:00,275837,489.7,DI0253,DIRECT COMMUNICATIONS RADIO SERVICES LTD,26/06/2023 00:00,30/07/2023 00:00,P04-2024
,LV LEISURE CENTRE GOLF COURSE,SUPPLIES AND SERVICES,OTHER EXPENSES,4899,P122270-SERVICE-Knot Weed,12/07/2023 00:00,275619,247.5,GO0044,S.H.GOSS & CO LTD,26/06/2023 00:00,30/07/2023 00:00,P04-2024
P&V,AWARDS AND ACCREDITATIONS,SUPPLIES AND SERVICES,OTHER EXPENSES,4899,P120849-SERVICE-LVAC - Quest directional review,30/07/2023 00:00,273383,1250,4G0455,4GLOBAL CONSULTING LIMITED,26/06/2023 00:00,30/07/2023 00:00,P04-2024
P&V,AWARDS AND ACCREDITATIONS,SUPPLIES AND SERVICES,OTHER EXPENSES,4899,P122663-SERVICE-Quality site visits LVVP & LVHTC 7/6/23,25/07/2023 00:00,275378,470,RI0053,RIGHT DIRECTIONS (MANAGEMENT) LTD,26/06/2023 00:00,30/07/2023 00:00,P04-2024
P&V,AWARDS AND ACCREDITATIONS,SUPPLIES AND SERVICES,OTHER EXPENSES,4899,P122664-SERVICE-Quality site visits LVAC & LVWWC 7/6/23,25/07/2023 00:00,275650,470,RI0053,RIGHT DIRECTIONS (MANAGEMENT) LTD,26/06/2023 00:00,30/07/2023 00:00,P04-2024
P&V,AWARDS AND ACCREDITATIONS,SUPPLIES AND SERVICES,OTHER EXPENSES,4899,P122665-SERVICE-Quality site visit LVRC & LVIC 14/6/23,25/07/2023 00:00,275651,470,RI0053,RIGHT DIRECTIONS (MANAGEMENT) LTD,26/06/2023 00:00,30/07/2023 00:00,P04-2024
P&V,AWARDS AND ACCREDITATIONS,SUPPLIES AND SERVICES,OTHER EXPENSES,4899,P122662-SERVICE-Mystery Visists LVIC & LVWWC 18/7/23,25/07/2023 00:00,275867,610,RI0053,RIGHT DIRECTIONS (MANAGEMENT) LTD,26/06/2023 00:00,30/07/2023 00:00,P04-2024
P&V,S106 PROJECTS,S106 EXPENDITURE (REVENUE),S106 EXPENDITURE (REVENUE),4985,"P121810-SERVICE-Supply, Analysis and Delivery of 1 Great Cres",11/07/2023 00:00,275526,195,AD0469,RSK ADAS LTD,26/06/2023 00:00,30/07/2023 00:00,P04-2024
P&V,"ASSET PROTECTION, MAINT, DEVEL",CAPITAL EXPENDITURE,CAPITAL EXPENDITURE,4990, Bridge N158 Repairs,04/07/2023 00:00,275052,901.49,KE0023,KENDALL & SONS LIMITED,26/06/2023 00:00,30/07/2023 00:00,P04-2024
P&V,"ASSET PROTECTION, MAINT, DEVEL",CAPITAL EXPENDITURE,CAPITAL EXPENDITURE,4990, Bridge N158 Repairs,04/07/2023 00:00,275052,-3200,KE0023,KENDALL & SONS LIMITED,26/06/2023 00:00,30/07/2023 00:00,P04-2024
P&V,"ASSET PROTECTION, MAINT, DEVEL",CAPITAL EXPENDITURE,CAPITAL EXPENDITURE,4990,P122408-SERVICE-Emergency Full Repairs to Bridge N158,04/07/2023 00:00,275052,3200,KE0023,KENDALL & SONS LIMITED,26/06/2023 00:00,30/07/2023 00:00,P04-2024
P&V,"ASSET PROTECTION, MAINT, DEVEL",CAPITAL EXPENDITURE,CAPITAL EXPENDITURE,4990, Bridge N158 Repairs,04/07/2023 00:00,275052,2298.51,KE0023,KENDALL & SONS LIMITED,26/06/2023 00:00,30/07/2023 00:00,P04-2024
P&V,"ASSET PROTECTION, MAINT, DEVEL",CAPITAL EXPENDITURE,CAPITAL EXPENDITURE,4990,P121401-SERVICE-Uplift of orser as per Mike Stevens,05/07/2023 00:00,275057,20076.69,CA0508,CARMELCREST LTD,26/06/2023 00:00,30/07/2023 00:00,P04-2024
P&V,"ASSET PROTECTION, MAINT, DEVEL",CAPITAL EXPENDITURE,CAPITAL EXPENDITURE,4990,P120129-SERVICE-LVWWC Expansion of Conference room,30/07/2023 00:00,275209,12088.29,CA0508,CARMELCREST LTD,26/06/2023 00:00,30/07/2023 00:00,P04-2024
P&V,"ASSET PROTECTION, MAINT, DEVEL",CAPITAL EXPENDITURE,CAPITAL EXPENDITURE,4990,P120129-SERVICE-Uplift of order as per MS,30/07/2023 00:00,275209,29241.36,CA0508,CARMELCREST LTD,26/06/2023 00:00,30/07/2023 00:00,P04-2024
P&V,"ASSET PROTECTION, MAINT, DEVEL",CAPITAL EXPENDITURE,CAPITAL EXPENDITURE,4990,P122396-SERVICE-VeloPark undercrost repairs,04/07/2023 00:00,275218,5670,GR0097,GREENWICH LEISURE LTD,26/06/2023 00:00,30/07/2023 00:00,P04-2024
P&V,"ASSET PROTECTION, MAINT, DEVEL",CAPITAL EXPENDITURE,CAPITAL EXPENDITURE,4990,P122070-SERVICE-Works at Velopark as per quote XQPRQ,12/07/2023 00:00,275329,770,PH0319,SIGNIFY COMMERCIAL UK LIMITED (PHILIPS LIGHTI,26/06/2023 00:00,30/07/2023 00:00,P04-2024
P&V,"ASSET PROTECTION, MAINT, DEVEL",CAPITAL EXPENDITURE,CAPITAL EXPENDITURE,4990,P121096-SERVICE-WWC - Cabin Electrical Supply as per estimate,05/07/2023 00:00,275361,4547,GI0137,R & P GIBBS LIMITED,26/06/2023 00:00,30/07/2023 00:00,P04-2024
P&V,"ASSET PROTECTION, MAINT, DEVEL",CAPITAL EXPENDITURE,CAPITAL EXPENDITURE,4990,P121394-SERVICE-Additional Works,11/07/2023 00:00,275374,6045,HU0463,HUGH PEARL (LAND DRAINAGE) LTD,26/06/2023 00:00,30/07/2023 00:00,P04-2024
P&V,"ASSET PROTECTION, MAINT, DEVEL",CAPITAL EXPENDITURE,CAPITAL EXPENDITURE,4990,P121394-SERVICE-Bank & Path Repairs at Hooks Marsh,11/07/2023 00:00,275374,10242.88,HU0463,HUGH PEARL (LAND DRAINAGE) LTD,26/06/2023 00:00,30/07/2023 00:00,P04-2024
P&V,"ASSET PROTECTION, MAINT, DEVEL",CAPITAL EXPENDITURE,CAPITAL EXPENDITURE,4990,P122653-SERVICE-CCTV Equipment rental Velo,25/07/2023 00:00,275427,12262.74,ST0642,SECURITAS TECHNOLOGY LIMITED(frmly Stanley S),26/06/2023 00:00,30/07/2023 00:00,P04-2024
P&V,"ASSET PROTECTION, MAINT, DEVEL",CAPITAL EXPENDITURE,CAPITAL EXPENDITURE,4990,P121682-SERVICE-WWC - British Canoeing offices,05/07/2023 00:00,275444,449,TO0224,TOTAL CONTROL SERVICES LIMITED,26/06/2023 00:00,30/07/2023 00:00,P04-2024
P&V,"ASSET PROTECTION, MAINT, DEVEL",CAPITAL EXPENDITURE,CAPITAL EXPENDITURE,4990,P122654-SERVICE-Pickets Lock Campsite,25/07/2023 00:00,275536,400,BR0018,BRADSHAW ELECTRICAL LIMITED,26/06/2023 00:00,30/07/2023 00:00,P04-2024
P&V,"ASSET PROTECTION, MAINT, DEVEL",CAPITAL EXPENDITURE,CAPITAL EXPENDITURE,4990,P122007-SERVICE-Feeder Pillar Upgrade at Springfield Marina -,19/07/2023 00:00,275564,870,BR0018,BRADSHAW ELECTRICAL LIMITED,26/06/2023 00:00,30/07/2023 00:00,P04-2024
P&V,"ASSET PROTECTION, MAINT, DEVEL",CAPITAL EXPENDITURE,CAPITAL EXPENDITURE,4990,P122007-SERVICE-Feeder Pillar Upgrade at Springfield Marina -,19/07/2023 00:00,275564,29000,BR0018,BRADSHAW ELECTRICAL LIMITED,26/06/2023 00:00,30/07/2023 00:00,P04-2024
P&V,"ASSET PROTECTION, MAINT, DEVEL",CAPITAL EXPENDITURE,CAPITAL EXPENDITURE,4990,P121825-SERVICE-Site Survey Lighting at Sewardstone Campsite,18/07/2023 00:00,275835,400,BR0018,BRADSHAW ELECTRICAL LIMITED,26/06/2023 00:00,30/07/2023 00:00,P04-2024
P&V,"ASSET PROTECTION, MAINT, DEVEL",CAPITAL EXPENDITURE,CAPITAL EXPENDITURE,4990,P118406-SERVICE-Control System Schedule Upgrade at White Wate,19/07/2023 00:00,275869,30460,TO0640,TOTAL AUTOMATION AND POWER,26/06/2023 00:00,30/07/2023 00:00,P04-2024
P&V,"ASSET PROTECTION, MAINT, DEVEL",CAPITAL EXPENDITURE,CAPITAL EXPENDITURE,4990,P120671-SERVICE-WWC Pumps  as per quotation TAP 3070 VOF1,25/07/2023 00:00,275870,12327,TO0640,TOTAL AUTOMATION AND POWER,26/06/2023 00:00,30/07/2023 00:00,P04-2024
P&V,"ASSET PROTECTION, MAINT, DEVEL",CAPITAL EXPENDITURE,CAPITAL EXPENDITURE,4990,P122300-SERVICE-Broxbourne Mill Car Park - Repairs,25/07/2023 00:00,275974,4156,HE0297,HENDERSON & TAYLOR (PUBLIC WORKS LIMITED),26/06/2023 00:00,30/07/2023 00:00,P04-2024
P&V,"ASSET PROTECTION, MAINT, DEVEL",CAPITAL EXPENDITURE,CAPITAL EXPENDITURE,4990,P122399-SERVICE-Wharf Road Fisherman's Track,25/07/2023 00:00,275975,525.6,HE0297,HENDERSON & TAYLOR (PUBLIC WORKS LIMITED),26/06/2023 00:00,30/07/2023 00:00,P04-2024
P&V,"ASSET PROTECTION, MAINT, DEVEL",CAPITAL EXPENDITURE,CAPITAL EXPENDITURE,4990,P122398-SERVICE-Slipe Lane Repair Sink Hole,25/07/2023 00:00,275976,1325.7,HE0297,HENDERSON & TAYLOR (PUBLIC WORKS LIMITED),26/06/2023 00:00,30/07/2023 00:00,P04-2024
P&V,"ASSET PROTECTION, MAINT, DEVEL",CAPITAL EXPENDITURE,CAPITAL EXPENDITURE,4990,P122398-SERVICE-Extra Works - Slipe Lane Sink Hole,25/07/2023 00:00,275976,202,HE0297,HENDERSON & TAYLOR (PUBLIC WORKS LIMITED),26/06/2023 00:00,30/07/2023 00:00,P04-2024
P&V,"ASSET PROTECTION, MAINT, DEVEL",CAPITAL EXPENDITURE,CAPITAL EXPENDITURE,4990,P122398-SERVICE-Extra Works - Slipe Lane Sink Hole,25/07/2023 00:00,275976,616,HE0297,HENDERSON & TAYLOR (PUBLIC WORKS LIMITED),26/06/2023 00:00,30/07/2023 00:00,P04-2024
P&V,"ASSET PROTECTION, MAINT, DEVEL",CAPITAL EXPENDITURE,CAPITAL EXPENDITURE,4990,P122400-SERVICE-Slipe Lane Patch,25/07/2023 00:00,275977,435.6,HE0297,HENDERSON & TAYLOR (PUBLIC WORKS LIMITED),26/06/2023 00:00,30/07/2023 00:00,P04-2024
P&V,"ASSET PROTECTION, MAINT, DEVEL",CAPITAL EXPENDITURE,CAPITAL EXPENDITURE,4990,P122164-SERVICE-Footpath Repair - Gunpowder Park Wet Woodland,25/07/2023 00:00,275978,6162.12,HE0297,HENDERSON & TAYLOR (PUBLIC WORKS LIMITED),26/06/2023 00:00,30/07/2023 00:00,P04-2024
P&V,"ASSET PROTECTION, MAINT, DEVEL",CAPITAL EXPENDITURE,CAPITAL EXPENDITURE,4990,P122167-SERVICE-Footpath Repair - Gunpowder Park Concrete Ben,25/07/2023 00:00,275979,19263.24,HE0297,HENDERSON & TAYLOR (PUBLIC WORKS LIMITED),26/06/2023 00:00,30/07/2023 00:00,P04-2024
P&V,"ASSET PROTECTION, MAINT, DEVEL",CAPITAL EXPENDITURE,CAPITAL EXPENDITURE,4990,P122168-SERVICE-Footpath Repair - Gunpowder Park Bridge Area,25/07/2023 00:00,275980,824.58,HE0297,HENDERSON & TAYLOR (PUBLIC WORKS LIMITED),26/06/2023 00:00,30/07/2023 00:00,P04-2024
P&V,"ASSET PROTECTION, MAINT, DEVEL",CAPITAL EXPENDITURE,CAPITAL EXPENDITURE,4990,P122170-SERVICE-Footpath Repair - Gunpowder Park Path Leading,25/07/2023 00:00,275981,3169.2,HE0297,HENDERSON & TAYLOR (PUBLIC WORKS LIMITED),26/06/2023 00:00,30/07/2023 00:00,P04-2024
P&V,"ASSET PROTECTION, MAINT, DEVEL",CAPITAL EXPENDITURE,CAPITAL EXPENDITURE,4990,P122727-SERVICE-Attend site to investigate and resolve bad sm,30/07/2023 00:00,276027,250,CO0550,CONVERT WATER LTD,26/06/2023 00:00,30/07/2023 00:00,P04-2024
P&V,"ASSET PROTECTION, MAINT, DEVEL",CAPITAL EXPENDITURE,CAPITAL EXPENDITURE,4990,P122583-SERVICE-White WaterArea Clean Up,30/07/2023 00:00,276190,1655,MO0041,CAPSER,26/06/2023 00:00,30/07/2023 00:00,P04-2024
P&V,"ASSET PROTECTION, MAINT, DEVEL",CAPITAL EXPENDITURE,CAPITAL EXPENDITURE,4990,WWc-cleanup,30/07/2023 00:00,276190,-1655,MO0041,CAPSER,26/06/2023 00:00,30/07/2023 00:00,P04-2024
P&V,"ASSET PROTECTION, MAINT, DEVEL",CAPITAL EXPENDITURE,CAPITAL EXPENDITURE,4990,WWc-cleanup,30/07/2023 00:00,276190,1000,MO0041,CAPSER,26/06/2023 00:00,30/07/2023 00:00,P04-2024
P&V,"ASSET PROTECTION, MAINT, DEVEL",CAPITAL EXPENDITURE,CAPITAL EXPENDITURE,4990,WWc-cleanup,30/07/2023 00:00,276190,655,MO0041,CAPSER,26/06/2023 00:00,30/07/2023 00:00,P04-2024
P&V,"ASSET PROTECTION, MAINT, DEVEL",CAPITAL EXPENDITURE,CAPITAL EXPENDITURE,4990,P122586-SERVICE-Dismantle Garage & Break up Base - Dobbs Weir,30/07/2023 00:00,276191,1000,MO0041,CAPSER,26/06/2023 00:00,30/07/2023 00:00,P04-2024
P&V,"ASSET PROTECTION, MAINT, DEVEL",CAPITAL EXPENDITURE,CAPITAL EXPENDITURE,4990,DW-dismantle garage & breakup base,30/07/2023 00:00,276191,800,MO0041,CAPSER,26/06/2023 00:00,30/07/2023 00:00,P04-2024
P&V,"ASSET PROTECTION, MAINT, DEVEL",CAPITAL EXPENDITURE,CAPITAL EXPENDITURE,4990,DW-dismantle garage & breakup base,30/07/2023 00:00,276191,200,MO0041,CAPSER,26/06/2023 00:00,30/07/2023 00:00,P04-2024
P&V,"ASSET PROTECTION, MAINT, DEVEL",CAPITAL EXPENDITURE,CAPITAL EXPENDITURE,4990,DW-dismantle garage & breakup base,30/07/2023 00:00,276191,-1000,MO0041,CAPSER,26/06/2023 00:00,30/07/2023 00:00,P04-2024
P&V,"ASSET PROTECTION, MAINT, DEVEL",CAPITAL EXPENDITURE,CAPITAL EXPENDITURE,4990,DW-gas storage compound,30/07/2023 00:00,276192,725,MO0041,CAPSER,26/06/2023 00:00,30/07/2023 00:00,P04-2024
P&V,"ASSET PROTECTION, MAINT, DEVEL",CAPITAL EXPENDITURE,CAPITAL EXPENDITURE,4990,DW-gas storage compound,30/07/2023 00:00,276192,1500,MO0041,CAPSER,26/06/2023 00:00,30/07/2023 00:00,P04-2024
P&V,"ASSET PROTECTION, MAINT, DEVEL",CAPITAL EXPENDITURE,CAPITAL EXPENDITURE,4990,P122585-SERVICE-Gas Storage Compound at Dobbs Weir,30/07/2023 00:00,276192,2225,MO0041,CAPSER,26/06/2023 00:00,30/07/2023 00:00,P04-2024
P&V,"ASSET PROTECTION, MAINT, DEVEL",CAPITAL EXPENDITURE,CAPITAL EXPENDITURE,4990,DW-gas storage compound,30/07/2023 00:00,276192,-2225,MO0041,CAPSER,26/06/2023 00:00,30/07/2023 00:00,P04-2024
P&V,"ASSET PROTECTION, MAINT, DEVEL",CAPITAL EXPENDITURE,CAPITAL EXPENDITURE,4990,Stanstead-compound & path,30/07/2023 00:00,276193,495,MO0041,CAPSER,26/06/2023 00:00,30/07/2023 00:00,P04-2024
P&V,"ASSET PROTECTION, MAINT, DEVEL",CAPITAL EXPENDITURE,CAPITAL EXPENDITURE,4990,Stanstead-compound & path,30/07/2023 00:00,276193,1400,MO0041,CAPSER,26/06/2023 00:00,30/07/2023 00:00,P04-2024
P&V,"ASSET PROTECTION, MAINT, DEVEL",CAPITAL EXPENDITURE,CAPITAL EXPENDITURE,4990,Stanstead-compound & path,30/07/2023 00:00,276193,-1895,MO0041,CAPSER,26/06/2023 00:00,30/07/2023 00:00,P04-2024
P&V,"ASSET PROTECTION, MAINT, DEVEL",CAPITAL EXPENDITURE,CAPITAL EXPENDITURE,4990,P122584-SERVICE-Stanstead Marina - Compound and Path,30/07/2023 00:00,276193,1895,MO0041,CAPSER,26/06/2023 00:00,30/07/2023 00:00,P04-2024
P&V,"ASSET PROTECTION, MAINT, DEVEL",CAPITAL EXPENDITURE,CAPITAL EXPENDITURE,4990,P122733-SERVICE-Map poster printing,30/07/2023 00:00,276282,32,LO0220,LOCK 67  GRAPHICS LTD,26/06/2023 00:00,30/07/2023 00:00,P04-2024
R&B,INFORMATION TECHNOLOGY,CAPITAL EXPENDITURE,CAPITAL EXPENDITURE,4990,"P121958-SERVICE-Dell Latitude 3440 GCTO x 12, unit price 615",05/07/2023 00:00,275367,7380,DE0011,DELL CORPORATION LIMITED,26/06/2023 00:00,30/07/2023 00:00,P04-2024
R&B,INFORMATION TECHNOLOGY,CAPITAL EXPENDITURE,CAPITAL EXPENDITURE,4990,P121958-SERVICE-OptilPlex Small Form Factor (7010) X 4 - Unit,05/07/2023 00:00,275367,1836,DE0011,DELL CORPORATION LIMITED,26/06/2023 00:00,30/07/2023 00:00,P04-2024
R&B,INFORMATION TECHNOLOGY,CAPITAL EXPENDITURE,CAPITAL EXPENDITURE,4990,"P121958-SERVICE-Dell Universal Dock UD22 x 12, unit price153",05/07/2023 00:00,275421,1836,DE0011,DELL CORPORATION LIMITED,26/06/2023 00:00,30/07/2023 00:00,P04-2024
R&B,INFORMATION TECHNOLOGY,CAPITAL EXPENDITURE,CAPITAL EXPENDITURE,4990,P121958-SERVICE-OptiPlex Small Form Factor (Plus 7010) x 1 -,05/07/2023 00:00,275421,972,DE0011,DELL CORPORATION LIMITED,26/06/2023 00:00,30/07/2023 00:00,P04-2024
R&B,INFORMATION TECHNOLOGY,CAPITAL EXPENDITURE,CAPITAL EXPENDITURE,4990,P121958-SERVICE-OptilPlex Small Form Factor (7010) X 4 - Unit,05/07/2023 00:00,275421,164,DE0011,DELL CORPORATION LIMITED,26/06/2023 00:00,30/07/2023 00:00,P04-2024
R&B,INFORMATION TECHNOLOGY,CAPITAL EXPENDITURE,CAPITAL EXPENDITURE,4990,P118194-SERVICE-Finance System Upgrade - Implementation proje,11/07/2023 00:00,275453,473.67,CE0021,ADVANCED BUSINESS SOLUTIONS,26/06/2023 00:00,30/07/2023 00:00,P04-2024
P&V,LEE VALLEY FARM HOLYFIELDHALL,CAPITAL EXPENDITURE,CAPITAL EXPENDITURE,4990,P122421-SERVICE-Purchase of 18 Hex x AA Heifers,05/07/2023 00:00,275375,21200,NO0231,NORTON & BROOKSBANK,26/06/2023 00:00,30/07/2023 00:00,P04-2024
P&V,LEE VALLEY FARM HOLYFIELDHALL,CAPITAL EXPENDITURE,CAPITAL EXPENDITURE,4990,P122421-SERVICE-Purchase of 18 Hex x AA Heifers,11/07/2023 00:00,275457,2650,NO0231,NORTON & BROOKSBANK,26/06/2023 00:00,30/07/2023 00:00,P04-2024
,LEE VALLEY CAMPSITE,CAPITAL EXPENDITURE,CAPITAL EXPENDITURE,4990,P122510-SERVICE-materials for House,11/07/2023 00:00,275365,169.56,BQ0164,TRADE UK ACCOUNT,26/06/2023 00:00,30/07/2023 00:00,P04-2024
,LEE VALLEY CAMPSITE,CAPITAL EXPENDITURE,CAPITAL EXPENDITURE,4990,P122609-SERVICE-Plumbing upgrades,30/07/2023 00:00,276030,890,SO0400,SOUTHERN GREEN SERVICES LIMITED,26/06/2023 00:00,30/07/2023 00:00,P04-2024
P&V,NORTH AREA RANGERS,CAPITAL EXPENDITURE,CAPITAL EXPENDITURE,4990,P122288-SERVICE-St. Paul's Field Landscape and Path Network D,18/07/2023 00:00,275806,3730,LA0471,LANPRO SERVICES LIMITED,26/06/2023 00:00,30/07/2023 00:00,P04-2024
P&V,SOUTH AREA RANGERS,CAPITAL EXPENDITURE,CAPITAL EXPENDITURE,4990,P122202-SERVICE-Topography Survey Northwall Rd Olympic Park,17/07/2023 00:00,275783,1975,SU0696,THE SURVEY HOUSE,26/06/2023 00:00,30/07/2023 00:00,P04-2024
,LEE VALLEY WHITE WATER CENTRE,CAPITAL EXPENDITURE,CAPITAL EXPENDITURE,4990,P122435-SERVICE-Fibre Media Converter - SCADA System,04/07/2023 00:00,275340,91.69,BR0650,BROADBANDBUYER.COM,26/06/2023 00:00,30/07/2023 00:00,P04-2024
P&V,RIVER LEE COUNTRY PARK,THIRD PARTY PAYMENTS,EVENTS,5101,P122039-SERVICE-Delivery to address below,04/07/2023 00:00,275344,15,SI0024,SIGNS EXPRESS (HARLOW),26/06/2023 00:00,30/07/2023 00:00,P04-2024
R&B,HUMAN RESOURCES,THIRD PARTY PAYMENTS,CONSULTANTS (GENERAL),5110,P122456-SERVICE-Investigation report June 2023,11/07/2023 00:00,275381,13908,MA0304,MAZARS LLP,26/06/2023 00:00,30/07/2023 00:00,P04-2024
R&B,HUMAN RESOURCES,THIRD PARTY PAYMENTS,CONSULTANTS (GENERAL),5110,P122150-SERVICE-EAP 01/04/2023 to 31/03/2023,11/07/2023 00:00,275566,1237.2,HE0347,HEALTH ASSURED LIMITED,26/06/2023 00:00,30/07/2023 00:00,P04-2024
CEO,PR/COMMUNICATIONS,THIRD PARTY PAYMENTS,CONSULTANTS (GENERAL),5110,P121681-SERVICE-Communications Support - LVRPA Corporate,25/07/2023 00:00,275771,3000,LO0024,LONDON COMMUNICATIONS AGENCY LTD,26/06/2023 00:00,30/07/2023 00:00,P04-2024
CEO,PROPERTY,THIRD PARTY PAYMENTS,CONSULTANTS (GENERAL),5110,P122331-SERVICE-Valuation of Land at Hawes Lane,05/07/2023 00:00,275222,750,WA0009,PAUL WALLACE PROFESSIONAL,26/06/2023 00:00,30/07/2023 00:00,P04-2024
P&V,"ASSET PROTECTION, MAINT, DEVEL",THIRD PARTY PAYMENTS,CONSULTANTS (GENERAL),5110,P120804-SERVICE-Land Drainage Proposal at Three Mills Green,04/07/2023 00:00,275240,1900,CH0468,CUNDALL,26/06/2023 00:00,30/07/2023 00:00,P04-2024
P&V,"ASSET PROTECTION, MAINT, DEVEL",THIRD PARTY PAYMENTS,CONSULTANTS (GENERAL),5110,P121008-SERVICE-Hostile Vehilce Mitigation - Detailed Design,19/07/2023 00:00,275624,1391.25,DJ0297,DJ GOODE & ASSOCIATES LTD,26/06/2023 00:00,30/07/2023 00:00,P04-2024
CEO,LEGAL SERVICES,THIRD PARTY PAYMENTS,CONSULTANTS (GENERAL),5110,P122479-SERVICE-Sale of Land to Rear of 42 South Street,11/07/2023 00:00,275454,1106.4,WO0344,WOMBLE BOND DICKINSON (UK) LLP,26/06/2023 00:00,30/07/2023 00:00,P04-2024
CEO,LEGAL SERVICES,THIRD PARTY PAYMENTS,CONSULTANTS (GENERAL),5110,P122478-SERVICE-Field Station Lease,11/07/2023 00:00,275455,1426,WO0344,WOMBLE BOND DICKINSON (UK) LLP,26/06/2023 00:00,30/07/2023 00:00,P04-2024
CEO,LEGAL SERVICES,THIRD PARTY PAYMENTS,CONSULTANTS (GENERAL),5110,P122681-SERVICE-Remote & Virtual Meeting Advice,26/07/2023 00:00,276046,962.5,KB0138,11KBW,26/06/2023 00:00,30/07/2023 00:00,P04-2024
CEO,LEGAL SERVICES,THIRD PARTY PAYMENTS,CONSULTANTS (GENERAL),5110,P122768-SERVICE-GLL Advice,30/07/2023 00:00,276219,1032.92,WO0344,WOMBLE BOND DICKINSON (UK) LLP,26/06/2023 00:00,30/07/2023 00:00,P04-2024
CEO,LEGAL SERVICES,THIRD PARTY PAYMENTS,CONSULTANTS (GENERAL),5110,P122778-SERVICE-Sale of Land Rear of 42 South Street,30/07/2023 00:00,276251,72.8,WO0344,WOMBLE BOND DICKINSON (UK) LLP,26/06/2023 00:00,30/07/2023 00:00,P04-2024
R&B,INTERNAL AUDIT/HEALTH & SAFETY,THIRD PARTY PAYMENTS,CONSULTANTS (HEALTH & SAFETY),5123,P121430-SERVICE-Annual H&S contract April - October 2023,30/07/2023 00:00,276186,11458.33,RI0053,RIGHT DIRECTIONS (MANAGEMENT) LTD,26/06/2023 00:00,30/07/2023 00:00,P04-2024
P&V,SPORTS DEVELOPMENT GRANTS & AG,THIRD PARTY PAYMENTS,ICE TRANSITION FUND (GRANTS),5144,P122066-SERVICE-Lee Valley Ice Centre party room quotation: R,18/07/2023 00:00,275785,4155,LT0386,LTD LTD,26/06/2023 00:00,30/07/2023 00:00,P04-2024
P&V,SPORTS DEVELOPMENT GRANTS & AG,THIRD PARTY PAYMENTS,ICE TRANSITION FUND (GRANTS),5144,P122043-SERVICE-Lee Valley Ice Centre site dressing as per qu,18/07/2023 00:00,275786,6269,LT0386,LTD LTD,26/06/2023 00:00,30/07/2023 00:00,P04-2024
R&B,BALANCE SHEET (AUTHORITY),CREDITORS,EMPLOYEES INCOME TAX,6701,PAYE,17/07/2023 00:00,275592,61433.21,HM0368,HMRC,26/06/2023 00:00,30/07/2023 00:00,P04-2024
R&B,BALANCE SHEET (AUTHORITY),CREDITORS,EMPLOYEES NATIONAL INSURANCE,6702,PAYE,17/07/2023 00:00,275592,28025.8,HM0368,HMRC,26/06/2023 00:00,30/07/2023 00:00,P04-2024
